{"text_format":"1","workbook":"xlsx","n_sheets":29,"sheets":["Intro","Cas d'usages","Qualité Architecturale","Analyse qualitative","Coût fixes","Analyse des gains directs","Analyse des gains indirects","COLLABORATION","TECHNOLOGIE","Intervenant 1","Intervenant 2","Intervenant 3","Intervenant 4","Intervenant 5","Intervenant 6","Intervenant 7","Intervenant 8","Intervenant 9","Intervenant 10","Intervenant 11","Intervenant 12","Intervenant 13","Intervenant 14","Intervenant 15","Intervenant 16","Intervenant 17","Intervenant 18","Intervenant 19","Intervenant 20"],"not_rendered":{"charts":2,"images":0,"macros":1,"external_links":1,"defined_names":6,"comments":4,"pivot_tables":0},"unopened":[],"bounds":{"document_bytes":16777216,"sheet_cells":100000,"rows_first":2000,"rows_last":500,"rows_between":2000,"halvings":0,"cell_chars":16384,"cell_head_chars":4096},"cells_cut":0,"cells_raw":0,"read":"whole","date_system":"1900"}

{"sheet":"Intro","index":0,"n_rows":32,"n_cols":9,"rows_kept":32,"cut":false,"hidden":false,"merged":[[1,1,2,5],[4,8,29,14],[4,2,4,3],[5,2,5,3],[6,2,6,3],[7,2,7,3],[9,2,9,3]]}
[]
[null,"GRILLE BIMetric\nGrille de compilation"]
[]
[]
[null,null,"Opération",null,null,null,null,null,"Ce document est à l'usage unique du responsable TIM CIM BIM de l'opération. L'objectif de ce document est de compiler les résultats des différentes grilles N°1 de chque intervenant.\n\nLes différents récapitulatifs de chaque grille (onglet gris \"RECAP\" dans la grille N°1) doivent être copiés dans chaque onglet bleu correspondant (Intervenant 1, Intervenant 2...) grâce à un simple copier/coller des cellules.\n\nLes onglets se remplissent automatiquement hormis les informations des onglets \"Collaboration\" (Vert) et \"Technologie\" (Jaune) et les informations du projet de cet onglet (entourées de rouge).\n\nUne fois que les intervenants ont rempli leur grille respective et que cette grille est complétée, elle devra être transmise au PUCA pour analyse"]
[null,null,"Date de début du projet",null,"2022-01-01"]
[null,null,"Date d'évaluation",null,"2022-01-01"]
[null,null,"Phase en cours"]
[]
[null,null,"Nombre d'intervenants évalués",null,{"$f":"COUNT(B13:B32)-COUNTIF(C13:C32,\"NC\")","v":0}]
[]
[null," ","Intervenant","Rôle","Responsable","Mail"]
[null,1,{"$f":"IF(INDIRECT(_xlfn.CONCAT(\"'Intervenant \",$B13,\"'!B1\"))=\"\",\"NC\",INDIRECT(_xlfn.CONCAT(\"'Intervenant \",$B13,\"'!B1\")))","v":"NC"},{"$f":"IF(INDIRECT(_xlfn.CONCAT(\"'Intervenant \",$B13,\"'!B2\"))=\"\",\"NC\",INDIRECT(_xlfn.CONCAT(\"'Intervenant \",$B13,\"'!B2\")))","v":"NC"},{"$f":"IF(INDIRECT(_xlfn.CONCAT(\"'Intervenant \",$B13,\"'!B3\"))=\"\",\"NC\",INDIRECT(_xlfn.CONCAT(\"'Intervenant \",$B13,\"'!B3\")))","v":"NC"},{"$f":"IF(INDIRECT(_xlfn.CONCAT(\"'Intervenant \",$B13,\"'!B4\"))=\"\",\"NC\",INDIRECT(_xlfn.CONCAT(\"'Intervenant \",$B13,\"'!B4\")))","v":"NC"}]
[null,2,{"$f":"IF(INDIRECT(_xlfn.CONCAT(\"'Intervenant \",$B14,\"'!B1\"))=\"\",\"NC\",INDIRECT(_xlfn.CONCAT(\"'Intervenant \",$B14,\"'!B1\")))","v":"NC"},{"$f":"IF(INDIRECT(_xlfn.CONCAT(\"'Intervenant \",$B14,\"'!B2\"))=\"\",\"NC\",INDIRECT(_xlfn.CONCAT(\"'Intervenant \",$B14,\"'!B2\")))","v":"NC"},{"$f":"IF(INDIRECT(_xlfn.CONCAT(\"'Intervenant \",$B14,\"'!B3\"))=\"\",\"NC\",INDIRECT(_xlfn.CONCAT(\"'Intervenant \",$B14,\"'!B3\")))","v":"NC"},{"$f":"IF(INDIRECT(_xlfn.CONCAT(\"'Intervenant \",$B14,\"'!B4\"))=\"\",\"NC\",INDIRECT(_xlfn.CONCAT(\"'Intervenant \",$B14,\"'!B4\")))","v":"NC"}]
[null,3,{"$f":"IF(INDIRECT(_xlfn.CONCAT(\"'Intervenant \",$B15,\"'!B1\"))=\"\",\"NC\",INDIRECT(_xlfn.CONCAT(\"'Intervenant \",$B15,\"'!B1\")))","v":"NC"},{"$f":"IF(INDIRECT(_xlfn.CONCAT(\"'Intervenant \",$B15,\"'!B2\"))=\"\",\"NC\",INDIRECT(_xlfn.CONCAT(\"'Intervenant \",$B15,\"'!B2\")))","v":"NC"},{"$f":"IF(INDIRECT(_xlfn.CONCAT(\"'Intervenant \",$B15,\"'!B3\"))=\"\",\"NC\",INDIRECT(_xlfn.CONCAT(\"'Intervenant \",$B15,\"'!B3\")))","v":"NC"},{"$f":"IF(INDIRECT(_xlfn.CONCAT(\"'Intervenant \",$B15,\"'!B4\"))=\"\",\"NC\",INDIRECT(_xlfn.CONCAT(\"'Intervenant \",$B15,\"'!B4\")))","v":"NC"}]
[null,4,{"$f":"IF(INDIRECT(_xlfn.CONCAT(\"'Intervenant \",$B16,\"'!B1\"))=\"\",\"NC\",INDIRECT(_xlfn.CONCAT(\"'Intervenant \",$B16,\"'!B1\")))","v":"NC"},{"$f":"IF(INDIRECT(_xlfn.CONCAT(\"'Intervenant \",$B16,\"'!B2\"))=\"\",\"NC\",INDIRECT(_xlfn.CONCAT(\"'Intervenant \",$B16,\"'!B2\")))","v":"NC"},{"$f":"IF(INDIRECT(_xlfn.CONCAT(\"'Intervenant \",$B16,\"'!B3\"))=\"\",\"NC\",INDIRECT(_xlfn.CONCAT(\"'Intervenant \",$B16,\"'!B3\")))","v":"NC"},{"$f":"IF(INDIRECT(_xlfn.CONCAT(\"'Intervenant \",$B16,\"'!B4\"))=\"\",\"NC\",INDIRECT(_xlfn.CONCAT(\"'Intervenant \",$B16,\"'!B4\")))","v":"NC"}]
[null,5,{"$f":"IF(INDIRECT(_xlfn.CONCAT(\"'Intervenant \",$B17,\"'!B1\"))=\"\",\"NC\",INDIRECT(_xlfn.CONCAT(\"'Intervenant \",$B17,\"'!B1\")))","v":"NC"},{"$f":"IF(INDIRECT(_xlfn.CONCAT(\"'Intervenant \",$B17,\"'!B2\"))=\"\",\"NC\",INDIRECT(_xlfn.CONCAT(\"'Intervenant \",$B17,\"'!B2\")))","v":"NC"},{"$f":"IF(INDIRECT(_xlfn.CONCAT(\"'Intervenant \",$B17,\"'!B3\"))=\"\",\"NC\",INDIRECT(_xlfn.CONCAT(\"'Intervenant \",$B17,\"'!B3\")))","v":"NC"},{"$f":"IF(INDIRECT(_xlfn.CONCAT(\"'Intervenant \",$B17,\"'!B4\"))=\"\",\"NC\",INDIRECT(_xlfn.CONCAT(\"'Intervenant \",$B17,\"'!B4\")))","v":"NC"}]
[null,6,{"$f":"IF(INDIRECT(_xlfn.CONCAT(\"'Intervenant \",$B18,\"'!B1\"))=\"\",\"NC\",INDIRECT(_xlfn.CONCAT(\"'Intervenant \",$B18,\"'!B1\")))","v":"NC"},{"$f":"IF(INDIRECT(_xlfn.CONCAT(\"'Intervenant \",$B18,\"'!B2\"))=\"\",\"NC\",INDIRECT(_xlfn.CONCAT(\"'Intervenant \",$B18,\"'!B2\")))","v":"NC"},{"$f":"IF(INDIRECT(_xlfn.CONCAT(\"'Intervenant \",$B18,\"'!B3\"))=\"\",\"NC\",INDIRECT(_xlfn.CONCAT(\"'Intervenant \",$B18,\"'!B3\")))","v":"NC"},{"$f":"IF(INDIRECT(_xlfn.CONCAT(\"'Intervenant \",$B18,\"'!B4\"))=\"\",\"NC\",INDIRECT(_xlfn.CONCAT(\"'Intervenant \",$B18,\"'!B4\")))","v":"NC"}]
[null,7,{"$f":"IF(INDIRECT(_xlfn.CONCAT(\"'Intervenant \",$B19,\"'!B1\"))=\"\",\"NC\",INDIRECT(_xlfn.CONCAT(\"'Intervenant \",$B19,\"'!B1\")))","v":"NC"},{"$f":"IF(INDIRECT(_xlfn.CONCAT(\"'Intervenant \",$B19,\"'!B2\"))=\"\",\"NC\",INDIRECT(_xlfn.CONCAT(\"'Intervenant \",$B19,\"'!B2\")))","v":"NC"},{"$f":"IF(INDIRECT(_xlfn.CONCAT(\"'Intervenant \",$B19,\"'!B3\"))=\"\",\"NC\",INDIRECT(_xlfn.CONCAT(\"'Intervenant \",$B19,\"'!B3\")))","v":"NC"},{"$f":"IF(INDIRECT(_xlfn.CONCAT(\"'Intervenant \",$B19,\"'!B4\"))=\"\",\"NC\",INDIRECT(_xlfn.CONCAT(\"'Intervenant \",$B19,\"'!B4\")))","v":"NC"}]
[null,8,{"$f":"IF(INDIRECT(_xlfn.CONCAT(\"'Intervenant \",$B20,\"'!B1\"))=\"\",\"NC\",INDIRECT(_xlfn.CONCAT(\"'Intervenant \",$B20,\"'!B1\")))","v":"NC"},{"$f":"IF(INDIRECT(_xlfn.CONCAT(\"'Intervenant \",$B20,\"'!B2\"))=\"\",\"NC\",INDIRECT(_xlfn.CONCAT(\"'Intervenant \",$B20,\"'!B2\")))","v":"NC"},{"$f":"IF(INDIRECT(_xlfn.CONCAT(\"'Intervenant \",$B20,\"'!B3\"))=\"\",\"NC\",INDIRECT(_xlfn.CONCAT(\"'Intervenant \",$B20,\"'!B3\")))","v":"NC"},{"$f":"IF(INDIRECT(_xlfn.CONCAT(\"'Intervenant \",$B20,\"'!B4\"))=\"\",\"NC\",INDIRECT(_xlfn.CONCAT(\"'Intervenant \",$B20,\"'!B4\")))","v":"NC"}]
[null,9,{"$f":"IF(INDIRECT(_xlfn.CONCAT(\"'Intervenant \",$B21,\"'!B1\"))=\"\",\"NC\",INDIRECT(_xlfn.CONCAT(\"'Intervenant \",$B21,\"'!B1\")))","v":"NC"},{"$f":"IF(INDIRECT(_xlfn.CONCAT(\"'Intervenant \",$B21,\"'!B2\"))=\"\",\"NC\",INDIRECT(_xlfn.CONCAT(\"'Intervenant \",$B21,\"'!B2\")))","v":"NC"},{"$f":"IF(INDIRECT(_xlfn.CONCAT(\"'Intervenant \",$B21,\"'!B3\"))=\"\",\"NC\",INDIRECT(_xlfn.CONCAT(\"'Intervenant \",$B21,\"'!B3\")))","v":"NC"},{"$f":"IF(INDIRECT(_xlfn.CONCAT(\"'Intervenant \",$B21,\"'!B4\"))=\"\",\"NC\",INDIRECT(_xlfn.CONCAT(\"'Intervenant \",$B21,\"'!B4\")))","v":"NC"}]
[null,10,{"$f":"IF(INDIRECT(_xlfn.CONCAT(\"'Intervenant \",$B22,\"'!B1\"))=\"\",\"NC\",INDIRECT(_xlfn.CONCAT(\"'Intervenant \",$B22,\"'!B1\")))","v":"NC"},{"$f":"IF(INDIRECT(_xlfn.CONCAT(\"'Intervenant \",$B22,\"'!B2\"))=\"\",\"NC\",INDIRECT(_xlfn.CONCAT(\"'Intervenant \",$B22,\"'!B2\")))","v":"NC"},{"$f":"IF(INDIRECT(_xlfn.CONCAT(\"'Intervenant \",$B22,\"'!B3\"))=\"\",\"NC\",INDIRECT(_xlfn.CONCAT(\"'Intervenant \",$B22,\"'!B3\")))","v":"NC"},{"$f":"IF(INDIRECT(_xlfn.CONCAT(\"'Intervenant \",$B22,\"'!B4\"))=\"\",\"NC\",INDIRECT(_xlfn.CONCAT(\"'Intervenant \",$B22,\"'!B4\")))","v":"NC"}]
[null,11,{"$f":"IF(INDIRECT(_xlfn.CONCAT(\"'Intervenant \",$B23,\"'!B1\"))=\"\",\"NC\",INDIRECT(_xlfn.CONCAT(\"'Intervenant \",$B23,\"'!B1\")))","v":"NC"},{"$f":"IF(INDIRECT(_xlfn.CONCAT(\"'Intervenant \",$B23,\"'!B2\"))=\"\",\"NC\",INDIRECT(_xlfn.CONCAT(\"'Intervenant \",$B23,\"'!B2\")))","v":"NC"},{"$f":"IF(INDIRECT(_xlfn.CONCAT(\"'Intervenant \",$B23,\"'!B3\"))=\"\",\"NC\",INDIRECT(_xlfn.CONCAT(\"'Intervenant \",$B23,\"'!B3\")))","v":"NC"},{"$f":"IF(INDIRECT(_xlfn.CONCAT(\"'Intervenant \",$B23,\"'!B4\"))=\"\",\"NC\",INDIRECT(_xlfn.CONCAT(\"'Intervenant \",$B23,\"'!B4\")))","v":"NC"}]
[null,12,{"$f":"IF(INDIRECT(_xlfn.CONCAT(\"'Intervenant \",$B24,\"'!B1\"))=\"\",\"NC\",INDIRECT(_xlfn.CONCAT(\"'Intervenant \",$B24,\"'!B1\")))","v":"NC"},{"$f":"IF(INDIRECT(_xlfn.CONCAT(\"'Intervenant \",$B24,\"'!B2\"))=\"\",\"NC\",INDIRECT(_xlfn.CONCAT(\"'Intervenant \",$B24,\"'!B2\")))","v":"NC"},{"$f":"IF(INDIRECT(_xlfn.CONCAT(\"'Intervenant \",$B24,\"'!B3\"))=\"\",\"NC\",INDIRECT(_xlfn.CONCAT(\"'Intervenant \",$B24,\"'!B3\")))","v":"NC"},{"$f":"IF(INDIRECT(_xlfn.CONCAT(\"'Intervenant \",$B24,\"'!B4\"))=\"\",\"NC\",INDIRECT(_xlfn.CONCAT(\"'Intervenant \",$B24,\"'!B4\")))","v":"NC"}]
[null,13,{"$f":"IF(INDIRECT(_xlfn.CONCAT(\"'Intervenant \",$B25,\"'!B1\"))=\"\",\"NC\",INDIRECT(_xlfn.CONCAT(\"'Intervenant \",$B25,\"'!B1\")))","v":"NC"},{"$f":"IF(INDIRECT(_xlfn.CONCAT(\"'Intervenant \",$B25,\"'!B2\"))=\"\",\"NC\",INDIRECT(_xlfn.CONCAT(\"'Intervenant \",$B25,\"'!B2\")))","v":"NC"},{"$f":"IF(INDIRECT(_xlfn.CONCAT(\"'Intervenant \",$B25,\"'!B3\"))=\"\",\"NC\",INDIRECT(_xlfn.CONCAT(\"'Intervenant \",$B25,\"'!B3\")))","v":"NC"},{"$f":"IF(INDIRECT(_xlfn.CONCAT(\"'Intervenant \",$B25,\"'!B4\"))=\"\",\"NC\",INDIRECT(_xlfn.CONCAT(\"'Intervenant \",$B25,\"'!B4\")))","v":"NC"}]
[null,14,{"$f":"IF(INDIRECT(_xlfn.CONCAT(\"'Intervenant \",$B26,\"'!B1\"))=\"\",\"NC\",INDIRECT(_xlfn.CONCAT(\"'Intervenant \",$B26,\"'!B1\")))","v":"NC"},{"$f":"IF(INDIRECT(_xlfn.CONCAT(\"'Intervenant \",$B26,\"'!B2\"))=\"\",\"NC\",INDIRECT(_xlfn.CONCAT(\"'Intervenant \",$B26,\"'!B2\")))","v":"NC"},{"$f":"IF(INDIRECT(_xlfn.CONCAT(\"'Intervenant \",$B26,\"'!B3\"))=\"\",\"NC\",INDIRECT(_xlfn.CONCAT(\"'Intervenant \",$B26,\"'!B3\")))","v":"NC"},{"$f":"IF(INDIRECT(_xlfn.CONCAT(\"'Intervenant \",$B26,\"'!B4\"))=\"\",\"NC\",INDIRECT(_xlfn.CONCAT(\"'Intervenant \",$B26,\"'!B4\")))","v":"NC"}]
[null,15,{"$f":"IF(INDIRECT(_xlfn.CONCAT(\"'Intervenant \",$B27,\"'!B1\"))=\"\",\"NC\",INDIRECT(_xlfn.CONCAT(\"'Intervenant \",$B27,\"'!B1\")))","v":"NC"},{"$f":"IF(INDIRECT(_xlfn.CONCAT(\"'Intervenant \",$B27,\"'!B2\"))=\"\",\"NC\",INDIRECT(_xlfn.CONCAT(\"'Intervenant \",$B27,\"'!B2\")))","v":"NC"},{"$f":"IF(INDIRECT(_xlfn.CONCAT(\"'Intervenant \",$B27,\"'!B3\"))=\"\",\"NC\",INDIRECT(_xlfn.CONCAT(\"'Intervenant \",$B27,\"'!B3\")))","v":"NC"},{"$f":"IF(INDIRECT(_xlfn.CONCAT(\"'Intervenant \",$B27,\"'!B4\"))=\"\",\"NC\",INDIRECT(_xlfn.CONCAT(\"'Intervenant \",$B27,\"'!B4\")))","v":"NC"}]
[null,16,{"$f":"IF(INDIRECT(_xlfn.CONCAT(\"'Intervenant \",$B28,\"'!B1\"))=\"\",\"NC\",INDIRECT(_xlfn.CONCAT(\"'Intervenant \",$B28,\"'!B1\")))","v":"NC"},{"$f":"IF(INDIRECT(_xlfn.CONCAT(\"'Intervenant \",$B28,\"'!B2\"))=\"\",\"NC\",INDIRECT(_xlfn.CONCAT(\"'Intervenant \",$B28,\"'!B2\")))","v":"NC"},{"$f":"IF(INDIRECT(_xlfn.CONCAT(\"'Intervenant \",$B28,\"'!B3\"))=\"\",\"NC\",INDIRECT(_xlfn.CONCAT(\"'Intervenant \",$B28,\"'!B3\")))","v":"NC"},{"$f":"IF(INDIRECT(_xlfn.CONCAT(\"'Intervenant \",$B28,\"'!B4\"))=\"\",\"NC\",INDIRECT(_xlfn.CONCAT(\"'Intervenant \",$B28,\"'!B4\")))","v":"NC"}]
[null,17,{"$f":"IF(INDIRECT(_xlfn.CONCAT(\"'Intervenant \",$B29,\"'!B1\"))=\"\",\"NC\",INDIRECT(_xlfn.CONCAT(\"'Intervenant \",$B29,\"'!B1\")))","v":"NC"},{"$f":"IF(INDIRECT(_xlfn.CONCAT(\"'Intervenant \",$B29,\"'!B2\"))=\"\",\"NC\",INDIRECT(_xlfn.CONCAT(\"'Intervenant \",$B29,\"'!B2\")))","v":"NC"},{"$f":"IF(INDIRECT(_xlfn.CONCAT(\"'Intervenant \",$B29,\"'!B3\"))=\"\",\"NC\",INDIRECT(_xlfn.CONCAT(\"'Intervenant \",$B29,\"'!B3\")))","v":"NC"},{"$f":"IF(INDIRECT(_xlfn.CONCAT(\"'Intervenant \",$B29,\"'!B4\"))=\"\",\"NC\",INDIRECT(_xlfn.CONCAT(\"'Intervenant \",$B29,\"'!B4\")))","v":"NC"}]
[null,18,{"$f":"IF(INDIRECT(_xlfn.CONCAT(\"'Intervenant \",$B30,\"'!B1\"))=\"\",\"NC\",INDIRECT(_xlfn.CONCAT(\"'Intervenant \",$B30,\"'!B1\")))","v":"NC"},{"$f":"IF(INDIRECT(_xlfn.CONCAT(\"'Intervenant \",$B30,\"'!B2\"))=\"\",\"NC\",INDIRECT(_xlfn.CONCAT(\"'Intervenant \",$B30,\"'!B2\")))","v":"NC"},{"$f":"IF(INDIRECT(_xlfn.CONCAT(\"'Intervenant \",$B30,\"'!B3\"))=\"\",\"NC\",INDIRECT(_xlfn.CONCAT(\"'Intervenant \",$B30,\"'!B3\")))","v":"NC"},{"$f":"IF(INDIRECT(_xlfn.CONCAT(\"'Intervenant \",$B30,\"'!B4\"))=\"\",\"NC\",INDIRECT(_xlfn.CONCAT(\"'Intervenant \",$B30,\"'!B4\")))","v":"NC"}]
[null,19,{"$f":"IF(INDIRECT(_xlfn.CONCAT(\"'Intervenant \",$B31,\"'!B1\"))=\"\",\"NC\",INDIRECT(_xlfn.CONCAT(\"'Intervenant \",$B31,\"'!B1\")))","v":"NC"},{"$f":"IF(INDIRECT(_xlfn.CONCAT(\"'Intervenant \",$B31,\"'!B2\"))=\"\",\"NC\",INDIRECT(_xlfn.CONCAT(\"'Intervenant \",$B31,\"'!B2\")))","v":"NC"},{"$f":"IF(INDIRECT(_xlfn.CONCAT(\"'Intervenant \",$B31,\"'!B3\"))=\"\",\"NC\",INDIRECT(_xlfn.CONCAT(\"'Intervenant \",$B31,\"'!B3\")))","v":"NC"},{"$f":"IF(INDIRECT(_xlfn.CONCAT(\"'Intervenant \",$B31,\"'!B4\"))=\"\",\"NC\",INDIRECT(_xlfn.CONCAT(\"'Intervenant \",$B31,\"'!B4\")))","v":"NC"}]
[null,20,{"$f":"IF(INDIRECT(_xlfn.CONCAT(\"'Intervenant \",$B32,\"'!B1\"))=\"\",\"NC\",INDIRECT(_xlfn.CONCAT(\"'Intervenant \",$B32,\"'!B1\")))","v":"NC"},{"$f":"IF(INDIRECT(_xlfn.CONCAT(\"'Intervenant \",$B32,\"'!B2\"))=\"\",\"NC\",INDIRECT(_xlfn.CONCAT(\"'Intervenant \",$B32,\"'!B2\")))","v":"NC"},{"$f":"IF(INDIRECT(_xlfn.CONCAT(\"'Intervenant \",$B32,\"'!B3\"))=\"\",\"NC\",INDIRECT(_xlfn.CONCAT(\"'Intervenant \",$B32,\"'!B3\")))","v":"NC"},{"$f":"IF(INDIRECT(_xlfn.CONCAT(\"'Intervenant \",$B32,\"'!B4\"))=\"\",\"NC\",INDIRECT(_xlfn.CONCAT(\"'Intervenant \",$B32,\"'!B4\")))","v":"NC"}]

{"sheet":"Cas d'usages","index":1,"n_rows":29,"n_cols":28,"rows_kept":29,"cut":false,"hidden":false,"merged":[[5,1,8,1],[2,1,2,5],[9,1,23,1],[24,1,26,1]]}
[]
[]
[null,"Liste des cas d'usages mis en place dans le cadre de l'opération"]
[]
[null,null,"ID","Cas d’usages","TIM CIM BIM","Cas d'usage mis en place ?","Niveau maturité",null,1,2,3,4,5,6,7,8,9,10,11,12,13,14,15,16,17,18,19,20]
[null,"ETUDE PREALABLE / DIAGNOSTIC TERRITOIRE","01","Analyse préalable  ","TIM CIM",{"$f":"IF(OR('Intervenant 1'!B12=\"OUI\",'Intervenant 2'!B12=\"OUI\",'Intervenant 3'!B12=\"OUI\",'Intervenant 4'!B12=\"OUI\",'Intervenant 5'!B12=\"OUI\",'Intervenant 6'!B12=\"OUI\",'Intervenant 7'!B12=\"OUI\",'Intervenant 8'!B12=\"OUI\",'Intervenant 9'!B12=\"OUI\",'Intervenant 10'!B12=\"OUI\",'Intervenant 11'!B12=\"OUI\",'Intervenant 12'!B12=\"OUI\",'Intervenant 13'!B12=\"OUI\",'Intervenant 14'!B12=\"OUI\",'Intervenant 15'!B12=\"OUI\",'Intervenant 16'!B12=\"OUI\",'Intervenant 17'!B12=\"OUI\",'Intervenant 18'!B12=\"OUI\",'Intervenant 19'!B12=\"OUI\",'Intervenant 20'!B12=\"OUI\"),\"OUI\",\"NON\")","v":"NON"},{"$f":"IFERROR(AVERAGEIF(I6:AB6,\"<>*(NC)\",I6:AB6),\"NC\")","v":"NC"},null,{"$f":"IF(INDIRECT(_xlfn.CONCAT(\"'Intervenant \",I$5,\"'!$B\"&ROW($H12)))=\"NON\",\"NC\",INDIRECT(_xlfn.CONCAT(\"'Intervenant \",I$5,\"'!$C\"&ROW($H12))))","v":"NC"},{"$f":"IF(INDIRECT(_xlfn.CONCAT(\"'Intervenant \",J$5,\"'!$B\"&ROW($H12)))=\"NON\",\"NC\",INDIRECT(_xlfn.CONCAT(\"'Intervenant \",J$5,\"'!$C\"&ROW($H12))))","v":"NC"},{"$f":"IF(INDIRECT(_xlfn.CONCAT(\"'Intervenant \",K$5,\"'!$B\"&ROW($H12)))=\"NON\",\"NC\",INDIRECT(_xlfn.CONCAT(\"'Intervenant \",K$5,\"'!$C\"&ROW($H12))))","v":"NC"},{"$f":"IF(INDIRECT(_xlfn.CONCAT(\"'Intervenant \",L$5,\"'!$B\"&ROW($H12)))=\"NON\",\"NC\",INDIRECT(_xlfn.CONCAT(\"'Intervenant \",L$5,\"'!$C\"&ROW($H12))))","v":"NC"},{"$f":"IF(INDIRECT(_xlfn.CONCAT(\"'Intervenant \",M$5,\"'!$B\"&ROW($H12)))=\"NON\",\"NC\",INDIRECT(_xlfn.CONCAT(\"'Intervenant \",M$5,\"'!$C\"&ROW($H12))))","v":"NC"},{"$f":"IF(INDIRECT(_xlfn.CONCAT(\"'Intervenant \",N$5,\"'!$B\"&ROW($H12)))=\"NON\",\"NC\",INDIRECT(_xlfn.CONCAT(\"'Intervenant \",N$5,\"'!$C\"&ROW($H12))))","v":"NC"},{"$f":"IF(INDIRECT(_xlfn.CONCAT(\"'Intervenant \",O$5,\"'!$B\"&ROW($H12)))=\"NON\",\"NC\",INDIRECT(_xlfn.CONCAT(\"'Intervenant \",O$5,\"'!$C\"&ROW($H12))))","v":"NC"},{"$f":"IF(INDIRECT(_xlfn.CONCAT(\"'Intervenant \",P$5,\"'!$B\"&ROW($H12)))=\"NON\",\"NC\",INDIRECT(_xlfn.CONCAT(\"'Intervenant \",P$5,\"'!$C\"&ROW($H12))))","v":"NC"},{"$f":"IF(INDIRECT(_xlfn.CONCAT(\"'Intervenant \",Q$5,\"'!$B\"&ROW($H12)))=\"NON\",\"NC\",INDIRECT(_xlfn.CONCAT(\"'Intervenant \",Q$5,\"'!$C\"&ROW($H12))))","v":"NC"},{"$f":"IF(INDIRECT(_xlfn.CONCAT(\"'Intervenant \",R$5,\"'!$B\"&ROW($H12)))=\"NON\",\"NC\",INDIRECT(_xlfn.CONCAT(\"'Intervenant \",R$5,\"'!$C\"&ROW($H12))))","v":"NC"},{"$f":"IF(INDIRECT(_xlfn.CONCAT(\"'Intervenant \",S$5,\"'!$B\"&ROW($H12)))=\"NON\",\"NC\",INDIRECT(_xlfn.CONCAT(\"'Intervenant \",S$5,\"'!$C\"&ROW($H12))))","v":"NC"},{"$f":"IF(INDIRECT(_xlfn.CONCAT(\"'Intervenant \",T$5,\"'!$B\"&ROW($H12)))=\"NON\",\"NC\",INDIRECT(_xlfn.CONCAT(\"'Intervenant \",T$5,\"'!$C\"&ROW($H12))))","v":"NC"},{"$f":"IF(INDIRECT(_xlfn.CONCAT(\"'Intervenant \",U$5,\"'!$B\"&ROW($H12)))=\"NON\",\"NC\",INDIRECT(_xlfn.CONCAT(\"'Intervenant \",U$5,\"'!$C\"&ROW($H12))))","v":"NC"},{"$f":"IF(INDIRECT(_xlfn.CONCAT(\"'Intervenant \",V$5,\"'!$B\"&ROW($H12)))=\"NON\",\"NC\",INDIRECT(_xlfn.CONCAT(\"'Intervenant \",V$5,\"'!$C\"&ROW($H12))))","v":"NC"},{"$f":"IF(INDIRECT(_xlfn.CONCAT(\"'Intervenant \",W$5,\"'!$B\"&ROW($H12)))=\"NON\",\"NC\",INDIRECT(_xlfn.CONCAT(\"'Intervenant \",W$5,\"'!$C\"&ROW($H12))))","v":"NC"},{"$f":"IF(INDIRECT(_xlfn.CONCAT(\"'Intervenant \",X$5,\"'!$B\"&ROW($H12)))=\"NON\",\"NC\",INDIRECT(_xlfn.CONCAT(\"'Intervenant \",X$5,\"'!$C\"&ROW($H12))))","v":"NC"},{"$f":"IF(INDIRECT(_xlfn.CONCAT(\"'Intervenant \",Y$5,\"'!$B\"&ROW($H12)))=\"NON\",\"NC\",INDIRECT(_xlfn.CONCAT(\"'Intervenant \",Y$5,\"'!$C\"&ROW($H12))))","v":"NC"},{"$f":"IF(INDIRECT(_xlfn.CONCAT(\"'Intervenant \",Z$5,\"'!$B\"&ROW($H12)))=\"NON\",\"NC\",INDIRECT(_xlfn.CONCAT(\"'Intervenant \",Z$5,\"'!$C\"&ROW($H12))))","v":"NC"},{"$f":"IF(INDIRECT(_xlfn.CONCAT(\"'Intervenant \",AA$5,\"'!$B\"&ROW($H12)))=\"NON\",\"NC\",INDIRECT(_xlfn.CONCAT(\"'Intervenant \",AA$5,\"'!$C\"&ROW($H12))))","v":"NC"},{"$f":"IF(INDIRECT(_xlfn.CONCAT(\"'Intervenant \",AB$5,\"'!$B\"&ROW($H12)))=\"NON\",\"NC\",INDIRECT(_xlfn.CONCAT(\"'Intervenant \",AB$5,\"'!$C\"&ROW($H12))))","v":"NC"}]
[null,null,"02","Programmation","TIM CIM BIM",{"$f":"IF(OR('Intervenant 1'!B13=\"OUI\",'Intervenant 2'!B13=\"OUI\",'Intervenant 3'!B13=\"OUI\",'Intervenant 4'!B13=\"OUI\",'Intervenant 5'!B13=\"OUI\",'Intervenant 6'!B13=\"OUI\",'Intervenant 7'!B13=\"OUI\",'Intervenant 8'!B13=\"OUI\",'Intervenant 9'!B13=\"OUI\",'Intervenant 10'!B13=\"OUI\",'Intervenant 11'!B13=\"OUI\",'Intervenant 12'!B13=\"OUI\",'Intervenant 13'!B13=\"OUI\",'Intervenant 14'!B13=\"OUI\",'Intervenant 15'!B13=\"OUI\",'Intervenant 16'!B13=\"OUI\",'Intervenant 17'!B13=\"OUI\",'Intervenant 18'!B13=\"OUI\",'Intervenant 19'!B13=\"OUI\",'Intervenant 20'!B13=\"OUI\"),\"OUI\",\"NON\")","v":"NON"},"NC",null,{"$f":"IF(INDIRECT(_xlfn.CONCAT(\"'Intervenant \",I$5,\"'!$B\"&ROW($H13)))=\"NON\",\"NC\",INDIRECT(_xlfn.CONCAT(\"'Intervenant \",I$5,\"'!$C\"&ROW($H13))))","v":"NC"},{"$f":"IF(INDIRECT(_xlfn.CONCAT(\"'Intervenant \",J$5,\"'!$B\"&ROW($H13)))=\"NON\",\"NC\",INDIRECT(_xlfn.CONCAT(\"'Intervenant \",J$5,\"'!$C\"&ROW($H13))))","v":"NC"},{"$f":"IF(INDIRECT(_xlfn.CONCAT(\"'Intervenant \",K$5,\"'!$B\"&ROW($H13)))=\"NON\",\"NC\",INDIRECT(_xlfn.CONCAT(\"'Intervenant \",K$5,\"'!$C\"&ROW($H13))))","v":"NC"},{"$f":"IF(INDIRECT(_xlfn.CONCAT(\"'Intervenant \",L$5,\"'!$B\"&ROW($H13)))=\"NON\",\"NC\",INDIRECT(_xlfn.CONCAT(\"'Intervenant \",L$5,\"'!$C\"&ROW($H13))))","v":"NC"},{"$f":"IF(INDIRECT(_xlfn.CONCAT(\"'Intervenant \",M$5,\"'!$B\"&ROW($H13)))=\"NON\",\"NC\",INDIRECT(_xlfn.CONCAT(\"'Intervenant \",M$5,\"'!$C\"&ROW($H13))))","v":"NC"},{"$f":"IF(INDIRECT(_xlfn.CONCAT(\"'Intervenant \",N$5,\"'!$B\"&ROW($H13)))=\"NON\",\"NC\",INDIRECT(_xlfn.CONCAT(\"'Intervenant \",N$5,\"'!$C\"&ROW($H13))))","v":"NC"},{"$f":"IF(INDIRECT(_xlfn.CONCAT(\"'Intervenant \",O$5,\"'!$B\"&ROW($H13)))=\"NON\",\"NC\",INDIRECT(_xlfn.CONCAT(\"'Intervenant \",O$5,\"'!$C\"&ROW($H13))))","v":"NC"},{"$f":"IF(INDIRECT(_xlfn.CONCAT(\"'Intervenant \",P$5,\"'!$B\"&ROW($H13)))=\"NON\",\"NC\",INDIRECT(_xlfn.CONCAT(\"'Intervenant \",P$5,\"'!$C\"&ROW($H13))))","v":"NC"},{"$f":"IF(INDIRECT(_xlfn.CONCAT(\"'Intervenant \",Q$5,\"'!$B\"&ROW($H13)))=\"NON\",\"NC\",INDIRECT(_xlfn.CONCAT(\"'Intervenant \",Q$5,\"'!$C\"&ROW($H13))))","v":"NC"},{"$f":"IF(INDIRECT(_xlfn.CONCAT(\"'Intervenant \",R$5,\"'!$B\"&ROW($H13)))=\"NON\",\"NC\",INDIRECT(_xlfn.CONCAT(\"'Intervenant \",R$5,\"'!$C\"&ROW($H13))))","v":"NC"},{"$f":"IF(INDIRECT(_xlfn.CONCAT(\"'Intervenant \",S$5,\"'!$B\"&ROW($H13)))=\"NON\",\"NC\",INDIRECT(_xlfn.CONCAT(\"'Intervenant \",S$5,\"'!$C\"&ROW($H13))))","v":"NC"},{"$f":"IF(INDIRECT(_xlfn.CONCAT(\"'Intervenant \",T$5,\"'!$B\"&ROW($H13)))=\"NON\",\"NC\",INDIRECT(_xlfn.CONCAT(\"'Intervenant \",T$5,\"'!$C\"&ROW($H13))))","v":"NC"},{"$f":"IF(INDIRECT(_xlfn.CONCAT(\"'Intervenant \",U$5,\"'!$B\"&ROW($H13)))=\"NON\",\"NC\",INDIRECT(_xlfn.CONCAT(\"'Intervenant \",U$5,\"'!$C\"&ROW($H13))))","v":"NC"},{"$f":"IF(INDIRECT(_xlfn.CONCAT(\"'Intervenant \",V$5,\"'!$B\"&ROW($H13)))=\"NON\",\"NC\",INDIRECT(_xlfn.CONCAT(\"'Intervenant \",V$5,\"'!$C\"&ROW($H13))))","v":"NC"},{"$f":"IF(INDIRECT(_xlfn.CONCAT(\"'Intervenant \",W$5,\"'!$B\"&ROW($H13)))=\"NON\",\"NC\",INDIRECT(_xlfn.CONCAT(\"'Intervenant \",W$5,\"'!$C\"&ROW($H13))))","v":"NC"},{"$f":"IF(INDIRECT(_xlfn.CONCAT(\"'Intervenant \",X$5,\"'!$B\"&ROW($H13)))=\"NON\",\"NC\",INDIRECT(_xlfn.CONCAT(\"'Intervenant \",X$5,\"'!$C\"&ROW($H13))))","v":"NC"},{"$f":"IF(INDIRECT(_xlfn.CONCAT(\"'Intervenant \",Y$5,\"'!$B\"&ROW($H13)))=\"NON\",\"NC\",INDIRECT(_xlfn.CONCAT(\"'Intervenant \",Y$5,\"'!$C\"&ROW($H13))))","v":"NC"},{"$f":"IF(INDIRECT(_xlfn.CONCAT(\"'Intervenant \",Z$5,\"'!$B\"&ROW($H13)))=\"NON\",\"NC\",INDIRECT(_xlfn.CONCAT(\"'Intervenant \",Z$5,\"'!$C\"&ROW($H13))))","v":"NC"},{"$f":"IF(INDIRECT(_xlfn.CONCAT(\"'Intervenant \",AA$5,\"'!$B\"&ROW($H13)))=\"NON\",\"NC\",INDIRECT(_xlfn.CONCAT(\"'Intervenant \",AA$5,\"'!$C\"&ROW($H13))))","v":"NC"},{"$f":"IF(INDIRECT(_xlfn.CONCAT(\"'Intervenant \",AB$5,\"'!$B\"&ROW($H13)))=\"NON\",\"NC\",INDIRECT(_xlfn.CONCAT(\"'Intervenant \",AB$5,\"'!$C\"&ROW($H13))))","v":"NC"}]
[null,null,"03","Co construction du projet","TIM CIM",{"$f":"IF(OR('Intervenant 1'!B14=\"OUI\",'Intervenant 2'!B14=\"OUI\",'Intervenant 3'!B14=\"OUI\",'Intervenant 4'!B14=\"OUI\",'Intervenant 5'!B14=\"OUI\",'Intervenant 6'!B14=\"OUI\",'Intervenant 7'!B14=\"OUI\",'Intervenant 8'!B14=\"OUI\",'Intervenant 9'!B14=\"OUI\",'Intervenant 10'!B14=\"OUI\",'Intervenant 11'!B14=\"OUI\",'Intervenant 12'!B14=\"OUI\",'Intervenant 13'!B14=\"OUI\",'Intervenant 14'!B14=\"OUI\",'Intervenant 15'!B14=\"OUI\",'Intervenant 16'!B14=\"OUI\",'Intervenant 17'!B14=\"OUI\",'Intervenant 18'!B14=\"OUI\",'Intervenant 19'!B14=\"OUI\",'Intervenant 20'!B14=\"OUI\"),\"OUI\",\"NON\")","v":"NON"},"NC",null,{"$f":"IF(INDIRECT(_xlfn.CONCAT(\"'Intervenant \",I$5,\"'!$B\"&ROW($H14)))=\"NON\",\"NC\",INDIRECT(_xlfn.CONCAT(\"'Intervenant \",I$5,\"'!$C\"&ROW($H14))))","v":"NC"},{"$f":"IF(INDIRECT(_xlfn.CONCAT(\"'Intervenant \",J$5,\"'!$B\"&ROW($H14)))=\"NON\",\"NC\",INDIRECT(_xlfn.CONCAT(\"'Intervenant \",J$5,\"'!$C\"&ROW($H14))))","v":"NC"},{"$f":"IF(INDIRECT(_xlfn.CONCAT(\"'Intervenant \",K$5,\"'!$B\"&ROW($H14)))=\"NON\",\"NC\",INDIRECT(_xlfn.CONCAT(\"'Intervenant \",K$5,\"'!$C\"&ROW($H14))))","v":"NC"},{"$f":"IF(INDIRECT(_xlfn.CONCAT(\"'Intervenant \",L$5,\"'!$B\"&ROW($H14)))=\"NON\",\"NC\",INDIRECT(_xlfn.CONCAT(\"'Intervenant \",L$5,\"'!$C\"&ROW($H14))))","v":"NC"},{"$f":"IF(INDIRECT(_xlfn.CONCAT(\"'Intervenant \",M$5,\"'!$B\"&ROW($H14)))=\"NON\",\"NC\",INDIRECT(_xlfn.CONCAT(\"'Intervenant \",M$5,\"'!$C\"&ROW($H14))))","v":"NC"},{"$f":"IF(INDIRECT(_xlfn.CONCAT(\"'Intervenant \",N$5,\"'!$B\"&ROW($H14)))=\"NON\",\"NC\",INDIRECT(_xlfn.CONCAT(\"'Intervenant \",N$5,\"'!$C\"&ROW($H14))))","v":"NC"},{"$f":"IF(INDIRECT(_xlfn.CONCAT(\"'Intervenant \",O$5,\"'!$B\"&ROW($H14)))=\"NON\",\"NC\",INDIRECT(_xlfn.CONCAT(\"'Intervenant \",O$5,\"'!$C\"&ROW($H14))))","v":"NC"},{"$f":"IF(INDIRECT(_xlfn.CONCAT(\"'Intervenant \",P$5,\"'!$B\"&ROW($H14)))=\"NON\",\"NC\",INDIRECT(_xlfn.CONCAT(\"'Intervenant \",P$5,\"'!$C\"&ROW($H14))))","v":"NC"},{"$f":"IF(INDIRECT(_xlfn.CONCAT(\"'Intervenant \",Q$5,\"'!$B\"&ROW($H14)))=\"NON\",\"NC\",INDIRECT(_xlfn.CONCAT(\"'Intervenant \",Q$5,\"'!$C\"&ROW($H14))))","v":"NC"},{"$f":"IF(INDIRECT(_xlfn.CONCAT(\"'Intervenant \",R$5,\"'!$B\"&ROW($H14)))=\"NON\",\"NC\",INDIRECT(_xlfn.CONCAT(\"'Intervenant \",R$5,\"'!$C\"&ROW($H14))))","v":"NC"},{"$f":"IF(INDIRECT(_xlfn.CONCAT(\"'Intervenant \",S$5,\"'!$B\"&ROW($H14)))=\"NON\",\"NC\",INDIRECT(_xlfn.CONCAT(\"'Intervenant \",S$5,\"'!$C\"&ROW($H14))))","v":"NC"},{"$f":"IF(INDIRECT(_xlfn.CONCAT(\"'Intervenant \",T$5,\"'!$B\"&ROW($H14)))=\"NON\",\"NC\",INDIRECT(_xlfn.CONCAT(\"'Intervenant \",T$5,\"'!$C\"&ROW($H14))))","v":"NC"},{"$f":"IF(INDIRECT(_xlfn.CONCAT(\"'Intervenant \",U$5,\"'!$B\"&ROW($H14)))=\"NON\",\"NC\",INDIRECT(_xlfn.CONCAT(\"'Intervenant \",U$5,\"'!$C\"&ROW($H14))))","v":"NC"},{"$f":"IF(INDIRECT(_xlfn.CONCAT(\"'Intervenant \",V$5,\"'!$B\"&ROW($H14)))=\"NON\",\"NC\",INDIRECT(_xlfn.CONCAT(\"'Intervenant \",V$5,\"'!$C\"&ROW($H14))))","v":"NC"},{"$f":"IF(INDIRECT(_xlfn.CONCAT(\"'Intervenant \",W$5,\"'!$B\"&ROW($H14)))=\"NON\",\"NC\",INDIRECT(_xlfn.CONCAT(\"'Intervenant \",W$5,\"'!$C\"&ROW($H14))))","v":"NC"},{"$f":"IF(INDIRECT(_xlfn.CONCAT(\"'Intervenant \",X$5,\"'!$B\"&ROW($H14)))=\"NON\",\"NC\",INDIRECT(_xlfn.CONCAT(\"'Intervenant \",X$5,\"'!$C\"&ROW($H14))))","v":"NC"},{"$f":"IF(INDIRECT(_xlfn.CONCAT(\"'Intervenant \",Y$5,\"'!$B\"&ROW($H14)))=\"NON\",\"NC\",INDIRECT(_xlfn.CONCAT(\"'Intervenant \",Y$5,\"'!$C\"&ROW($H14))))","v":"NC"},{"$f":"IF(INDIRECT(_xlfn.CONCAT(\"'Intervenant \",Z$5,\"'!$B\"&ROW($H14)))=\"NON\",\"NC\",INDIRECT(_xlfn.CONCAT(\"'Intervenant \",Z$5,\"'!$C\"&ROW($H14))))","v":"NC"},{"$f":"IF(INDIRECT(_xlfn.CONCAT(\"'Intervenant \",AA$5,\"'!$B\"&ROW($H14)))=\"NON\",\"NC\",INDIRECT(_xlfn.CONCAT(\"'Intervenant \",AA$5,\"'!$C\"&ROW($H14))))","v":"NC"},{"$f":"IF(INDIRECT(_xlfn.CONCAT(\"'Intervenant \",AB$5,\"'!$B\"&ROW($H14)))=\"NON\",\"NC\",INDIRECT(_xlfn.CONCAT(\"'Intervenant \",AB$5,\"'!$C\"&ROW($H14))))","v":"NC"}]
[null,null,"04","Modélisation du site environnant (existant)","TIM CIM",{"$f":"IF(OR('Intervenant 1'!B15=\"OUI\",'Intervenant 2'!B15=\"OUI\",'Intervenant 3'!B15=\"OUI\",'Intervenant 4'!B15=\"OUI\",'Intervenant 5'!B15=\"OUI\",'Intervenant 6'!B15=\"OUI\",'Intervenant 7'!B15=\"OUI\",'Intervenant 8'!B15=\"OUI\",'Intervenant 9'!B15=\"OUI\",'Intervenant 10'!B15=\"OUI\",'Intervenant 11'!B15=\"OUI\",'Intervenant 12'!B15=\"OUI\",'Intervenant 13'!B15=\"OUI\",'Intervenant 14'!B15=\"OUI\",'Intervenant 15'!B15=\"OUI\",'Intervenant 16'!B15=\"OUI\",'Intervenant 17'!B15=\"OUI\",'Intervenant 18'!B15=\"OUI\",'Intervenant 19'!B15=\"OUI\",'Intervenant 20'!B15=\"OUI\"),\"OUI\",\"NON\")","v":"NON"},"NC",null,{"$f":"IF(INDIRECT(_xlfn.CONCAT(\"'Intervenant \",I$5,\"'!$B\"&ROW($H15)))=\"NON\",\"NC\",INDIRECT(_xlfn.CONCAT(\"'Intervenant \",I$5,\"'!$C\"&ROW($H15))))","v":"NC"},{"$f":"IF(INDIRECT(_xlfn.CONCAT(\"'Intervenant \",J$5,\"'!$B\"&ROW($H15)))=\"NON\",\"NC\",INDIRECT(_xlfn.CONCAT(\"'Intervenant \",J$5,\"'!$C\"&ROW($H15))))","v":"NC"},{"$f":"IF(INDIRECT(_xlfn.CONCAT(\"'Intervenant \",K$5,\"'!$B\"&ROW($H15)))=\"NON\",\"NC\",INDIRECT(_xlfn.CONCAT(\"'Intervenant \",K$5,\"'!$C\"&ROW($H15))))","v":"NC"},{"$f":"IF(INDIRECT(_xlfn.CONCAT(\"'Intervenant \",L$5,\"'!$B\"&ROW($H15)))=\"NON\",\"NC\",INDIRECT(_xlfn.CONCAT(\"'Intervenant \",L$5,\"'!$C\"&ROW($H15))))","v":"NC"},{"$f":"IF(INDIRECT(_xlfn.CONCAT(\"'Intervenant \",M$5,\"'!$B\"&ROW($H15)))=\"NON\",\"NC\",INDIRECT(_xlfn.CONCAT(\"'Intervenant \",M$5,\"'!$C\"&ROW($H15))))","v":"NC"},{"$f":"IF(INDIRECT(_xlfn.CONCAT(\"'Intervenant \",N$5,\"'!$B\"&ROW($H15)))=\"NON\",\"NC\",INDIRECT(_xlfn.CONCAT(\"'Intervenant \",N$5,\"'!$C\"&ROW($H15))))","v":"NC"},{"$f":"IF(INDIRECT(_xlfn.CONCAT(\"'Intervenant \",O$5,\"'!$B\"&ROW($H15)))=\"NON\",\"NC\",INDIRECT(_xlfn.CONCAT(\"'Intervenant \",O$5,\"'!$C\"&ROW($H15))))","v":"NC"},{"$f":"IF(INDIRECT(_xlfn.CONCAT(\"'Intervenant \",P$5,\"'!$B\"&ROW($H15)))=\"NON\",\"NC\",INDIRECT(_xlfn.CONCAT(\"'Intervenant \",P$5,\"'!$C\"&ROW($H15))))","v":"NC"},{"$f":"IF(INDIRECT(_xlfn.CONCAT(\"'Intervenant \",Q$5,\"'!$B\"&ROW($H15)))=\"NON\",\"NC\",INDIRECT(_xlfn.CONCAT(\"'Intervenant \",Q$5,\"'!$C\"&ROW($H15))))","v":"NC"},{"$f":"IF(INDIRECT(_xlfn.CONCAT(\"'Intervenant \",R$5,\"'!$B\"&ROW($H15)))=\"NON\",\"NC\",INDIRECT(_xlfn.CONCAT(\"'Intervenant \",R$5,\"'!$C\"&ROW($H15))))","v":"NC"},{"$f":"IF(INDIRECT(_xlfn.CONCAT(\"'Intervenant \",S$5,\"'!$B\"&ROW($H15)))=\"NON\",\"NC\",INDIRECT(_xlfn.CONCAT(\"'Intervenant \",S$5,\"'!$C\"&ROW($H15))))","v":"NC"},{"$f":"IF(INDIRECT(_xlfn.CONCAT(\"'Intervenant \",T$5,\"'!$B\"&ROW($H15)))=\"NON\",\"NC\",INDIRECT(_xlfn.CONCAT(\"'Intervenant \",T$5,\"'!$C\"&ROW($H15))))","v":"NC"},{"$f":"IF(INDIRECT(_xlfn.CONCAT(\"'Intervenant \",U$5,\"'!$B\"&ROW($H15)))=\"NON\",\"NC\",INDIRECT(_xlfn.CONCAT(\"'Intervenant \",U$5,\"'!$C\"&ROW($H15))))","v":"NC"},{"$f":"IF(INDIRECT(_xlfn.CONCAT(\"'Intervenant \",V$5,\"'!$B\"&ROW($H15)))=\"NON\",\"NC\",INDIRECT(_xlfn.CONCAT(\"'Intervenant \",V$5,\"'!$C\"&ROW($H15))))","v":"NC"},{"$f":"IF(INDIRECT(_xlfn.CONCAT(\"'Intervenant \",W$5,\"'!$B\"&ROW($H15)))=\"NON\",\"NC\",INDIRECT(_xlfn.CONCAT(\"'Intervenant \",W$5,\"'!$C\"&ROW($H15))))","v":"NC"},{"$f":"IF(INDIRECT(_xlfn.CONCAT(\"'Intervenant \",X$5,\"'!$B\"&ROW($H15)))=\"NON\",\"NC\",INDIRECT(_xlfn.CONCAT(\"'Intervenant \",X$5,\"'!$C\"&ROW($H15))))","v":"NC"},{"$f":"IF(INDIRECT(_xlfn.CONCAT(\"'Intervenant \",Y$5,\"'!$B\"&ROW($H15)))=\"NON\",\"NC\",INDIRECT(_xlfn.CONCAT(\"'Intervenant \",Y$5,\"'!$C\"&ROW($H15))))","v":"NC"},{"$f":"IF(INDIRECT(_xlfn.CONCAT(\"'Intervenant \",Z$5,\"'!$B\"&ROW($H15)))=\"NON\",\"NC\",INDIRECT(_xlfn.CONCAT(\"'Intervenant \",Z$5,\"'!$C\"&ROW($H15))))","v":"NC"},{"$f":"IF(INDIRECT(_xlfn.CONCAT(\"'Intervenant \",AA$5,\"'!$B\"&ROW($H15)))=\"NON\",\"NC\",INDIRECT(_xlfn.CONCAT(\"'Intervenant \",AA$5,\"'!$C\"&ROW($H15))))","v":"NC"},{"$f":"IF(INDIRECT(_xlfn.CONCAT(\"'Intervenant \",AB$5,\"'!$B\"&ROW($H15)))=\"NON\",\"NC\",INDIRECT(_xlfn.CONCAT(\"'Intervenant \",AB$5,\"'!$C\"&ROW($H15))))","v":"NC"}]
[null,"CONCEPTION ET REALISATION","05","Diagnostic contextuel\nEtude territoriale de l'existant","TIM CIM",{"$f":"IF(OR('Intervenant 1'!B16=\"OUI\",'Intervenant 2'!B16=\"OUI\",'Intervenant 3'!B16=\"OUI\",'Intervenant 4'!B16=\"OUI\",'Intervenant 5'!B16=\"OUI\",'Intervenant 6'!B16=\"OUI\",'Intervenant 7'!B16=\"OUI\",'Intervenant 8'!B16=\"OUI\",'Intervenant 9'!B16=\"OUI\",'Intervenant 10'!B16=\"OUI\",'Intervenant 11'!B16=\"OUI\",'Intervenant 12'!B16=\"OUI\",'Intervenant 13'!B16=\"OUI\",'Intervenant 14'!B16=\"OUI\",'Intervenant 15'!B16=\"OUI\",'Intervenant 16'!B16=\"OUI\",'Intervenant 17'!B16=\"OUI\",'Intervenant 18'!B16=\"OUI\",'Intervenant 19'!B16=\"OUI\",'Intervenant 20'!B16=\"OUI\"),\"OUI\",\"NON\")","v":"NON"},"NC",null,{"$f":"IF(INDIRECT(_xlfn.CONCAT(\"'Intervenant \",I$5,\"'!$B\"&ROW($H16)))=\"NON\",\"NC\",INDIRECT(_xlfn.CONCAT(\"'Intervenant \",I$5,\"'!$C\"&ROW($H16))))","v":"NC"},{"$f":"IF(INDIRECT(_xlfn.CONCAT(\"'Intervenant \",J$5,\"'!$B\"&ROW($H16)))=\"NON\",\"NC\",INDIRECT(_xlfn.CONCAT(\"'Intervenant \",J$5,\"'!$C\"&ROW($H16))))","v":"NC"},{"$f":"IF(INDIRECT(_xlfn.CONCAT(\"'Intervenant \",K$5,\"'!$B\"&ROW($H16)))=\"NON\",\"NC\",INDIRECT(_xlfn.CONCAT(\"'Intervenant \",K$5,\"'!$C\"&ROW($H16))))","v":"NC"},{"$f":"IF(INDIRECT(_xlfn.CONCAT(\"'Intervenant \",L$5,\"'!$B\"&ROW($H16)))=\"NON\",\"NC\",INDIRECT(_xlfn.CONCAT(\"'Intervenant \",L$5,\"'!$C\"&ROW($H16))))","v":"NC"},{"$f":"IF(INDIRECT(_xlfn.CONCAT(\"'Intervenant \",M$5,\"'!$B\"&ROW($H16)))=\"NON\",\"NC\",INDIRECT(_xlfn.CONCAT(\"'Intervenant \",M$5,\"'!$C\"&ROW($H16))))","v":"NC"},{"$f":"IF(INDIRECT(_xlfn.CONCAT(\"'Intervenant \",N$5,\"'!$B\"&ROW($H16)))=\"NON\",\"NC\",INDIRECT(_xlfn.CONCAT(\"'Intervenant \",N$5,\"'!$C\"&ROW($H16))))","v":"NC"},{"$f":"IF(INDIRECT(_xlfn.CONCAT(\"'Intervenant \",O$5,\"'!$B\"&ROW($H16)))=\"NON\",\"NC\",INDIRECT(_xlfn.CONCAT(\"'Intervenant \",O$5,\"'!$C\"&ROW($H16))))","v":"NC"},{"$f":"IF(INDIRECT(_xlfn.CONCAT(\"'Intervenant \",P$5,\"'!$B\"&ROW($H16)))=\"NON\",\"NC\",INDIRECT(_xlfn.CONCAT(\"'Intervenant \",P$5,\"'!$C\"&ROW($H16))))","v":"NC"},{"$f":"IF(INDIRECT(_xlfn.CONCAT(\"'Intervenant \",Q$5,\"'!$B\"&ROW($H16)))=\"NON\",\"NC\",INDIRECT(_xlfn.CONCAT(\"'Intervenant \",Q$5,\"'!$C\"&ROW($H16))))","v":"NC"},{"$f":"IF(INDIRECT(_xlfn.CONCAT(\"'Intervenant \",R$5,\"'!$B\"&ROW($H16)))=\"NON\",\"NC\",INDIRECT(_xlfn.CONCAT(\"'Intervenant \",R$5,\"'!$C\"&ROW($H16))))","v":"NC"},{"$f":"IF(INDIRECT(_xlfn.CONCAT(\"'Intervenant \",S$5,\"'!$B\"&ROW($H16)))=\"NON\",\"NC\",INDIRECT(_xlfn.CONCAT(\"'Intervenant \",S$5,\"'!$C\"&ROW($H16))))","v":"NC"},{"$f":"IF(INDIRECT(_xlfn.CONCAT(\"'Intervenant \",T$5,\"'!$B\"&ROW($H16)))=\"NON\",\"NC\",INDIRECT(_xlfn.CONCAT(\"'Intervenant \",T$5,\"'!$C\"&ROW($H16))))","v":"NC"},{"$f":"IF(INDIRECT(_xlfn.CONCAT(\"'Intervenant \",U$5,\"'!$B\"&ROW($H16)))=\"NON\",\"NC\",INDIRECT(_xlfn.CONCAT(\"'Intervenant \",U$5,\"'!$C\"&ROW($H16))))","v":"NC"},{"$f":"IF(INDIRECT(_xlfn.CONCAT(\"'Intervenant \",V$5,\"'!$B\"&ROW($H16)))=\"NON\",\"NC\",INDIRECT(_xlfn.CONCAT(\"'Intervenant \",V$5,\"'!$C\"&ROW($H16))))","v":"NC"},{"$f":"IF(INDIRECT(_xlfn.CONCAT(\"'Intervenant \",W$5,\"'!$B\"&ROW($H16)))=\"NON\",\"NC\",INDIRECT(_xlfn.CONCAT(\"'Intervenant \",W$5,\"'!$C\"&ROW($H16))))","v":"NC"},{"$f":"IF(INDIRECT(_xlfn.CONCAT(\"'Intervenant \",X$5,\"'!$B\"&ROW($H16)))=\"NON\",\"NC\",INDIRECT(_xlfn.CONCAT(\"'Intervenant \",X$5,\"'!$C\"&ROW($H16))))","v":"NC"},{"$f":"IF(INDIRECT(_xlfn.CONCAT(\"'Intervenant \",Y$5,\"'!$B\"&ROW($H16)))=\"NON\",\"NC\",INDIRECT(_xlfn.CONCAT(\"'Intervenant \",Y$5,\"'!$C\"&ROW($H16))))","v":"NC"},{"$f":"IF(INDIRECT(_xlfn.CONCAT(\"'Intervenant \",Z$5,\"'!$B\"&ROW($H16)))=\"NON\",\"NC\",INDIRECT(_xlfn.CONCAT(\"'Intervenant \",Z$5,\"'!$C\"&ROW($H16))))","v":"NC"},{"$f":"IF(INDIRECT(_xlfn.CONCAT(\"'Intervenant \",AA$5,\"'!$B\"&ROW($H16)))=\"NON\",\"NC\",INDIRECT(_xlfn.CONCAT(\"'Intervenant \",AA$5,\"'!$C\"&ROW($H16))))","v":"NC"},{"$f":"IF(INDIRECT(_xlfn.CONCAT(\"'Intervenant \",AB$5,\"'!$B\"&ROW($H16)))=\"NON\",\"NC\",INDIRECT(_xlfn.CONCAT(\"'Intervenant \",AB$5,\"'!$C\"&ROW($H16))))","v":"NC"}]
[null,null,"06","Modélisation du projet","TIM CIM BIM",{"$f":"IF(OR('Intervenant 1'!B17=\"OUI\",'Intervenant 2'!B17=\"OUI\",'Intervenant 3'!B17=\"OUI\",'Intervenant 4'!B17=\"OUI\",'Intervenant 5'!B17=\"OUI\",'Intervenant 6'!B17=\"OUI\",'Intervenant 7'!B17=\"OUI\",'Intervenant 8'!B17=\"OUI\",'Intervenant 9'!B17=\"OUI\",'Intervenant 10'!B17=\"OUI\",'Intervenant 11'!B17=\"OUI\",'Intervenant 12'!B17=\"OUI\",'Intervenant 13'!B17=\"OUI\",'Intervenant 14'!B17=\"OUI\",'Intervenant 15'!B17=\"OUI\",'Intervenant 16'!B17=\"OUI\",'Intervenant 17'!B17=\"OUI\",'Intervenant 18'!B17=\"OUI\",'Intervenant 19'!B17=\"OUI\",'Intervenant 20'!B17=\"OUI\"),\"OUI\",\"NON\")","v":"NON"},"NC",null,{"$f":"IF(INDIRECT(_xlfn.CONCAT(\"'Intervenant \",I$5,\"'!$B\"&ROW($H17)))=\"NON\",\"NC\",INDIRECT(_xlfn.CONCAT(\"'Intervenant \",I$5,\"'!$C\"&ROW($H17))))","v":"NC"},{"$f":"IF(INDIRECT(_xlfn.CONCAT(\"'Intervenant \",J$5,\"'!$B\"&ROW($H17)))=\"NON\",\"NC\",INDIRECT(_xlfn.CONCAT(\"'Intervenant \",J$5,\"'!$C\"&ROW($H17))))","v":"NC"},{"$f":"IF(INDIRECT(_xlfn.CONCAT(\"'Intervenant \",K$5,\"'!$B\"&ROW($H17)))=\"NON\",\"NC\",INDIRECT(_xlfn.CONCAT(\"'Intervenant \",K$5,\"'!$C\"&ROW($H17))))","v":"NC"},{"$f":"IF(INDIRECT(_xlfn.CONCAT(\"'Intervenant \",L$5,\"'!$B\"&ROW($H17)))=\"NON\",\"NC\",INDIRECT(_xlfn.CONCAT(\"'Intervenant \",L$5,\"'!$C\"&ROW($H17))))","v":"NC"},{"$f":"IF(INDIRECT(_xlfn.CONCAT(\"'Intervenant \",M$5,\"'!$B\"&ROW($H17)))=\"NON\",\"NC\",INDIRECT(_xlfn.CONCAT(\"'Intervenant \",M$5,\"'!$C\"&ROW($H17))))","v":"NC"},{"$f":"IF(INDIRECT(_xlfn.CONCAT(\"'Intervenant \",N$5,\"'!$B\"&ROW($H17)))=\"NON\",\"NC\",INDIRECT(_xlfn.CONCAT(\"'Intervenant \",N$5,\"'!$C\"&ROW($H17))))","v":"NC"},{"$f":"IF(INDIRECT(_xlfn.CONCAT(\"'Intervenant \",O$5,\"'!$B\"&ROW($H17)))=\"NON\",\"NC\",INDIRECT(_xlfn.CONCAT(\"'Intervenant \",O$5,\"'!$C\"&ROW($H17))))","v":"NC"},{"$f":"IF(INDIRECT(_xlfn.CONCAT(\"'Intervenant \",P$5,\"'!$B\"&ROW($H17)))=\"NON\",\"NC\",INDIRECT(_xlfn.CONCAT(\"'Intervenant \",P$5,\"'!$C\"&ROW($H17))))","v":"NC"},{"$f":"IF(INDIRECT(_xlfn.CONCAT(\"'Intervenant \",Q$5,\"'!$B\"&ROW($H17)))=\"NON\",\"NC\",INDIRECT(_xlfn.CONCAT(\"'Intervenant \",Q$5,\"'!$C\"&ROW($H17))))","v":"NC"},{"$f":"IF(INDIRECT(_xlfn.CONCAT(\"'Intervenant \",R$5,\"'!$B\"&ROW($H17)))=\"NON\",\"NC\",INDIRECT(_xlfn.CONCAT(\"'Intervenant \",R$5,\"'!$C\"&ROW($H17))))","v":"NC"},{"$f":"IF(INDIRECT(_xlfn.CONCAT(\"'Intervenant \",S$5,\"'!$B\"&ROW($H17)))=\"NON\",\"NC\",INDIRECT(_xlfn.CONCAT(\"'Intervenant \",S$5,\"'!$C\"&ROW($H17))))","v":"NC"},{"$f":"IF(INDIRECT(_xlfn.CONCAT(\"'Intervenant \",T$5,\"'!$B\"&ROW($H17)))=\"NON\",\"NC\",INDIRECT(_xlfn.CONCAT(\"'Intervenant \",T$5,\"'!$C\"&ROW($H17))))","v":"NC"},{"$f":"IF(INDIRECT(_xlfn.CONCAT(\"'Intervenant \",U$5,\"'!$B\"&ROW($H17)))=\"NON\",\"NC\",INDIRECT(_xlfn.CONCAT(\"'Intervenant \",U$5,\"'!$C\"&ROW($H17))))","v":"NC"},{"$f":"IF(INDIRECT(_xlfn.CONCAT(\"'Intervenant \",V$5,\"'!$B\"&ROW($H17)))=\"NON\",\"NC\",INDIRECT(_xlfn.CONCAT(\"'Intervenant \",V$5,\"'!$C\"&ROW($H17))))","v":"NC"},{"$f":"IF(INDIRECT(_xlfn.CONCAT(\"'Intervenant \",W$5,\"'!$B\"&ROW($H17)))=\"NON\",\"NC\",INDIRECT(_xlfn.CONCAT(\"'Intervenant \",W$5,\"'!$C\"&ROW($H17))))","v":"NC"},{"$f":"IF(INDIRECT(_xlfn.CONCAT(\"'Intervenant \",X$5,\"'!$B\"&ROW($H17)))=\"NON\",\"NC\",INDIRECT(_xlfn.CONCAT(\"'Intervenant \",X$5,\"'!$C\"&ROW($H17))))","v":"NC"},{"$f":"IF(INDIRECT(_xlfn.CONCAT(\"'Intervenant \",Y$5,\"'!$B\"&ROW($H17)))=\"NON\",\"NC\",INDIRECT(_xlfn.CONCAT(\"'Intervenant \",Y$5,\"'!$C\"&ROW($H17))))","v":"NC"},{"$f":"IF(INDIRECT(_xlfn.CONCAT(\"'Intervenant \",Z$5,\"'!$B\"&ROW($H17)))=\"NON\",\"NC\",INDIRECT(_xlfn.CONCAT(\"'Intervenant \",Z$5,\"'!$C\"&ROW($H17))))","v":"NC"},{"$f":"IF(INDIRECT(_xlfn.CONCAT(\"'Intervenant \",AA$5,\"'!$B\"&ROW($H17)))=\"NON\",\"NC\",INDIRECT(_xlfn.CONCAT(\"'Intervenant \",AA$5,\"'!$C\"&ROW($H17))))","v":"NC"},{"$f":"IF(INDIRECT(_xlfn.CONCAT(\"'Intervenant \",AB$5,\"'!$B\"&ROW($H17)))=\"NON\",\"NC\",INDIRECT(_xlfn.CONCAT(\"'Intervenant \",AB$5,\"'!$C\"&ROW($H17))))","v":"NC"}]
[null,null,"07","Concertation externe avec les intervenants (usagers notamment)","TIM CIM BIM",{"$f":"IF(OR('Intervenant 1'!B18=\"OUI\",'Intervenant 2'!B18=\"OUI\",'Intervenant 3'!B18=\"OUI\",'Intervenant 4'!B18=\"OUI\",'Intervenant 5'!B18=\"OUI\",'Intervenant 6'!B18=\"OUI\",'Intervenant 7'!B18=\"OUI\",'Intervenant 8'!B18=\"OUI\",'Intervenant 9'!B18=\"OUI\",'Intervenant 10'!B18=\"OUI\",'Intervenant 11'!B18=\"OUI\",'Intervenant 12'!B18=\"OUI\",'Intervenant 13'!B18=\"OUI\",'Intervenant 14'!B18=\"OUI\",'Intervenant 15'!B18=\"OUI\",'Intervenant 16'!B18=\"OUI\",'Intervenant 17'!B18=\"OUI\",'Intervenant 18'!B18=\"OUI\",'Intervenant 19'!B18=\"OUI\",'Intervenant 20'!B18=\"OUI\"),\"OUI\",\"NON\")","v":"NON"},"NC",null,{"$f":"IF(INDIRECT(_xlfn.CONCAT(\"'Intervenant \",I$5,\"'!$B\"&ROW($H18)))=\"NON\",\"NC\",INDIRECT(_xlfn.CONCAT(\"'Intervenant \",I$5,\"'!$C\"&ROW($H18))))","v":"NC"},{"$f":"IF(INDIRECT(_xlfn.CONCAT(\"'Intervenant \",J$5,\"'!$B\"&ROW($H18)))=\"NON\",\"NC\",INDIRECT(_xlfn.CONCAT(\"'Intervenant \",J$5,\"'!$C\"&ROW($H18))))","v":"NC"},{"$f":"IF(INDIRECT(_xlfn.CONCAT(\"'Intervenant \",K$5,\"'!$B\"&ROW($H18)))=\"NON\",\"NC\",INDIRECT(_xlfn.CONCAT(\"'Intervenant \",K$5,\"'!$C\"&ROW($H18))))","v":"NC"},{"$f":"IF(INDIRECT(_xlfn.CONCAT(\"'Intervenant \",L$5,\"'!$B\"&ROW($H18)))=\"NON\",\"NC\",INDIRECT(_xlfn.CONCAT(\"'Intervenant \",L$5,\"'!$C\"&ROW($H18))))","v":"NC"},{"$f":"IF(INDIRECT(_xlfn.CONCAT(\"'Intervenant \",M$5,\"'!$B\"&ROW($H18)))=\"NON\",\"NC\",INDIRECT(_xlfn.CONCAT(\"'Intervenant \",M$5,\"'!$C\"&ROW($H18))))","v":"NC"},{"$f":"IF(INDIRECT(_xlfn.CONCAT(\"'Intervenant \",N$5,\"'!$B\"&ROW($H18)))=\"NON\",\"NC\",INDIRECT(_xlfn.CONCAT(\"'Intervenant \",N$5,\"'!$C\"&ROW($H18))))","v":"NC"},{"$f":"IF(INDIRECT(_xlfn.CONCAT(\"'Intervenant \",O$5,\"'!$B\"&ROW($H18)))=\"NON\",\"NC\",INDIRECT(_xlfn.CONCAT(\"'Intervenant \",O$5,\"'!$C\"&ROW($H18))))","v":"NC"},{"$f":"IF(INDIRECT(_xlfn.CONCAT(\"'Intervenant \",P$5,\"'!$B\"&ROW($H18)))=\"NON\",\"NC\",INDIRECT(_xlfn.CONCAT(\"'Intervenant \",P$5,\"'!$C\"&ROW($H18))))","v":"NC"},{"$f":"IF(INDIRECT(_xlfn.CONCAT(\"'Intervenant \",Q$5,\"'!$B\"&ROW($H18)))=\"NON\",\"NC\",INDIRECT(_xlfn.CONCAT(\"'Intervenant \",Q$5,\"'!$C\"&ROW($H18))))","v":"NC"},{"$f":"IF(INDIRECT(_xlfn.CONCAT(\"'Intervenant \",R$5,\"'!$B\"&ROW($H18)))=\"NON\",\"NC\",INDIRECT(_xlfn.CONCAT(\"'Intervenant \",R$5,\"'!$C\"&ROW($H18))))","v":"NC"},{"$f":"IF(INDIRECT(_xlfn.CONCAT(\"'Intervenant \",S$5,\"'!$B\"&ROW($H18)))=\"NON\",\"NC\",INDIRECT(_xlfn.CONCAT(\"'Intervenant \",S$5,\"'!$C\"&ROW($H18))))","v":"NC"},{"$f":"IF(INDIRECT(_xlfn.CONCAT(\"'Intervenant \",T$5,\"'!$B\"&ROW($H18)))=\"NON\",\"NC\",INDIRECT(_xlfn.CONCAT(\"'Intervenant \",T$5,\"'!$C\"&ROW($H18))))","v":"NC"},{"$f":"IF(INDIRECT(_xlfn.CONCAT(\"'Intervenant \",U$5,\"'!$B\"&ROW($H18)))=\"NON\",\"NC\",INDIRECT(_xlfn.CONCAT(\"'Intervenant \",U$5,\"'!$C\"&ROW($H18))))","v":"NC"},{"$f":"IF(INDIRECT(_xlfn.CONCAT(\"'Intervenant \",V$5,\"'!$B\"&ROW($H18)))=\"NON\",\"NC\",INDIRECT(_xlfn.CONCAT(\"'Intervenant \",V$5,\"'!$C\"&ROW($H18))))","v":"NC"},{"$f":"IF(INDIRECT(_xlfn.CONCAT(\"'Intervenant \",W$5,\"'!$B\"&ROW($H18)))=\"NON\",\"NC\",INDIRECT(_xlfn.CONCAT(\"'Intervenant \",W$5,\"'!$C\"&ROW($H18))))","v":"NC"},{"$f":"IF(INDIRECT(_xlfn.CONCAT(\"'Intervenant \",X$5,\"'!$B\"&ROW($H18)))=\"NON\",\"NC\",INDIRECT(_xlfn.CONCAT(\"'Intervenant \",X$5,\"'!$C\"&ROW($H18))))","v":"NC"},{"$f":"IF(INDIRECT(_xlfn.CONCAT(\"'Intervenant \",Y$5,\"'!$B\"&ROW($H18)))=\"NON\",\"NC\",INDIRECT(_xlfn.CONCAT(\"'Intervenant \",Y$5,\"'!$C\"&ROW($H18))))","v":"NC"},{"$f":"IF(INDIRECT(_xlfn.CONCAT(\"'Intervenant \",Z$5,\"'!$B\"&ROW($H18)))=\"NON\",\"NC\",INDIRECT(_xlfn.CONCAT(\"'Intervenant \",Z$5,\"'!$C\"&ROW($H18))))","v":"NC"},{"$f":"IF(INDIRECT(_xlfn.CONCAT(\"'Intervenant \",AA$5,\"'!$B\"&ROW($H18)))=\"NON\",\"NC\",INDIRECT(_xlfn.CONCAT(\"'Intervenant \",AA$5,\"'!$C\"&ROW($H18))))","v":"NC"},{"$f":"IF(INDIRECT(_xlfn.CONCAT(\"'Intervenant \",AB$5,\"'!$B\"&ROW($H18)))=\"NON\",\"NC\",INDIRECT(_xlfn.CONCAT(\"'Intervenant \",AB$5,\"'!$C\"&ROW($H18))))","v":"NC"}]
[null,null,"08","Revues de projet","TIM CIM BIM",{"$f":"IF(OR('Intervenant 1'!B19=\"OUI\",'Intervenant 2'!B19=\"OUI\",'Intervenant 3'!B19=\"OUI\",'Intervenant 4'!B19=\"OUI\",'Intervenant 5'!B19=\"OUI\",'Intervenant 6'!B19=\"OUI\",'Intervenant 7'!B19=\"OUI\",'Intervenant 8'!B19=\"OUI\",'Intervenant 9'!B19=\"OUI\",'Intervenant 10'!B19=\"OUI\",'Intervenant 11'!B19=\"OUI\",'Intervenant 12'!B19=\"OUI\",'Intervenant 13'!B19=\"OUI\",'Intervenant 14'!B19=\"OUI\",'Intervenant 15'!B19=\"OUI\",'Intervenant 16'!B19=\"OUI\",'Intervenant 17'!B19=\"OUI\",'Intervenant 18'!B19=\"OUI\",'Intervenant 19'!B19=\"OUI\",'Intervenant 20'!B19=\"OUI\"),\"OUI\",\"NON\")","v":"NON"},"NC",null,{"$f":"IF(INDIRECT(_xlfn.CONCAT(\"'Intervenant \",I$5,\"'!$B\"&ROW($H19)))=\"NON\",\"NC\",INDIRECT(_xlfn.CONCAT(\"'Intervenant \",I$5,\"'!$C\"&ROW($H19))))","v":"NC"},{"$f":"IF(INDIRECT(_xlfn.CONCAT(\"'Intervenant \",J$5,\"'!$B\"&ROW($H19)))=\"NON\",\"NC\",INDIRECT(_xlfn.CONCAT(\"'Intervenant \",J$5,\"'!$C\"&ROW($H19))))","v":"NC"},{"$f":"IF(INDIRECT(_xlfn.CONCAT(\"'Intervenant \",K$5,\"'!$B\"&ROW($H19)))=\"NON\",\"NC\",INDIRECT(_xlfn.CONCAT(\"'Intervenant \",K$5,\"'!$C\"&ROW($H19))))","v":"NC"},{"$f":"IF(INDIRECT(_xlfn.CONCAT(\"'Intervenant \",L$5,\"'!$B\"&ROW($H19)))=\"NON\",\"NC\",INDIRECT(_xlfn.CONCAT(\"'Intervenant \",L$5,\"'!$C\"&ROW($H19))))","v":"NC"},{"$f":"IF(INDIRECT(_xlfn.CONCAT(\"'Intervenant \",M$5,\"'!$B\"&ROW($H19)))=\"NON\",\"NC\",INDIRECT(_xlfn.CONCAT(\"'Intervenant \",M$5,\"'!$C\"&ROW($H19))))","v":"NC"},{"$f":"IF(INDIRECT(_xlfn.CONCAT(\"'Intervenant \",N$5,\"'!$B\"&ROW($H19)))=\"NON\",\"NC\",INDIRECT(_xlfn.CONCAT(\"'Intervenant \",N$5,\"'!$C\"&ROW($H19))))","v":"NC"},{"$f":"IF(INDIRECT(_xlfn.CONCAT(\"'Intervenant \",O$5,\"'!$B\"&ROW($H19)))=\"NON\",\"NC\",INDIRECT(_xlfn.CONCAT(\"'Intervenant \",O$5,\"'!$C\"&ROW($H19))))","v":"NC"},{"$f":"IF(INDIRECT(_xlfn.CONCAT(\"'Intervenant \",P$5,\"'!$B\"&ROW($H19)))=\"NON\",\"NC\",INDIRECT(_xlfn.CONCAT(\"'Intervenant \",P$5,\"'!$C\"&ROW($H19))))","v":"NC"},{"$f":"IF(INDIRECT(_xlfn.CONCAT(\"'Intervenant \",Q$5,\"'!$B\"&ROW($H19)))=\"NON\",\"NC\",INDIRECT(_xlfn.CONCAT(\"'Intervenant \",Q$5,\"'!$C\"&ROW($H19))))","v":"NC"},{"$f":"IF(INDIRECT(_xlfn.CONCAT(\"'Intervenant \",R$5,\"'!$B\"&ROW($H19)))=\"NON\",\"NC\",INDIRECT(_xlfn.CONCAT(\"'Intervenant \",R$5,\"'!$C\"&ROW($H19))))","v":"NC"},{"$f":"IF(INDIRECT(_xlfn.CONCAT(\"'Intervenant \",S$5,\"'!$B\"&ROW($H19)))=\"NON\",\"NC\",INDIRECT(_xlfn.CONCAT(\"'Intervenant \",S$5,\"'!$C\"&ROW($H19))))","v":"NC"},{"$f":"IF(INDIRECT(_xlfn.CONCAT(\"'Intervenant \",T$5,\"'!$B\"&ROW($H19)))=\"NON\",\"NC\",INDIRECT(_xlfn.CONCAT(\"'Intervenant \",T$5,\"'!$C\"&ROW($H19))))","v":"NC"},{"$f":"IF(INDIRECT(_xlfn.CONCAT(\"'Intervenant \",U$5,\"'!$B\"&ROW($H19)))=\"NON\",\"NC\",INDIRECT(_xlfn.CONCAT(\"'Intervenant \",U$5,\"'!$C\"&ROW($H19))))","v":"NC"},{"$f":"IF(INDIRECT(_xlfn.CONCAT(\"'Intervenant \",V$5,\"'!$B\"&ROW($H19)))=\"NON\",\"NC\",INDIRECT(_xlfn.CONCAT(\"'Intervenant \",V$5,\"'!$C\"&ROW($H19))))","v":"NC"},{"$f":"IF(INDIRECT(_xlfn.CONCAT(\"'Intervenant \",W$5,\"'!$B\"&ROW($H19)))=\"NON\",\"NC\",INDIRECT(_xlfn.CONCAT(\"'Intervenant \",W$5,\"'!$C\"&ROW($H19))))","v":"NC"},{"$f":"IF(INDIRECT(_xlfn.CONCAT(\"'Intervenant \",X$5,\"'!$B\"&ROW($H19)))=\"NON\",\"NC\",INDIRECT(_xlfn.CONCAT(\"'Intervenant \",X$5,\"'!$C\"&ROW($H19))))","v":"NC"},{"$f":"IF(INDIRECT(_xlfn.CONCAT(\"'Intervenant \",Y$5,\"'!$B\"&ROW($H19)))=\"NON\",\"NC\",INDIRECT(_xlfn.CONCAT(\"'Intervenant \",Y$5,\"'!$C\"&ROW($H19))))","v":"NC"},{"$f":"IF(INDIRECT(_xlfn.CONCAT(\"'Intervenant \",Z$5,\"'!$B\"&ROW($H19)))=\"NON\",\"NC\",INDIRECT(_xlfn.CONCAT(\"'Intervenant \",Z$5,\"'!$C\"&ROW($H19))))","v":"NC"},{"$f":"IF(INDIRECT(_xlfn.CONCAT(\"'Intervenant \",AA$5,\"'!$B\"&ROW($H19)))=\"NON\",\"NC\",INDIRECT(_xlfn.CONCAT(\"'Intervenant \",AA$5,\"'!$C\"&ROW($H19))))","v":"NC"},{"$f":"IF(INDIRECT(_xlfn.CONCAT(\"'Intervenant \",AB$5,\"'!$B\"&ROW($H19)))=\"NON\",\"NC\",INDIRECT(_xlfn.CONCAT(\"'Intervenant \",AB$5,\"'!$C\"&ROW($H19))))","v":"NC"}]
[null,null,"09","Production de livrables","TIM CIM BIM",{"$f":"IF(OR('Intervenant 1'!B20=\"OUI\",'Intervenant 2'!B20=\"OUI\",'Intervenant 3'!B20=\"OUI\",'Intervenant 4'!B20=\"OUI\",'Intervenant 5'!B20=\"OUI\",'Intervenant 6'!B20=\"OUI\",'Intervenant 7'!B20=\"OUI\",'Intervenant 8'!B20=\"OUI\",'Intervenant 9'!B20=\"OUI\",'Intervenant 10'!B20=\"OUI\",'Intervenant 11'!B20=\"OUI\",'Intervenant 12'!B20=\"OUI\",'Intervenant 13'!B20=\"OUI\",'Intervenant 14'!B20=\"OUI\",'Intervenant 15'!B20=\"OUI\",'Intervenant 16'!B20=\"OUI\",'Intervenant 17'!B20=\"OUI\",'Intervenant 18'!B20=\"OUI\",'Intervenant 19'!B20=\"OUI\",'Intervenant 20'!B20=\"OUI\"),\"OUI\",\"NON\")","v":"NON"},"NC",null,{"$f":"IF(INDIRECT(_xlfn.CONCAT(\"'Intervenant \",I$5,\"'!$B\"&ROW($H20)))=\"NON\",\"NC\",INDIRECT(_xlfn.CONCAT(\"'Intervenant \",I$5,\"'!$C\"&ROW($H20))))","v":"NC"},{"$f":"IF(INDIRECT(_xlfn.CONCAT(\"'Intervenant \",J$5,\"'!$B\"&ROW($H20)))=\"NON\",\"NC\",INDIRECT(_xlfn.CONCAT(\"'Intervenant \",J$5,\"'!$C\"&ROW($H20))))","v":"NC"},{"$f":"IF(INDIRECT(_xlfn.CONCAT(\"'Intervenant \",K$5,\"'!$B\"&ROW($H20)))=\"NON\",\"NC\",INDIRECT(_xlfn.CONCAT(\"'Intervenant \",K$5,\"'!$C\"&ROW($H20))))","v":"NC"},{"$f":"IF(INDIRECT(_xlfn.CONCAT(\"'Intervenant \",L$5,\"'!$B\"&ROW($H20)))=\"NON\",\"NC\",INDIRECT(_xlfn.CONCAT(\"'Intervenant \",L$5,\"'!$C\"&ROW($H20))))","v":"NC"},{"$f":"IF(INDIRECT(_xlfn.CONCAT(\"'Intervenant \",M$5,\"'!$B\"&ROW($H20)))=\"NON\",\"NC\",INDIRECT(_xlfn.CONCAT(\"'Intervenant \",M$5,\"'!$C\"&ROW($H20))))","v":"NC"},{"$f":"IF(INDIRECT(_xlfn.CONCAT(\"'Intervenant \",N$5,\"'!$B\"&ROW($H20)))=\"NON\",\"NC\",INDIRECT(_xlfn.CONCAT(\"'Intervenant \",N$5,\"'!$C\"&ROW($H20))))","v":"NC"},{"$f":"IF(INDIRECT(_xlfn.CONCAT(\"'Intervenant \",O$5,\"'!$B\"&ROW($H20)))=\"NON\",\"NC\",INDIRECT(_xlfn.CONCAT(\"'Intervenant \",O$5,\"'!$C\"&ROW($H20))))","v":"NC"},{"$f":"IF(INDIRECT(_xlfn.CONCAT(\"'Intervenant \",P$5,\"'!$B\"&ROW($H20)))=\"NON\",\"NC\",INDIRECT(_xlfn.CONCAT(\"'Intervenant \",P$5,\"'!$C\"&ROW($H20))))","v":"NC"},{"$f":"IF(INDIRECT(_xlfn.CONCAT(\"'Intervenant \",Q$5,\"'!$B\"&ROW($H20)))=\"NON\",\"NC\",INDIRECT(_xlfn.CONCAT(\"'Intervenant \",Q$5,\"'!$C\"&ROW($H20))))","v":"NC"},{"$f":"IF(INDIRECT(_xlfn.CONCAT(\"'Intervenant \",R$5,\"'!$B\"&ROW($H20)))=\"NON\",\"NC\",INDIRECT(_xlfn.CONCAT(\"'Intervenant \",R$5,\"'!$C\"&ROW($H20))))","v":"NC"},{"$f":"IF(INDIRECT(_xlfn.CONCAT(\"'Intervenant \",S$5,\"'!$B\"&ROW($H20)))=\"NON\",\"NC\",INDIRECT(_xlfn.CONCAT(\"'Intervenant \",S$5,\"'!$C\"&ROW($H20))))","v":"NC"},{"$f":"IF(INDIRECT(_xlfn.CONCAT(\"'Intervenant \",T$5,\"'!$B\"&ROW($H20)))=\"NON\",\"NC\",INDIRECT(_xlfn.CONCAT(\"'Intervenant \",T$5,\"'!$C\"&ROW($H20))))","v":"NC"},{"$f":"IF(INDIRECT(_xlfn.CONCAT(\"'Intervenant \",U$5,\"'!$B\"&ROW($H20)))=\"NON\",\"NC\",INDIRECT(_xlfn.CONCAT(\"'Intervenant \",U$5,\"'!$C\"&ROW($H20))))","v":"NC"},{"$f":"IF(INDIRECT(_xlfn.CONCAT(\"'Intervenant \",V$5,\"'!$B\"&ROW($H20)))=\"NON\",\"NC\",INDIRECT(_xlfn.CONCAT(\"'Intervenant \",V$5,\"'!$C\"&ROW($H20))))","v":"NC"},{"$f":"IF(INDIRECT(_xlfn.CONCAT(\"'Intervenant \",W$5,\"'!$B\"&ROW($H20)))=\"NON\",\"NC\",INDIRECT(_xlfn.CONCAT(\"'Intervenant \",W$5,\"'!$C\"&ROW($H20))))","v":"NC"},{"$f":"IF(INDIRECT(_xlfn.CONCAT(\"'Intervenant \",X$5,\"'!$B\"&ROW($H20)))=\"NON\",\"NC\",INDIRECT(_xlfn.CONCAT(\"'Intervenant \",X$5,\"'!$C\"&ROW($H20))))","v":"NC"},{"$f":"IF(INDIRECT(_xlfn.CONCAT(\"'Intervenant \",Y$5,\"'!$B\"&ROW($H20)))=\"NON\",\"NC\",INDIRECT(_xlfn.CONCAT(\"'Intervenant \",Y$5,\"'!$C\"&ROW($H20))))","v":"NC"},{"$f":"IF(INDIRECT(_xlfn.CONCAT(\"'Intervenant \",Z$5,\"'!$B\"&ROW($H20)))=\"NON\",\"NC\",INDIRECT(_xlfn.CONCAT(\"'Intervenant \",Z$5,\"'!$C\"&ROW($H20))))","v":"NC"},{"$f":"IF(INDIRECT(_xlfn.CONCAT(\"'Intervenant \",AA$5,\"'!$B\"&ROW($H20)))=\"NON\",\"NC\",INDIRECT(_xlfn.CONCAT(\"'Intervenant \",AA$5,\"'!$C\"&ROW($H20))))","v":"NC"},{"$f":"IF(INDIRECT(_xlfn.CONCAT(\"'Intervenant \",AB$5,\"'!$B\"&ROW($H20)))=\"NON\",\"NC\",INDIRECT(_xlfn.CONCAT(\"'Intervenant \",AB$5,\"'!$C\"&ROW($H20))))","v":"NC"}]
[null,null,"10","Evaluation de performances du projet","TIM CIM BIM",{"$f":"IF(OR('Intervenant 1'!B21=\"OUI\",'Intervenant 2'!B21=\"OUI\",'Intervenant 3'!B21=\"OUI\",'Intervenant 4'!B21=\"OUI\",'Intervenant 5'!B21=\"OUI\",'Intervenant 6'!B21=\"OUI\",'Intervenant 7'!B21=\"OUI\",'Intervenant 8'!B21=\"OUI\",'Intervenant 9'!B21=\"OUI\",'Intervenant 10'!B21=\"OUI\",'Intervenant 11'!B21=\"OUI\",'Intervenant 12'!B21=\"OUI\",'Intervenant 13'!B21=\"OUI\",'Intervenant 14'!B21=\"OUI\",'Intervenant 15'!B21=\"OUI\",'Intervenant 16'!B21=\"OUI\",'Intervenant 17'!B21=\"OUI\",'Intervenant 18'!B21=\"OUI\",'Intervenant 19'!B21=\"OUI\",'Intervenant 20'!B21=\"OUI\"),\"OUI\",\"NON\")","v":"NON"},"NC",null,{"$f":"IF(INDIRECT(_xlfn.CONCAT(\"'Intervenant \",I$5,\"'!$B\"&ROW($H21)))=\"NON\",\"NC\",INDIRECT(_xlfn.CONCAT(\"'Intervenant \",I$5,\"'!$C\"&ROW($H21))))","v":"NC"},{"$f":"IF(INDIRECT(_xlfn.CONCAT(\"'Intervenant \",J$5,\"'!$B\"&ROW($H21)))=\"NON\",\"NC\",INDIRECT(_xlfn.CONCAT(\"'Intervenant \",J$5,\"'!$C\"&ROW($H21))))","v":"NC"},{"$f":"IF(INDIRECT(_xlfn.CONCAT(\"'Intervenant \",K$5,\"'!$B\"&ROW($H21)))=\"NON\",\"NC\",INDIRECT(_xlfn.CONCAT(\"'Intervenant \",K$5,\"'!$C\"&ROW($H21))))","v":"NC"},{"$f":"IF(INDIRECT(_xlfn.CONCAT(\"'Intervenant \",L$5,\"'!$B\"&ROW($H21)))=\"NON\",\"NC\",INDIRECT(_xlfn.CONCAT(\"'Intervenant \",L$5,\"'!$C\"&ROW($H21))))","v":"NC"},{"$f":"IF(INDIRECT(_xlfn.CONCAT(\"'Intervenant \",M$5,\"'!$B\"&ROW($H21)))=\"NON\",\"NC\",INDIRECT(_xlfn.CONCAT(\"'Intervenant \",M$5,\"'!$C\"&ROW($H21))))","v":"NC"},{"$f":"IF(INDIRECT(_xlfn.CONCAT(\"'Intervenant \",N$5,\"'!$B\"&ROW($H21)))=\"NON\",\"NC\",INDIRECT(_xlfn.CONCAT(\"'Intervenant \",N$5,\"'!$C\"&ROW($H21))))","v":"NC"},{"$f":"IF(INDIRECT(_xlfn.CONCAT(\"'Intervenant \",O$5,\"'!$B\"&ROW($H21)))=\"NON\",\"NC\",INDIRECT(_xlfn.CONCAT(\"'Intervenant \",O$5,\"'!$C\"&ROW($H21))))","v":"NC"},{"$f":"IF(INDIRECT(_xlfn.CONCAT(\"'Intervenant \",P$5,\"'!$B\"&ROW($H21)))=\"NON\",\"NC\",INDIRECT(_xlfn.CONCAT(\"'Intervenant \",P$5,\"'!$C\"&ROW($H21))))","v":"NC"},{"$f":"IF(INDIRECT(_xlfn.CONCAT(\"'Intervenant \",Q$5,\"'!$B\"&ROW($H21)))=\"NON\",\"NC\",INDIRECT(_xlfn.CONCAT(\"'Intervenant \",Q$5,\"'!$C\"&ROW($H21))))","v":"NC"},{"$f":"IF(INDIRECT(_xlfn.CONCAT(\"'Intervenant \",R$5,\"'!$B\"&ROW($H21)))=\"NON\",\"NC\",INDIRECT(_xlfn.CONCAT(\"'Intervenant \",R$5,\"'!$C\"&ROW($H21))))","v":"NC"},{"$f":"IF(INDIRECT(_xlfn.CONCAT(\"'Intervenant \",S$5,\"'!$B\"&ROW($H21)))=\"NON\",\"NC\",INDIRECT(_xlfn.CONCAT(\"'Intervenant \",S$5,\"'!$C\"&ROW($H21))))","v":"NC"},{"$f":"IF(INDIRECT(_xlfn.CONCAT(\"'Intervenant \",T$5,\"'!$B\"&ROW($H21)))=\"NON\",\"NC\",INDIRECT(_xlfn.CONCAT(\"'Intervenant \",T$5,\"'!$C\"&ROW($H21))))","v":"NC"},{"$f":"IF(INDIRECT(_xlfn.CONCAT(\"'Intervenant \",U$5,\"'!$B\"&ROW($H21)))=\"NON\",\"NC\",INDIRECT(_xlfn.CONCAT(\"'Intervenant \",U$5,\"'!$C\"&ROW($H21))))","v":"NC"},{"$f":"IF(INDIRECT(_xlfn.CONCAT(\"'Intervenant \",V$5,\"'!$B\"&ROW($H21)))=\"NON\",\"NC\",INDIRECT(_xlfn.CONCAT(\"'Intervenant \",V$5,\"'!$C\"&ROW($H21))))","v":"NC"},{"$f":"IF(INDIRECT(_xlfn.CONCAT(\"'Intervenant \",W$5,\"'!$B\"&ROW($H21)))=\"NON\",\"NC\",INDIRECT(_xlfn.CONCAT(\"'Intervenant \",W$5,\"'!$C\"&ROW($H21))))","v":"NC"},{"$f":"IF(INDIRECT(_xlfn.CONCAT(\"'Intervenant \",X$5,\"'!$B\"&ROW($H21)))=\"NON\",\"NC\",INDIRECT(_xlfn.CONCAT(\"'Intervenant \",X$5,\"'!$C\"&ROW($H21))))","v":"NC"},{"$f":"IF(INDIRECT(_xlfn.CONCAT(\"'Intervenant \",Y$5,\"'!$B\"&ROW($H21)))=\"NON\",\"NC\",INDIRECT(_xlfn.CONCAT(\"'Intervenant \",Y$5,\"'!$C\"&ROW($H21))))","v":"NC"},{"$f":"IF(INDIRECT(_xlfn.CONCAT(\"'Intervenant \",Z$5,\"'!$B\"&ROW($H21)))=\"NON\",\"NC\",INDIRECT(_xlfn.CONCAT(\"'Intervenant \",Z$5,\"'!$C\"&ROW($H21))))","v":"NC"},{"$f":"IF(INDIRECT(_xlfn.CONCAT(\"'Intervenant \",AA$5,\"'!$B\"&ROW($H21)))=\"NON\",\"NC\",INDIRECT(_xlfn.CONCAT(\"'Intervenant \",AA$5,\"'!$C\"&ROW($H21))))","v":"NC"},{"$f":"IF(INDIRECT(_xlfn.CONCAT(\"'Intervenant \",AB$5,\"'!$B\"&ROW($H21)))=\"NON\",\"NC\",INDIRECT(_xlfn.CONCAT(\"'Intervenant \",AB$5,\"'!$C\"&ROW($H21))))","v":"NC"}]
[null,null,"11","Etudes des clash (conception et chantier)","BIM",{"$f":"IF(OR('Intervenant 1'!B22=\"OUI\",'Intervenant 2'!B22=\"OUI\",'Intervenant 3'!B22=\"OUI\",'Intervenant 4'!B22=\"OUI\",'Intervenant 5'!B22=\"OUI\",'Intervenant 6'!B22=\"OUI\",'Intervenant 7'!B22=\"OUI\",'Intervenant 8'!B22=\"OUI\",'Intervenant 9'!B22=\"OUI\",'Intervenant 10'!B22=\"OUI\",'Intervenant 11'!B22=\"OUI\",'Intervenant 12'!B22=\"OUI\",'Intervenant 13'!B22=\"OUI\",'Intervenant 14'!B22=\"OUI\",'Intervenant 15'!B22=\"OUI\",'Intervenant 16'!B22=\"OUI\",'Intervenant 17'!B22=\"OUI\",'Intervenant 18'!B22=\"OUI\",'Intervenant 19'!B22=\"OUI\",'Intervenant 20'!B22=\"OUI\"),\"OUI\",\"NON\")","v":"NON"},"NC",null,{"$f":"IF(INDIRECT(_xlfn.CONCAT(\"'Intervenant \",I$5,\"'!$B\"&ROW($H22)))=\"NON\",\"NC\",INDIRECT(_xlfn.CONCAT(\"'Intervenant \",I$5,\"'!$C\"&ROW($H22))))","v":"NC"},{"$f":"IF(INDIRECT(_xlfn.CONCAT(\"'Intervenant \",J$5,\"'!$B\"&ROW($H22)))=\"NON\",\"NC\",INDIRECT(_xlfn.CONCAT(\"'Intervenant \",J$5,\"'!$C\"&ROW($H22))))","v":"NC"},{"$f":"IF(INDIRECT(_xlfn.CONCAT(\"'Intervenant \",K$5,\"'!$B\"&ROW($H22)))=\"NON\",\"NC\",INDIRECT(_xlfn.CONCAT(\"'Intervenant \",K$5,\"'!$C\"&ROW($H22))))","v":"NC"},{"$f":"IF(INDIRECT(_xlfn.CONCAT(\"'Intervenant \",L$5,\"'!$B\"&ROW($H22)))=\"NON\",\"NC\",INDIRECT(_xlfn.CONCAT(\"'Intervenant \",L$5,\"'!$C\"&ROW($H22))))","v":"NC"},{"$f":"IF(INDIRECT(_xlfn.CONCAT(\"'Intervenant \",M$5,\"'!$B\"&ROW($H22)))=\"NON\",\"NC\",INDIRECT(_xlfn.CONCAT(\"'Intervenant \",M$5,\"'!$C\"&ROW($H22))))","v":"NC"},{"$f":"IF(INDIRECT(_xlfn.CONCAT(\"'Intervenant \",N$5,\"'!$B\"&ROW($H22)))=\"NON\",\"NC\",INDIRECT(_xlfn.CONCAT(\"'Intervenant \",N$5,\"'!$C\"&ROW($H22))))","v":"NC"},{"$f":"IF(INDIRECT(_xlfn.CONCAT(\"'Intervenant \",O$5,\"'!$B\"&ROW($H22)))=\"NON\",\"NC\",INDIRECT(_xlfn.CONCAT(\"'Intervenant \",O$5,\"'!$C\"&ROW($H22))))","v":"NC"},{"$f":"IF(INDIRECT(_xlfn.CONCAT(\"'Intervenant \",P$5,\"'!$B\"&ROW($H22)))=\"NON\",\"NC\",INDIRECT(_xlfn.CONCAT(\"'Intervenant \",P$5,\"'!$C\"&ROW($H22))))","v":"NC"},{"$f":"IF(INDIRECT(_xlfn.CONCAT(\"'Intervenant \",Q$5,\"'!$B\"&ROW($H22)))=\"NON\",\"NC\",INDIRECT(_xlfn.CONCAT(\"'Intervenant \",Q$5,\"'!$C\"&ROW($H22))))","v":"NC"},{"$f":"IF(INDIRECT(_xlfn.CONCAT(\"'Intervenant \",R$5,\"'!$B\"&ROW($H22)))=\"NON\",\"NC\",INDIRECT(_xlfn.CONCAT(\"'Intervenant \",R$5,\"'!$C\"&ROW($H22))))","v":"NC"},{"$f":"IF(INDIRECT(_xlfn.CONCAT(\"'Intervenant \",S$5,\"'!$B\"&ROW($H22)))=\"NON\",\"NC\",INDIRECT(_xlfn.CONCAT(\"'Intervenant \",S$5,\"'!$C\"&ROW($H22))))","v":"NC"},{"$f":"IF(INDIRECT(_xlfn.CONCAT(\"'Intervenant \",T$5,\"'!$B\"&ROW($H22)))=\"NON\",\"NC\",INDIRECT(_xlfn.CONCAT(\"'Intervenant \",T$5,\"'!$C\"&ROW($H22))))","v":"NC"},{"$f":"IF(INDIRECT(_xlfn.CONCAT(\"'Intervenant \",U$5,\"'!$B\"&ROW($H22)))=\"NON\",\"NC\",INDIRECT(_xlfn.CONCAT(\"'Intervenant \",U$5,\"'!$C\"&ROW($H22))))","v":"NC"},{"$f":"IF(INDIRECT(_xlfn.CONCAT(\"'Intervenant \",V$5,\"'!$B\"&ROW($H22)))=\"NON\",\"NC\",INDIRECT(_xlfn.CONCAT(\"'Intervenant \",V$5,\"'!$C\"&ROW($H22))))","v":"NC"},{"$f":"IF(INDIRECT(_xlfn.CONCAT(\"'Intervenant \",W$5,\"'!$B\"&ROW($H22)))=\"NON\",\"NC\",INDIRECT(_xlfn.CONCAT(\"'Intervenant \",W$5,\"'!$C\"&ROW($H22))))","v":"NC"},{"$f":"IF(INDIRECT(_xlfn.CONCAT(\"'Intervenant \",X$5,\"'!$B\"&ROW($H22)))=\"NON\",\"NC\",INDIRECT(_xlfn.CONCAT(\"'Intervenant \",X$5,\"'!$C\"&ROW($H22))))","v":"NC"},{"$f":"IF(INDIRECT(_xlfn.CONCAT(\"'Intervenant \",Y$5,\"'!$B\"&ROW($H22)))=\"NON\",\"NC\",INDIRECT(_xlfn.CONCAT(\"'Intervenant \",Y$5,\"'!$C\"&ROW($H22))))","v":"NC"},{"$f":"IF(INDIRECT(_xlfn.CONCAT(\"'Intervenant \",Z$5,\"'!$B\"&ROW($H22)))=\"NON\",\"NC\",INDIRECT(_xlfn.CONCAT(\"'Intervenant \",Z$5,\"'!$C\"&ROW($H22))))","v":"NC"},{"$f":"IF(INDIRECT(_xlfn.CONCAT(\"'Intervenant \",AA$5,\"'!$B\"&ROW($H22)))=\"NON\",\"NC\",INDIRECT(_xlfn.CONCAT(\"'Intervenant \",AA$5,\"'!$C\"&ROW($H22))))","v":"NC"},{"$f":"IF(INDIRECT(_xlfn.CONCAT(\"'Intervenant \",AB$5,\"'!$B\"&ROW($H22)))=\"NON\",\"NC\",INDIRECT(_xlfn.CONCAT(\"'Intervenant \",AB$5,\"'!$C\"&ROW($H22))))","v":"NC"}]
[null,null,"12","Contrôle du modèle et de la donnée","BIM",{"$f":"IF(OR('Intervenant 1'!B23=\"OUI\",'Intervenant 2'!B23=\"OUI\",'Intervenant 3'!B23=\"OUI\",'Intervenant 4'!B23=\"OUI\",'Intervenant 5'!B23=\"OUI\",'Intervenant 6'!B23=\"OUI\",'Intervenant 7'!B23=\"OUI\",'Intervenant 8'!B23=\"OUI\",'Intervenant 9'!B23=\"OUI\",'Intervenant 10'!B23=\"OUI\",'Intervenant 11'!B23=\"OUI\",'Intervenant 12'!B23=\"OUI\",'Intervenant 13'!B23=\"OUI\",'Intervenant 14'!B23=\"OUI\",'Intervenant 15'!B23=\"OUI\",'Intervenant 16'!B23=\"OUI\",'Intervenant 17'!B23=\"OUI\",'Intervenant 18'!B23=\"OUI\",'Intervenant 19'!B23=\"OUI\",'Intervenant 20'!B23=\"OUI\"),\"OUI\",\"NON\")","v":"NON"},"NC",null,{"$f":"IF(INDIRECT(_xlfn.CONCAT(\"'Intervenant \",I$5,\"'!$B\"&ROW($H23)))=\"NON\",\"NC\",INDIRECT(_xlfn.CONCAT(\"'Intervenant \",I$5,\"'!$C\"&ROW($H23))))","v":"NC"},{"$f":"IF(INDIRECT(_xlfn.CONCAT(\"'Intervenant \",J$5,\"'!$B\"&ROW($H23)))=\"NON\",\"NC\",INDIRECT(_xlfn.CONCAT(\"'Intervenant \",J$5,\"'!$C\"&ROW($H23))))","v":"NC"},{"$f":"IF(INDIRECT(_xlfn.CONCAT(\"'Intervenant \",K$5,\"'!$B\"&ROW($H23)))=\"NON\",\"NC\",INDIRECT(_xlfn.CONCAT(\"'Intervenant \",K$5,\"'!$C\"&ROW($H23))))","v":"NC"},{"$f":"IF(INDIRECT(_xlfn.CONCAT(\"'Intervenant \",L$5,\"'!$B\"&ROW($H23)))=\"NON\",\"NC\",INDIRECT(_xlfn.CONCAT(\"'Intervenant \",L$5,\"'!$C\"&ROW($H23))))","v":"NC"},{"$f":"IF(INDIRECT(_xlfn.CONCAT(\"'Intervenant \",M$5,\"'!$B\"&ROW($H23)))=\"NON\",\"NC\",INDIRECT(_xlfn.CONCAT(\"'Intervenant \",M$5,\"'!$C\"&ROW($H23))))","v":"NC"},{"$f":"IF(INDIRECT(_xlfn.CONCAT(\"'Intervenant \",N$5,\"'!$B\"&ROW($H23)))=\"NON\",\"NC\",INDIRECT(_xlfn.CONCAT(\"'Intervenant \",N$5,\"'!$C\"&ROW($H23))))","v":"NC"},{"$f":"IF(INDIRECT(_xlfn.CONCAT(\"'Intervenant \",O$5,\"'!$B\"&ROW($H23)))=\"NON\",\"NC\",INDIRECT(_xlfn.CONCAT(\"'Intervenant \",O$5,\"'!$C\"&ROW($H23))))","v":"NC"},{"$f":"IF(INDIRECT(_xlfn.CONCAT(\"'Intervenant \",P$5,\"'!$B\"&ROW($H23)))=\"NON\",\"NC\",INDIRECT(_xlfn.CONCAT(\"'Intervenant \",P$5,\"'!$C\"&ROW($H23))))","v":"NC"},{"$f":"IF(INDIRECT(_xlfn.CONCAT(\"'Intervenant \",Q$5,\"'!$B\"&ROW($H23)))=\"NON\",\"NC\",INDIRECT(_xlfn.CONCAT(\"'Intervenant \",Q$5,\"'!$C\"&ROW($H23))))","v":"NC"},{"$f":"IF(INDIRECT(_xlfn.CONCAT(\"'Intervenant \",R$5,\"'!$B\"&ROW($H23)))=\"NON\",\"NC\",INDIRECT(_xlfn.CONCAT(\"'Intervenant \",R$5,\"'!$C\"&ROW($H23))))","v":"NC"},{"$f":"IF(INDIRECT(_xlfn.CONCAT(\"'Intervenant \",S$5,\"'!$B\"&ROW($H23)))=\"NON\",\"NC\",INDIRECT(_xlfn.CONCAT(\"'Intervenant \",S$5,\"'!$C\"&ROW($H23))))","v":"NC"},{"$f":"IF(INDIRECT(_xlfn.CONCAT(\"'Intervenant \",T$5,\"'!$B\"&ROW($H23)))=\"NON\",\"NC\",INDIRECT(_xlfn.CONCAT(\"'Intervenant \",T$5,\"'!$C\"&ROW($H23))))","v":"NC"},{"$f":"IF(INDIRECT(_xlfn.CONCAT(\"'Intervenant \",U$5,\"'!$B\"&ROW($H23)))=\"NON\",\"NC\",INDIRECT(_xlfn.CONCAT(\"'Intervenant \",U$5,\"'!$C\"&ROW($H23))))","v":"NC"},{"$f":"IF(INDIRECT(_xlfn.CONCAT(\"'Intervenant \",V$5,\"'!$B\"&ROW($H23)))=\"NON\",\"NC\",INDIRECT(_xlfn.CONCAT(\"'Intervenant \",V$5,\"'!$C\"&ROW($H23))))","v":"NC"},{"$f":"IF(INDIRECT(_xlfn.CONCAT(\"'Intervenant \",W$5,\"'!$B\"&ROW($H23)))=\"NON\",\"NC\",INDIRECT(_xlfn.CONCAT(\"'Intervenant \",W$5,\"'!$C\"&ROW($H23))))","v":"NC"},{"$f":"IF(INDIRECT(_xlfn.CONCAT(\"'Intervenant \",X$5,\"'!$B\"&ROW($H23)))=\"NON\",\"NC\",INDIRECT(_xlfn.CONCAT(\"'Intervenant \",X$5,\"'!$C\"&ROW($H23))))","v":"NC"},{"$f":"IF(INDIRECT(_xlfn.CONCAT(\"'Intervenant \",Y$5,\"'!$B\"&ROW($H23)))=\"NON\",\"NC\",INDIRECT(_xlfn.CONCAT(\"'Intervenant \",Y$5,\"'!$C\"&ROW($H23))))","v":"NC"},{"$f":"IF(INDIRECT(_xlfn.CONCAT(\"'Intervenant \",Z$5,\"'!$B\"&ROW($H23)))=\"NON\",\"NC\",INDIRECT(_xlfn.CONCAT(\"'Intervenant \",Z$5,\"'!$C\"&ROW($H23))))","v":"NC"},{"$f":"IF(INDIRECT(_xlfn.CONCAT(\"'Intervenant \",AA$5,\"'!$B\"&ROW($H23)))=\"NON\",\"NC\",INDIRECT(_xlfn.CONCAT(\"'Intervenant \",AA$5,\"'!$C\"&ROW($H23))))","v":"NC"},{"$f":"IF(INDIRECT(_xlfn.CONCAT(\"'Intervenant \",AB$5,\"'!$B\"&ROW($H23)))=\"NON\",\"NC\",INDIRECT(_xlfn.CONCAT(\"'Intervenant \",AB$5,\"'!$C\"&ROW($H23))))","v":"NC"}]
[null,null,"13","Réalisation de quantitatifs","BIM",{"$f":"IF(OR('Intervenant 1'!B24=\"OUI\",'Intervenant 2'!B24=\"OUI\",'Intervenant 3'!B24=\"OUI\",'Intervenant 4'!B24=\"OUI\",'Intervenant 5'!B24=\"OUI\",'Intervenant 6'!B24=\"OUI\",'Intervenant 7'!B24=\"OUI\",'Intervenant 8'!B24=\"OUI\",'Intervenant 9'!B24=\"OUI\",'Intervenant 10'!B24=\"OUI\",'Intervenant 11'!B24=\"OUI\",'Intervenant 12'!B24=\"OUI\",'Intervenant 13'!B24=\"OUI\",'Intervenant 14'!B24=\"OUI\",'Intervenant 15'!B24=\"OUI\",'Intervenant 16'!B24=\"OUI\",'Intervenant 17'!B24=\"OUI\",'Intervenant 18'!B24=\"OUI\",'Intervenant 19'!B24=\"OUI\",'Intervenant 20'!B24=\"OUI\"),\"OUI\",\"NON\")","v":"NON"},"NC",null,{"$f":"IF(INDIRECT(_xlfn.CONCAT(\"'Intervenant \",I$5,\"'!$B\"&ROW($H24)))=\"NON\",\"NC\",INDIRECT(_xlfn.CONCAT(\"'Intervenant \",I$5,\"'!$C\"&ROW($H24))))","v":"NC"},{"$f":"IF(INDIRECT(_xlfn.CONCAT(\"'Intervenant \",J$5,\"'!$B\"&ROW($H24)))=\"NON\",\"NC\",INDIRECT(_xlfn.CONCAT(\"'Intervenant \",J$5,\"'!$C\"&ROW($H24))))","v":"NC"},{"$f":"IF(INDIRECT(_xlfn.CONCAT(\"'Intervenant \",K$5,\"'!$B\"&ROW($H24)))=\"NON\",\"NC\",INDIRECT(_xlfn.CONCAT(\"'Intervenant \",K$5,\"'!$C\"&ROW($H24))))","v":"NC"},{"$f":"IF(INDIRECT(_xlfn.CONCAT(\"'Intervenant \",L$5,\"'!$B\"&ROW($H24)))=\"NON\",\"NC\",INDIRECT(_xlfn.CONCAT(\"'Intervenant \",L$5,\"'!$C\"&ROW($H24))))","v":"NC"},{"$f":"IF(INDIRECT(_xlfn.CONCAT(\"'Intervenant \",M$5,\"'!$B\"&ROW($H24)))=\"NON\",\"NC\",INDIRECT(_xlfn.CONCAT(\"'Intervenant \",M$5,\"'!$C\"&ROW($H24))))","v":"NC"},{"$f":"IF(INDIRECT(_xlfn.CONCAT(\"'Intervenant \",N$5,\"'!$B\"&ROW($H24)))=\"NON\",\"NC\",INDIRECT(_xlfn.CONCAT(\"'Intervenant \",N$5,\"'!$C\"&ROW($H24))))","v":"NC"},{"$f":"IF(INDIRECT(_xlfn.CONCAT(\"'Intervenant \",O$5,\"'!$B\"&ROW($H24)))=\"NON\",\"NC\",INDIRECT(_xlfn.CONCAT(\"'Intervenant \",O$5,\"'!$C\"&ROW($H24))))","v":"NC"},{"$f":"IF(INDIRECT(_xlfn.CONCAT(\"'Intervenant \",P$5,\"'!$B\"&ROW($H24)))=\"NON\",\"NC\",INDIRECT(_xlfn.CONCAT(\"'Intervenant \",P$5,\"'!$C\"&ROW($H24))))","v":"NC"},{"$f":"IF(INDIRECT(_xlfn.CONCAT(\"'Intervenant \",Q$5,\"'!$B\"&ROW($H24)))=\"NON\",\"NC\",INDIRECT(_xlfn.CONCAT(\"'Intervenant \",Q$5,\"'!$C\"&ROW($H24))))","v":"NC"},{"$f":"IF(INDIRECT(_xlfn.CONCAT(\"'Intervenant \",R$5,\"'!$B\"&ROW($H24)))=\"NON\",\"NC\",INDIRECT(_xlfn.CONCAT(\"'Intervenant \",R$5,\"'!$C\"&ROW($H24))))","v":"NC"},{"$f":"IF(INDIRECT(_xlfn.CONCAT(\"'Intervenant \",S$5,\"'!$B\"&ROW($H24)))=\"NON\",\"NC\",INDIRECT(_xlfn.CONCAT(\"'Intervenant \",S$5,\"'!$C\"&ROW($H24))))","v":"NC"},{"$f":"IF(INDIRECT(_xlfn.CONCAT(\"'Intervenant \",T$5,\"'!$B\"&ROW($H24)))=\"NON\",\"NC\",INDIRECT(_xlfn.CONCAT(\"'Intervenant \",T$5,\"'!$C\"&ROW($H24))))","v":"NC"},{"$f":"IF(INDIRECT(_xlfn.CONCAT(\"'Intervenant \",U$5,\"'!$B\"&ROW($H24)))=\"NON\",\"NC\",INDIRECT(_xlfn.CONCAT(\"'Intervenant \",U$5,\"'!$C\"&ROW($H24))))","v":"NC"},{"$f":"IF(INDIRECT(_xlfn.CONCAT(\"'Intervenant \",V$5,\"'!$B\"&ROW($H24)))=\"NON\",\"NC\",INDIRECT(_xlfn.CONCAT(\"'Intervenant \",V$5,\"'!$C\"&ROW($H24))))","v":"NC"},{"$f":"IF(INDIRECT(_xlfn.CONCAT(\"'Intervenant \",W$5,\"'!$B\"&ROW($H24)))=\"NON\",\"NC\",INDIRECT(_xlfn.CONCAT(\"'Intervenant \",W$5,\"'!$C\"&ROW($H24))))","v":"NC"},{"$f":"IF(INDIRECT(_xlfn.CONCAT(\"'Intervenant \",X$5,\"'!$B\"&ROW($H24)))=\"NON\",\"NC\",INDIRECT(_xlfn.CONCAT(\"'Intervenant \",X$5,\"'!$C\"&ROW($H24))))","v":"NC"},{"$f":"IF(INDIRECT(_xlfn.CONCAT(\"'Intervenant \",Y$5,\"'!$B\"&ROW($H24)))=\"NON\",\"NC\",INDIRECT(_xlfn.CONCAT(\"'Intervenant \",Y$5,\"'!$C\"&ROW($H24))))","v":"NC"},{"$f":"IF(INDIRECT(_xlfn.CONCAT(\"'Intervenant \",Z$5,\"'!$B\"&ROW($H24)))=\"NON\",\"NC\",INDIRECT(_xlfn.CONCAT(\"'Intervenant \",Z$5,\"'!$C\"&ROW($H24))))","v":"NC"},{"$f":"IF(INDIRECT(_xlfn.CONCAT(\"'Intervenant \",AA$5,\"'!$B\"&ROW($H24)))=\"NON\",\"NC\",INDIRECT(_xlfn.CONCAT(\"'Intervenant \",AA$5,\"'!$C\"&ROW($H24))))","v":"NC"},{"$f":"IF(INDIRECT(_xlfn.CONCAT(\"'Intervenant \",AB$5,\"'!$B\"&ROW($H24)))=\"NON\",\"NC\",INDIRECT(_xlfn.CONCAT(\"'Intervenant \",AB$5,\"'!$C\"&ROW($H24))))","v":"NC"}]
[null,null,"14","Conception de systèmes constructifs","BIM",{"$f":"IF(OR('Intervenant 1'!B25=\"OUI\",'Intervenant 2'!B25=\"OUI\",'Intervenant 3'!B25=\"OUI\",'Intervenant 4'!B25=\"OUI\",'Intervenant 5'!B25=\"OUI\",'Intervenant 6'!B25=\"OUI\",'Intervenant 7'!B25=\"OUI\",'Intervenant 8'!B25=\"OUI\",'Intervenant 9'!B25=\"OUI\",'Intervenant 10'!B25=\"OUI\",'Intervenant 11'!B25=\"OUI\",'Intervenant 12'!B25=\"OUI\",'Intervenant 13'!B25=\"OUI\",'Intervenant 14'!B25=\"OUI\",'Intervenant 15'!B25=\"OUI\",'Intervenant 16'!B25=\"OUI\",'Intervenant 17'!B25=\"OUI\",'Intervenant 18'!B25=\"OUI\",'Intervenant 19'!B25=\"OUI\",'Intervenant 20'!B25=\"OUI\"),\"OUI\",\"NON\")","v":"NON"},"NC",null,{"$f":"IF(INDIRECT(_xlfn.CONCAT(\"'Intervenant \",I$5,\"'!$B\"&ROW($H25)))=\"NON\",\"NC\",INDIRECT(_xlfn.CONCAT(\"'Intervenant \",I$5,\"'!$C\"&ROW($H25))))","v":"NC"},{"$f":"IF(INDIRECT(_xlfn.CONCAT(\"'Intervenant \",J$5,\"'!$B\"&ROW($H25)))=\"NON\",\"NC\",INDIRECT(_xlfn.CONCAT(\"'Intervenant \",J$5,\"'!$C\"&ROW($H25))))","v":"NC"},{"$f":"IF(INDIRECT(_xlfn.CONCAT(\"'Intervenant \",K$5,\"'!$B\"&ROW($H25)))=\"NON\",\"NC\",INDIRECT(_xlfn.CONCAT(\"'Intervenant \",K$5,\"'!$C\"&ROW($H25))))","v":"NC"},{"$f":"IF(INDIRECT(_xlfn.CONCAT(\"'Intervenant \",L$5,\"'!$B\"&ROW($H25)))=\"NON\",\"NC\",INDIRECT(_xlfn.CONCAT(\"'Intervenant \",L$5,\"'!$C\"&ROW($H25))))","v":"NC"},{"$f":"IF(INDIRECT(_xlfn.CONCAT(\"'Intervenant \",M$5,\"'!$B\"&ROW($H25)))=\"NON\",\"NC\",INDIRECT(_xlfn.CONCAT(\"'Intervenant \",M$5,\"'!$C\"&ROW($H25))))","v":"NC"},{"$f":"IF(INDIRECT(_xlfn.CONCAT(\"'Intervenant \",N$5,\"'!$B\"&ROW($H25)))=\"NON\",\"NC\",INDIRECT(_xlfn.CONCAT(\"'Intervenant \",N$5,\"'!$C\"&ROW($H25))))","v":"NC"},{"$f":"IF(INDIRECT(_xlfn.CONCAT(\"'Intervenant \",O$5,\"'!$B\"&ROW($H25)))=\"NON\",\"NC\",INDIRECT(_xlfn.CONCAT(\"'Intervenant \",O$5,\"'!$C\"&ROW($H25))))","v":"NC"},{"$f":"IF(INDIRECT(_xlfn.CONCAT(\"'Intervenant \",P$5,\"'!$B\"&ROW($H25)))=\"NON\",\"NC\",INDIRECT(_xlfn.CONCAT(\"'Intervenant \",P$5,\"'!$C\"&ROW($H25))))","v":"NC"},{"$f":"IF(INDIRECT(_xlfn.CONCAT(\"'Intervenant \",Q$5,\"'!$B\"&ROW($H25)))=\"NON\",\"NC\",INDIRECT(_xlfn.CONCAT(\"'Intervenant \",Q$5,\"'!$C\"&ROW($H25))))","v":"NC"},{"$f":"IF(INDIRECT(_xlfn.CONCAT(\"'Intervenant \",R$5,\"'!$B\"&ROW($H25)))=\"NON\",\"NC\",INDIRECT(_xlfn.CONCAT(\"'Intervenant \",R$5,\"'!$C\"&ROW($H25))))","v":"NC"},{"$f":"IF(INDIRECT(_xlfn.CONCAT(\"'Intervenant \",S$5,\"'!$B\"&ROW($H25)))=\"NON\",\"NC\",INDIRECT(_xlfn.CONCAT(\"'Intervenant \",S$5,\"'!$C\"&ROW($H25))))","v":"NC"},{"$f":"IF(INDIRECT(_xlfn.CONCAT(\"'Intervenant \",T$5,\"'!$B\"&ROW($H25)))=\"NON\",\"NC\",INDIRECT(_xlfn.CONCAT(\"'Intervenant \",T$5,\"'!$C\"&ROW($H25))))","v":"NC"},{"$f":"IF(INDIRECT(_xlfn.CONCAT(\"'Intervenant \",U$5,\"'!$B\"&ROW($H25)))=\"NON\",\"NC\",INDIRECT(_xlfn.CONCAT(\"'Intervenant \",U$5,\"'!$C\"&ROW($H25))))","v":"NC"},{"$f":"IF(INDIRECT(_xlfn.CONCAT(\"'Intervenant \",V$5,\"'!$B\"&ROW($H25)))=\"NON\",\"NC\",INDIRECT(_xlfn.CONCAT(\"'Intervenant \",V$5,\"'!$C\"&ROW($H25))))","v":"NC"},{"$f":"IF(INDIRECT(_xlfn.CONCAT(\"'Intervenant \",W$5,\"'!$B\"&ROW($H25)))=\"NON\",\"NC\",INDIRECT(_xlfn.CONCAT(\"'Intervenant \",W$5,\"'!$C\"&ROW($H25))))","v":"NC"},{"$f":"IF(INDIRECT(_xlfn.CONCAT(\"'Intervenant \",X$5,\"'!$B\"&ROW($H25)))=\"NON\",\"NC\",INDIRECT(_xlfn.CONCAT(\"'Intervenant \",X$5,\"'!$C\"&ROW($H25))))","v":"NC"},{"$f":"IF(INDIRECT(_xlfn.CONCAT(\"'Intervenant \",Y$5,\"'!$B\"&ROW($H25)))=\"NON\",\"NC\",INDIRECT(_xlfn.CONCAT(\"'Intervenant \",Y$5,\"'!$C\"&ROW($H25))))","v":"NC"},{"$f":"IF(INDIRECT(_xlfn.CONCAT(\"'Intervenant \",Z$5,\"'!$B\"&ROW($H25)))=\"NON\",\"NC\",INDIRECT(_xlfn.CONCAT(\"'Intervenant \",Z$5,\"'!$C\"&ROW($H25))))","v":"NC"},{"$f":"IF(INDIRECT(_xlfn.CONCAT(\"'Intervenant \",AA$5,\"'!$B\"&ROW($H25)))=\"NON\",\"NC\",INDIRECT(_xlfn.CONCAT(\"'Intervenant \",AA$5,\"'!$C\"&ROW($H25))))","v":"NC"},{"$f":"IF(INDIRECT(_xlfn.CONCAT(\"'Intervenant \",AB$5,\"'!$B\"&ROW($H25)))=\"NON\",\"NC\",INDIRECT(_xlfn.CONCAT(\"'Intervenant \",AB$5,\"'!$C\"&ROW($H25))))","v":"NC"}]
[null,null,"15","Phasage du chantier / Planification / aménagement","CIM BIM",{"$f":"IF(OR('Intervenant 1'!B26=\"OUI\",'Intervenant 2'!B26=\"OUI\",'Intervenant 3'!B26=\"OUI\",'Intervenant 4'!B26=\"OUI\",'Intervenant 5'!B26=\"OUI\",'Intervenant 6'!B26=\"OUI\",'Intervenant 7'!B26=\"OUI\",'Intervenant 8'!B26=\"OUI\",'Intervenant 9'!B26=\"OUI\",'Intervenant 10'!B26=\"OUI\",'Intervenant 11'!B26=\"OUI\",'Intervenant 12'!B26=\"OUI\",'Intervenant 13'!B26=\"OUI\",'Intervenant 14'!B26=\"OUI\",'Intervenant 15'!B26=\"OUI\",'Intervenant 16'!B26=\"OUI\",'Intervenant 17'!B26=\"OUI\",'Intervenant 18'!B26=\"OUI\",'Intervenant 19'!B26=\"OUI\",'Intervenant 20'!B26=\"OUI\"),\"OUI\",\"NON\")","v":"NON"},"NC",null,{"$f":"IF(INDIRECT(_xlfn.CONCAT(\"'Intervenant \",I$5,\"'!$B\"&ROW($H26)))=\"NON\",\"NC\",INDIRECT(_xlfn.CONCAT(\"'Intervenant \",I$5,\"'!$C\"&ROW($H26))))","v":"NC"},{"$f":"IF(INDIRECT(_xlfn.CONCAT(\"'Intervenant \",J$5,\"'!$B\"&ROW($H26)))=\"NON\",\"NC\",INDIRECT(_xlfn.CONCAT(\"'Intervenant \",J$5,\"'!$C\"&ROW($H26))))","v":"NC"},{"$f":"IF(INDIRECT(_xlfn.CONCAT(\"'Intervenant \",K$5,\"'!$B\"&ROW($H26)))=\"NON\",\"NC\",INDIRECT(_xlfn.CONCAT(\"'Intervenant \",K$5,\"'!$C\"&ROW($H26))))","v":"NC"},{"$f":"IF(INDIRECT(_xlfn.CONCAT(\"'Intervenant \",L$5,\"'!$B\"&ROW($H26)))=\"NON\",\"NC\",INDIRECT(_xlfn.CONCAT(\"'Intervenant \",L$5,\"'!$C\"&ROW($H26))))","v":"NC"},{"$f":"IF(INDIRECT(_xlfn.CONCAT(\"'Intervenant \",M$5,\"'!$B\"&ROW($H26)))=\"NON\",\"NC\",INDIRECT(_xlfn.CONCAT(\"'Intervenant \",M$5,\"'!$C\"&ROW($H26))))","v":"NC"},{"$f":"IF(INDIRECT(_xlfn.CONCAT(\"'Intervenant \",N$5,\"'!$B\"&ROW($H26)))=\"NON\",\"NC\",INDIRECT(_xlfn.CONCAT(\"'Intervenant \",N$5,\"'!$C\"&ROW($H26))))","v":"NC"},{"$f":"IF(INDIRECT(_xlfn.CONCAT(\"'Intervenant \",O$5,\"'!$B\"&ROW($H26)))=\"NON\",\"NC\",INDIRECT(_xlfn.CONCAT(\"'Intervenant \",O$5,\"'!$C\"&ROW($H26))))","v":"NC"},{"$f":"IF(INDIRECT(_xlfn.CONCAT(\"'Intervenant \",P$5,\"'!$B\"&ROW($H26)))=\"NON\",\"NC\",INDIRECT(_xlfn.CONCAT(\"'Intervenant \",P$5,\"'!$C\"&ROW($H26))))","v":"NC"},{"$f":"IF(INDIRECT(_xlfn.CONCAT(\"'Intervenant \",Q$5,\"'!$B\"&ROW($H26)))=\"NON\",\"NC\",INDIRECT(_xlfn.CONCAT(\"'Intervenant \",Q$5,\"'!$C\"&ROW($H26))))","v":"NC"},{"$f":"IF(INDIRECT(_xlfn.CONCAT(\"'Intervenant \",R$5,\"'!$B\"&ROW($H26)))=\"NON\",\"NC\",INDIRECT(_xlfn.CONCAT(\"'Intervenant \",R$5,\"'!$C\"&ROW($H26))))","v":"NC"},{"$f":"IF(INDIRECT(_xlfn.CONCAT(\"'Intervenant \",S$5,\"'!$B\"&ROW($H26)))=\"NON\",\"NC\",INDIRECT(_xlfn.CONCAT(\"'Intervenant \",S$5,\"'!$C\"&ROW($H26))))","v":"NC"},{"$f":"IF(INDIRECT(_xlfn.CONCAT(\"'Intervenant \",T$5,\"'!$B\"&ROW($H26)))=\"NON\",\"NC\",INDIRECT(_xlfn.CONCAT(\"'Intervenant \",T$5,\"'!$C\"&ROW($H26))))","v":"NC"},{"$f":"IF(INDIRECT(_xlfn.CONCAT(\"'Intervenant \",U$5,\"'!$B\"&ROW($H26)))=\"NON\",\"NC\",INDIRECT(_xlfn.CONCAT(\"'Intervenant \",U$5,\"'!$C\"&ROW($H26))))","v":"NC"},{"$f":"IF(INDIRECT(_xlfn.CONCAT(\"'Intervenant \",V$5,\"'!$B\"&ROW($H26)))=\"NON\",\"NC\",INDIRECT(_xlfn.CONCAT(\"'Intervenant \",V$5,\"'!$C\"&ROW($H26))))","v":"NC"},{"$f":"IF(INDIRECT(_xlfn.CONCAT(\"'Intervenant \",W$5,\"'!$B\"&ROW($H26)))=\"NON\",\"NC\",INDIRECT(_xlfn.CONCAT(\"'Intervenant \",W$5,\"'!$C\"&ROW($H26))))","v":"NC"},{"$f":"IF(INDIRECT(_xlfn.CONCAT(\"'Intervenant \",X$5,\"'!$B\"&ROW($H26)))=\"NON\",\"NC\",INDIRECT(_xlfn.CONCAT(\"'Intervenant \",X$5,\"'!$C\"&ROW($H26))))","v":"NC"},{"$f":"IF(INDIRECT(_xlfn.CONCAT(\"'Intervenant \",Y$5,\"'!$B\"&ROW($H26)))=\"NON\",\"NC\",INDIRECT(_xlfn.CONCAT(\"'Intervenant \",Y$5,\"'!$C\"&ROW($H26))))","v":"NC"},{"$f":"IF(INDIRECT(_xlfn.CONCAT(\"'Intervenant \",Z$5,\"'!$B\"&ROW($H26)))=\"NON\",\"NC\",INDIRECT(_xlfn.CONCAT(\"'Intervenant \",Z$5,\"'!$C\"&ROW($H26))))","v":"NC"},{"$f":"IF(INDIRECT(_xlfn.CONCAT(\"'Intervenant \",AA$5,\"'!$B\"&ROW($H26)))=\"NON\",\"NC\",INDIRECT(_xlfn.CONCAT(\"'Intervenant \",AA$5,\"'!$C\"&ROW($H26))))","v":"NC"},{"$f":"IF(INDIRECT(_xlfn.CONCAT(\"'Intervenant \",AB$5,\"'!$B\"&ROW($H26)))=\"NON\",\"NC\",INDIRECT(_xlfn.CONCAT(\"'Intervenant \",AB$5,\"'!$C\"&ROW($H26))))","v":"NC"}]
[null,null,"16","Permis de construire, Permis d'aménager","CIM BIM",{"$f":"IF(OR('Intervenant 1'!B27=\"OUI\",'Intervenant 2'!B27=\"OUI\",'Intervenant 3'!B27=\"OUI\",'Intervenant 4'!B27=\"OUI\",'Intervenant 5'!B27=\"OUI\",'Intervenant 6'!B27=\"OUI\",'Intervenant 7'!B27=\"OUI\",'Intervenant 8'!B27=\"OUI\",'Intervenant 9'!B27=\"OUI\",'Intervenant 10'!B27=\"OUI\",'Intervenant 11'!B27=\"OUI\",'Intervenant 12'!B27=\"OUI\",'Intervenant 13'!B27=\"OUI\",'Intervenant 14'!B27=\"OUI\",'Intervenant 15'!B27=\"OUI\",'Intervenant 16'!B27=\"OUI\",'Intervenant 17'!B27=\"OUI\",'Intervenant 18'!B27=\"OUI\",'Intervenant 19'!B27=\"OUI\",'Intervenant 20'!B27=\"OUI\"),\"OUI\",\"NON\")","v":"NON"},"NC",null,{"$f":"IF(INDIRECT(_xlfn.CONCAT(\"'Intervenant \",I$5,\"'!$B\"&ROW($H27)))=\"NON\",\"NC\",INDIRECT(_xlfn.CONCAT(\"'Intervenant \",I$5,\"'!$C\"&ROW($H27))))","v":"NC"},{"$f":"IF(INDIRECT(_xlfn.CONCAT(\"'Intervenant \",J$5,\"'!$B\"&ROW($H27)))=\"NON\",\"NC\",INDIRECT(_xlfn.CONCAT(\"'Intervenant \",J$5,\"'!$C\"&ROW($H27))))","v":"NC"},{"$f":"IF(INDIRECT(_xlfn.CONCAT(\"'Intervenant \",K$5,\"'!$B\"&ROW($H27)))=\"NON\",\"NC\",INDIRECT(_xlfn.CONCAT(\"'Intervenant \",K$5,\"'!$C\"&ROW($H27))))","v":"NC"},{"$f":"IF(INDIRECT(_xlfn.CONCAT(\"'Intervenant \",L$5,\"'!$B\"&ROW($H27)))=\"NON\",\"NC\",INDIRECT(_xlfn.CONCAT(\"'Intervenant \",L$5,\"'!$C\"&ROW($H27))))","v":"NC"},{"$f":"IF(INDIRECT(_xlfn.CONCAT(\"'Intervenant \",M$5,\"'!$B\"&ROW($H27)))=\"NON\",\"NC\",INDIRECT(_xlfn.CONCAT(\"'Intervenant \",M$5,\"'!$C\"&ROW($H27))))","v":"NC"},{"$f":"IF(INDIRECT(_xlfn.CONCAT(\"'Intervenant \",N$5,\"'!$B\"&ROW($H27)))=\"NON\",\"NC\",INDIRECT(_xlfn.CONCAT(\"'Intervenant \",N$5,\"'!$C\"&ROW($H27))))","v":"NC"},{"$f":"IF(INDIRECT(_xlfn.CONCAT(\"'Intervenant \",O$5,\"'!$B\"&ROW($H27)))=\"NON\",\"NC\",INDIRECT(_xlfn.CONCAT(\"'Intervenant \",O$5,\"'!$C\"&ROW($H27))))","v":"NC"},{"$f":"IF(INDIRECT(_xlfn.CONCAT(\"'Intervenant \",P$5,\"'!$B\"&ROW($H27)))=\"NON\",\"NC\",INDIRECT(_xlfn.CONCAT(\"'Intervenant \",P$5,\"'!$C\"&ROW($H27))))","v":"NC"},{"$f":"IF(INDIRECT(_xlfn.CONCAT(\"'Intervenant \",Q$5,\"'!$B\"&ROW($H27)))=\"NON\",\"NC\",INDIRECT(_xlfn.CONCAT(\"'Intervenant \",Q$5,\"'!$C\"&ROW($H27))))","v":"NC"},{"$f":"IF(INDIRECT(_xlfn.CONCAT(\"'Intervenant \",R$5,\"'!$B\"&ROW($H27)))=\"NON\",\"NC\",INDIRECT(_xlfn.CONCAT(\"'Intervenant \",R$5,\"'!$C\"&ROW($H27))))","v":"NC"},{"$f":"IF(INDIRECT(_xlfn.CONCAT(\"'Intervenant \",S$5,\"'!$B\"&ROW($H27)))=\"NON\",\"NC\",INDIRECT(_xlfn.CONCAT(\"'Intervenant \",S$5,\"'!$C\"&ROW($H27))))","v":"NC"},{"$f":"IF(INDIRECT(_xlfn.CONCAT(\"'Intervenant \",T$5,\"'!$B\"&ROW($H27)))=\"NON\",\"NC\",INDIRECT(_xlfn.CONCAT(\"'Intervenant \",T$5,\"'!$C\"&ROW($H27))))","v":"NC"},{"$f":"IF(INDIRECT(_xlfn.CONCAT(\"'Intervenant \",U$5,\"'!$B\"&ROW($H27)))=\"NON\",\"NC\",INDIRECT(_xlfn.CONCAT(\"'Intervenant \",U$5,\"'!$C\"&ROW($H27))))","v":"NC"},{"$f":"IF(INDIRECT(_xlfn.CONCAT(\"'Intervenant \",V$5,\"'!$B\"&ROW($H27)))=\"NON\",\"NC\",INDIRECT(_xlfn.CONCAT(\"'Intervenant \",V$5,\"'!$C\"&ROW($H27))))","v":"NC"},{"$f":"IF(INDIRECT(_xlfn.CONCAT(\"'Intervenant \",W$5,\"'!$B\"&ROW($H27)))=\"NON\",\"NC\",INDIRECT(_xlfn.CONCAT(\"'Intervenant \",W$5,\"'!$C\"&ROW($H27))))","v":"NC"},{"$f":"IF(INDIRECT(_xlfn.CONCAT(\"'Intervenant \",X$5,\"'!$B\"&ROW($H27)))=\"NON\",\"NC\",INDIRECT(_xlfn.CONCAT(\"'Intervenant \",X$5,\"'!$C\"&ROW($H27))))","v":"NC"},{"$f":"IF(INDIRECT(_xlfn.CONCAT(\"'Intervenant \",Y$5,\"'!$B\"&ROW($H27)))=\"NON\",\"NC\",INDIRECT(_xlfn.CONCAT(\"'Intervenant \",Y$5,\"'!$C\"&ROW($H27))))","v":"NC"},{"$f":"IF(INDIRECT(_xlfn.CONCAT(\"'Intervenant \",Z$5,\"'!$B\"&ROW($H27)))=\"NON\",\"NC\",INDIRECT(_xlfn.CONCAT(\"'Intervenant \",Z$5,\"'!$C\"&ROW($H27))))","v":"NC"},{"$f":"IF(INDIRECT(_xlfn.CONCAT(\"'Intervenant \",AA$5,\"'!$B\"&ROW($H27)))=\"NON\",\"NC\",INDIRECT(_xlfn.CONCAT(\"'Intervenant \",AA$5,\"'!$C\"&ROW($H27))))","v":"NC"},{"$f":"IF(INDIRECT(_xlfn.CONCAT(\"'Intervenant \",AB$5,\"'!$B\"&ROW($H27)))=\"NON\",\"NC\",INDIRECT(_xlfn.CONCAT(\"'Intervenant \",AB$5,\"'!$C\"&ROW($H27))))","v":"NC"}]
[null,null,"17","Préparation de chantier (ouvrages provisoires, logistique…)","CIM BIM",{"$f":"IF(OR('Intervenant 1'!B28=\"OUI\",'Intervenant 2'!B28=\"OUI\",'Intervenant 3'!B28=\"OUI\",'Intervenant 4'!B28=\"OUI\",'Intervenant 5'!B28=\"OUI\",'Intervenant 6'!B28=\"OUI\",'Intervenant 7'!B28=\"OUI\",'Intervenant 8'!B28=\"OUI\",'Intervenant 9'!B28=\"OUI\",'Intervenant 10'!B28=\"OUI\",'Intervenant 11'!B28=\"OUI\",'Intervenant 12'!B28=\"OUI\",'Intervenant 13'!B28=\"OUI\",'Intervenant 14'!B28=\"OUI\",'Intervenant 15'!B28=\"OUI\",'Intervenant 16'!B28=\"OUI\",'Intervenant 17'!B28=\"OUI\",'Intervenant 18'!B28=\"OUI\",'Intervenant 19'!B28=\"OUI\",'Intervenant 20'!B28=\"OUI\"),\"OUI\",\"NON\")","v":"NON"},"NC",null,{"$f":"IF(INDIRECT(_xlfn.CONCAT(\"'Intervenant \",I$5,\"'!$B\"&ROW($H28)))=\"NON\",\"NC\",INDIRECT(_xlfn.CONCAT(\"'Intervenant \",I$5,\"'!$C\"&ROW($H28))))","v":"NC"},{"$f":"IF(INDIRECT(_xlfn.CONCAT(\"'Intervenant \",J$5,\"'!$B\"&ROW($H28)))=\"NON\",\"NC\",INDIRECT(_xlfn.CONCAT(\"'Intervenant \",J$5,\"'!$C\"&ROW($H28))))","v":"NC"},{"$f":"IF(INDIRECT(_xlfn.CONCAT(\"'Intervenant \",K$5,\"'!$B\"&ROW($H28)))=\"NON\",\"NC\",INDIRECT(_xlfn.CONCAT(\"'Intervenant \",K$5,\"'!$C\"&ROW($H28))))","v":"NC"},{"$f":"IF(INDIRECT(_xlfn.CONCAT(\"'Intervenant \",L$5,\"'!$B\"&ROW($H28)))=\"NON\",\"NC\",INDIRECT(_xlfn.CONCAT(\"'Intervenant \",L$5,\"'!$C\"&ROW($H28))))","v":"NC"},{"$f":"IF(INDIRECT(_xlfn.CONCAT(\"'Intervenant \",M$5,\"'!$B\"&ROW($H28)))=\"NON\",\"NC\",INDIRECT(_xlfn.CONCAT(\"'Intervenant \",M$5,\"'!$C\"&ROW($H28))))","v":"NC"},{"$f":"IF(INDIRECT(_xlfn.CONCAT(\"'Intervenant \",N$5,\"'!$B\"&ROW($H28)))=\"NON\",\"NC\",INDIRECT(_xlfn.CONCAT(\"'Intervenant \",N$5,\"'!$C\"&ROW($H28))))","v":"NC"},{"$f":"IF(INDIRECT(_xlfn.CONCAT(\"'Intervenant \",O$5,\"'!$B\"&ROW($H28)))=\"NON\",\"NC\",INDIRECT(_xlfn.CONCAT(\"'Intervenant \",O$5,\"'!$C\"&ROW($H28))))","v":"NC"},{"$f":"IF(INDIRECT(_xlfn.CONCAT(\"'Intervenant \",P$5,\"'!$B\"&ROW($H28)))=\"NON\",\"NC\",INDIRECT(_xlfn.CONCAT(\"'Intervenant \",P$5,\"'!$C\"&ROW($H28))))","v":"NC"},{"$f":"IF(INDIRECT(_xlfn.CONCAT(\"'Intervenant \",Q$5,\"'!$B\"&ROW($H28)))=\"NON\",\"NC\",INDIRECT(_xlfn.CONCAT(\"'Intervenant \",Q$5,\"'!$C\"&ROW($H28))))","v":"NC"},{"$f":"IF(INDIRECT(_xlfn.CONCAT(\"'Intervenant \",R$5,\"'!$B\"&ROW($H28)))=\"NON\",\"NC\",INDIRECT(_xlfn.CONCAT(\"'Intervenant \",R$5,\"'!$C\"&ROW($H28))))","v":"NC"},{"$f":"IF(INDIRECT(_xlfn.CONCAT(\"'Intervenant \",S$5,\"'!$B\"&ROW($H28)))=\"NON\",\"NC\",INDIRECT(_xlfn.CONCAT(\"'Intervenant \",S$5,\"'!$C\"&ROW($H28))))","v":"NC"},{"$f":"IF(INDIRECT(_xlfn.CONCAT(\"'Intervenant \",T$5,\"'!$B\"&ROW($H28)))=\"NON\",\"NC\",INDIRECT(_xlfn.CONCAT(\"'Intervenant \",T$5,\"'!$C\"&ROW($H28))))","v":"NC"},{"$f":"IF(INDIRECT(_xlfn.CONCAT(\"'Intervenant \",U$5,\"'!$B\"&ROW($H28)))=\"NON\",\"NC\",INDIRECT(_xlfn.CONCAT(\"'Intervenant \",U$5,\"'!$C\"&ROW($H28))))","v":"NC"},{"$f":"IF(INDIRECT(_xlfn.CONCAT(\"'Intervenant \",V$5,\"'!$B\"&ROW($H28)))=\"NON\",\"NC\",INDIRECT(_xlfn.CONCAT(\"'Intervenant \",V$5,\"'!$C\"&ROW($H28))))","v":"NC"},{"$f":"IF(INDIRECT(_xlfn.CONCAT(\"'Intervenant \",W$5,\"'!$B\"&ROW($H28)))=\"NON\",\"NC\",INDIRECT(_xlfn.CONCAT(\"'Intervenant \",W$5,\"'!$C\"&ROW($H28))))","v":"NC"},{"$f":"IF(INDIRECT(_xlfn.CONCAT(\"'Intervenant \",X$5,\"'!$B\"&ROW($H28)))=\"NON\",\"NC\",INDIRECT(_xlfn.CONCAT(\"'Intervenant \",X$5,\"'!$C\"&ROW($H28))))","v":"NC"},{"$f":"IF(INDIRECT(_xlfn.CONCAT(\"'Intervenant \",Y$5,\"'!$B\"&ROW($H28)))=\"NON\",\"NC\",INDIRECT(_xlfn.CONCAT(\"'Intervenant \",Y$5,\"'!$C\"&ROW($H28))))","v":"NC"},{"$f":"IF(INDIRECT(_xlfn.CONCAT(\"'Intervenant \",Z$5,\"'!$B\"&ROW($H28)))=\"NON\",\"NC\",INDIRECT(_xlfn.CONCAT(\"'Intervenant \",Z$5,\"'!$C\"&ROW($H28))))","v":"NC"},{"$f":"IF(INDIRECT(_xlfn.CONCAT(\"'Intervenant \",AA$5,\"'!$B\"&ROW($H28)))=\"NON\",\"NC\",INDIRECT(_xlfn.CONCAT(\"'Intervenant \",AA$5,\"'!$C\"&ROW($H28))))","v":"NC"},{"$f":"IF(INDIRECT(_xlfn.CONCAT(\"'Intervenant \",AB$5,\"'!$B\"&ROW($H28)))=\"NON\",\"NC\",INDIRECT(_xlfn.CONCAT(\"'Intervenant \",AB$5,\"'!$C\"&ROW($H28))))","v":"NC"}]
[null,null,"18","Préfabrication","BIM",{"$f":"IF(OR('Intervenant 1'!B29=\"OUI\",'Intervenant 2'!B29=\"OUI\",'Intervenant 3'!B29=\"OUI\",'Intervenant 4'!B29=\"OUI\",'Intervenant 5'!B29=\"OUI\",'Intervenant 6'!B29=\"OUI\",'Intervenant 7'!B29=\"OUI\",'Intervenant 8'!B29=\"OUI\",'Intervenant 9'!B29=\"OUI\",'Intervenant 10'!B29=\"OUI\",'Intervenant 11'!B29=\"OUI\",'Intervenant 12'!B29=\"OUI\",'Intervenant 13'!B29=\"OUI\",'Intervenant 14'!B29=\"OUI\",'Intervenant 15'!B29=\"OUI\",'Intervenant 16'!B29=\"OUI\",'Intervenant 17'!B29=\"OUI\",'Intervenant 18'!B29=\"OUI\",'Intervenant 19'!B29=\"OUI\",'Intervenant 20'!B29=\"OUI\"),\"OUI\",\"NON\")","v":"NON"},"NC",null,{"$f":"IF(INDIRECT(_xlfn.CONCAT(\"'Intervenant \",I$5,\"'!$B\"&ROW($H29)))=\"NON\",\"NC\",INDIRECT(_xlfn.CONCAT(\"'Intervenant \",I$5,\"'!$C\"&ROW($H29))))","v":"NC"},{"$f":"IF(INDIRECT(_xlfn.CONCAT(\"'Intervenant \",J$5,\"'!$B\"&ROW($H29)))=\"NON\",\"NC\",INDIRECT(_xlfn.CONCAT(\"'Intervenant \",J$5,\"'!$C\"&ROW($H29))))","v":"NC"},{"$f":"IF(INDIRECT(_xlfn.CONCAT(\"'Intervenant \",K$5,\"'!$B\"&ROW($H29)))=\"NON\",\"NC\",INDIRECT(_xlfn.CONCAT(\"'Intervenant \",K$5,\"'!$C\"&ROW($H29))))","v":"NC"},{"$f":"IF(INDIRECT(_xlfn.CONCAT(\"'Intervenant \",L$5,\"'!$B\"&ROW($H29)))=\"NON\",\"NC\",INDIRECT(_xlfn.CONCAT(\"'Intervenant \",L$5,\"'!$C\"&ROW($H29))))","v":"NC"},{"$f":"IF(INDIRECT(_xlfn.CONCAT(\"'Intervenant \",M$5,\"'!$B\"&ROW($H29)))=\"NON\",\"NC\",INDIRECT(_xlfn.CONCAT(\"'Intervenant \",M$5,\"'!$C\"&ROW($H29))))","v":"NC"},{"$f":"IF(INDIRECT(_xlfn.CONCAT(\"'Intervenant \",N$5,\"'!$B\"&ROW($H29)))=\"NON\",\"NC\",INDIRECT(_xlfn.CONCAT(\"'Intervenant \",N$5,\"'!$C\"&ROW($H29))))","v":"NC"},{"$f":"IF(INDIRECT(_xlfn.CONCAT(\"'Intervenant \",O$5,\"'!$B\"&ROW($H29)))=\"NON\",\"NC\",INDIRECT(_xlfn.CONCAT(\"'Intervenant \",O$5,\"'!$C\"&ROW($H29))))","v":"NC"},{"$f":"IF(INDIRECT(_xlfn.CONCAT(\"'Intervenant \",P$5,\"'!$B\"&ROW($H29)))=\"NON\",\"NC\",INDIRECT(_xlfn.CONCAT(\"'Intervenant \",P$5,\"'!$C\"&ROW($H29))))","v":"NC"},{"$f":"IF(INDIRECT(_xlfn.CONCAT(\"'Intervenant \",Q$5,\"'!$B\"&ROW($H29)))=\"NON\",\"NC\",INDIRECT(_xlfn.CONCAT(\"'Intervenant \",Q$5,\"'!$C\"&ROW($H29))))","v":"NC"},{"$f":"IF(INDIRECT(_xlfn.CONCAT(\"'Intervenant \",R$5,\"'!$B\"&ROW($H29)))=\"NON\",\"NC\",INDIRECT(_xlfn.CONCAT(\"'Intervenant \",R$5,\"'!$C\"&ROW($H29))))","v":"NC"},{"$f":"IF(INDIRECT(_xlfn.CONCAT(\"'Intervenant \",S$5,\"'!$B\"&ROW($H29)))=\"NON\",\"NC\",INDIRECT(_xlfn.CONCAT(\"'Intervenant \",S$5,\"'!$C\"&ROW($H29))))","v":"NC"},{"$f":"IF(INDIRECT(_xlfn.CONCAT(\"'Intervenant \",T$5,\"'!$B\"&ROW($H29)))=\"NON\",\"NC\",INDIRECT(_xlfn.CONCAT(\"'Intervenant \",T$5,\"'!$C\"&ROW($H29))))","v":"NC"},{"$f":"IF(INDIRECT(_xlfn.CONCAT(\"'Intervenant \",U$5,\"'!$B\"&ROW($H29)))=\"NON\",\"NC\",INDIRECT(_xlfn.CONCAT(\"'Intervenant \",U$5,\"'!$C\"&ROW($H29))))","v":"NC"},{"$f":"IF(INDIRECT(_xlfn.CONCAT(\"'Intervenant \",V$5,\"'!$B\"&ROW($H29)))=\"NON\",\"NC\",INDIRECT(_xlfn.CONCAT(\"'Intervenant \",V$5,\"'!$C\"&ROW($H29))))","v":"NC"},{"$f":"IF(INDIRECT(_xlfn.CONCAT(\"'Intervenant \",W$5,\"'!$B\"&ROW($H29)))=\"NON\",\"NC\",INDIRECT(_xlfn.CONCAT(\"'Intervenant \",W$5,\"'!$C\"&ROW($H29))))","v":"NC"},{"$f":"IF(INDIRECT(_xlfn.CONCAT(\"'Intervenant \",X$5,\"'!$B\"&ROW($H29)))=\"NON\",\"NC\",INDIRECT(_xlfn.CONCAT(\"'Intervenant \",X$5,\"'!$C\"&ROW($H29))))","v":"NC"},{"$f":"IF(INDIRECT(_xlfn.CONCAT(\"'Intervenant \",Y$5,\"'!$B\"&ROW($H29)))=\"NON\",\"NC\",INDIRECT(_xlfn.CONCAT(\"'Intervenant \",Y$5,\"'!$C\"&ROW($H29))))","v":"NC"},{"$f":"IF(INDIRECT(_xlfn.CONCAT(\"'Intervenant \",Z$5,\"'!$B\"&ROW($H29)))=\"NON\",\"NC\",INDIRECT(_xlfn.CONCAT(\"'Intervenant \",Z$5,\"'!$C\"&ROW($H29))))","v":"NC"},{"$f":"IF(INDIRECT(_xlfn.CONCAT(\"'Intervenant \",AA$5,\"'!$B\"&ROW($H29)))=\"NON\",\"NC\",INDIRECT(_xlfn.CONCAT(\"'Intervenant \",AA$5,\"'!$C\"&ROW($H29))))","v":"NC"},{"$f":"IF(INDIRECT(_xlfn.CONCAT(\"'Intervenant \",AB$5,\"'!$B\"&ROW($H29)))=\"NON\",\"NC\",INDIRECT(_xlfn.CONCAT(\"'Intervenant \",AB$5,\"'!$C\"&ROW($H29))))","v":"NC"}]
[null,null,19,"Réception des ouvrages et Consolidation des dossiers des ouvrages exécutés numériques","BIM",{"$f":"IF(OR('Intervenant 1'!B30=\"OUI\",'Intervenant 2'!B30=\"OUI\",'Intervenant 3'!B30=\"OUI\",'Intervenant 4'!B30=\"OUI\",'Intervenant 5'!B30=\"OUI\",'Intervenant 6'!B30=\"OUI\",'Intervenant 7'!B30=\"OUI\",'Intervenant 8'!B30=\"OUI\",'Intervenant 9'!B30=\"OUI\",'Intervenant 10'!B30=\"OUI\",'Intervenant 11'!B30=\"OUI\",'Intervenant 12'!B30=\"OUI\",'Intervenant 13'!B30=\"OUI\",'Intervenant 14'!B30=\"OUI\",'Intervenant 15'!B30=\"OUI\",'Intervenant 16'!B30=\"OUI\",'Intervenant 17'!B30=\"OUI\",'Intervenant 18'!B30=\"OUI\",'Intervenant 19'!B30=\"OUI\",'Intervenant 20'!B30=\"OUI\"),\"OUI\",\"NON\")","v":"NON"},"NC",null,{"$f":"IF(INDIRECT(_xlfn.CONCAT(\"'Intervenant \",I$5,\"'!$B\"&ROW($H30)))=\"NON\",\"NC\",INDIRECT(_xlfn.CONCAT(\"'Intervenant \",I$5,\"'!$C\"&ROW($H30))))","v":"NC"},{"$f":"IF(INDIRECT(_xlfn.CONCAT(\"'Intervenant \",J$5,\"'!$B\"&ROW($H30)))=\"NON\",\"NC\",INDIRECT(_xlfn.CONCAT(\"'Intervenant \",J$5,\"'!$C\"&ROW($H30))))","v":"NC"},{"$f":"IF(INDIRECT(_xlfn.CONCAT(\"'Intervenant \",K$5,\"'!$B\"&ROW($H30)))=\"NON\",\"NC\",INDIRECT(_xlfn.CONCAT(\"'Intervenant \",K$5,\"'!$C\"&ROW($H30))))","v":"NC"},{"$f":"IF(INDIRECT(_xlfn.CONCAT(\"'Intervenant \",L$5,\"'!$B\"&ROW($H30)))=\"NON\",\"NC\",INDIRECT(_xlfn.CONCAT(\"'Intervenant \",L$5,\"'!$C\"&ROW($H30))))","v":"NC"},{"$f":"IF(INDIRECT(_xlfn.CONCAT(\"'Intervenant \",M$5,\"'!$B\"&ROW($H30)))=\"NON\",\"NC\",INDIRECT(_xlfn.CONCAT(\"'Intervenant \",M$5,\"'!$C\"&ROW($H30))))","v":"NC"},{"$f":"IF(INDIRECT(_xlfn.CONCAT(\"'Intervenant \",N$5,\"'!$B\"&ROW($H30)))=\"NON\",\"NC\",INDIRECT(_xlfn.CONCAT(\"'Intervenant \",N$5,\"'!$C\"&ROW($H30))))","v":"NC"},{"$f":"IF(INDIRECT(_xlfn.CONCAT(\"'Intervenant \",O$5,\"'!$B\"&ROW($H30)))=\"NON\",\"NC\",INDIRECT(_xlfn.CONCAT(\"'Intervenant \",O$5,\"'!$C\"&ROW($H30))))","v":"NC"},{"$f":"IF(INDIRECT(_xlfn.CONCAT(\"'Intervenant \",P$5,\"'!$B\"&ROW($H30)))=\"NON\",\"NC\",INDIRECT(_xlfn.CONCAT(\"'Intervenant \",P$5,\"'!$C\"&ROW($H30))))","v":"NC"},{"$f":"IF(INDIRECT(_xlfn.CONCAT(\"'Intervenant \",Q$5,\"'!$B\"&ROW($H30)))=\"NON\",\"NC\",INDIRECT(_xlfn.CONCAT(\"'Intervenant \",Q$5,\"'!$C\"&ROW($H30))))","v":"NC"},{"$f":"IF(INDIRECT(_xlfn.CONCAT(\"'Intervenant \",R$5,\"'!$B\"&ROW($H30)))=\"NON\",\"NC\",INDIRECT(_xlfn.CONCAT(\"'Intervenant \",R$5,\"'!$C\"&ROW($H30))))","v":"NC"},{"$f":"IF(INDIRECT(_xlfn.CONCAT(\"'Intervenant \",S$5,\"'!$B\"&ROW($H30)))=\"NON\",\"NC\",INDIRECT(_xlfn.CONCAT(\"'Intervenant \",S$5,\"'!$C\"&ROW($H30))))","v":"NC"},{"$f":"IF(INDIRECT(_xlfn.CONCAT(\"'Intervenant \",T$5,\"'!$B\"&ROW($H30)))=\"NON\",\"NC\",INDIRECT(_xlfn.CONCAT(\"'Intervenant \",T$5,\"'!$C\"&ROW($H30))))","v":"NC"},{"$f":"IF(INDIRECT(_xlfn.CONCAT(\"'Intervenant \",U$5,\"'!$B\"&ROW($H30)))=\"NON\",\"NC\",INDIRECT(_xlfn.CONCAT(\"'Intervenant \",U$5,\"'!$C\"&ROW($H30))))","v":"NC"},{"$f":"IF(INDIRECT(_xlfn.CONCAT(\"'Intervenant \",V$5,\"'!$B\"&ROW($H30)))=\"NON\",\"NC\",INDIRECT(_xlfn.CONCAT(\"'Intervenant \",V$5,\"'!$C\"&ROW($H30))))","v":"NC"},{"$f":"IF(INDIRECT(_xlfn.CONCAT(\"'Intervenant \",W$5,\"'!$B\"&ROW($H30)))=\"NON\",\"NC\",INDIRECT(_xlfn.CONCAT(\"'Intervenant \",W$5,\"'!$C\"&ROW($H30))))","v":"NC"},{"$f":"IF(INDIRECT(_xlfn.CONCAT(\"'Intervenant \",X$5,\"'!$B\"&ROW($H30)))=\"NON\",\"NC\",INDIRECT(_xlfn.CONCAT(\"'Intervenant \",X$5,\"'!$C\"&ROW($H30))))","v":"NC"},{"$f":"IF(INDIRECT(_xlfn.CONCAT(\"'Intervenant \",Y$5,\"'!$B\"&ROW($H30)))=\"NON\",\"NC\",INDIRECT(_xlfn.CONCAT(\"'Intervenant \",Y$5,\"'!$C\"&ROW($H30))))","v":"NC"},{"$f":"IF(INDIRECT(_xlfn.CONCAT(\"'Intervenant \",Z$5,\"'!$B\"&ROW($H30)))=\"NON\",\"NC\",INDIRECT(_xlfn.CONCAT(\"'Intervenant \",Z$5,\"'!$C\"&ROW($H30))))","v":"NC"},{"$f":"IF(INDIRECT(_xlfn.CONCAT(\"'Intervenant \",AA$5,\"'!$B\"&ROW($H30)))=\"NON\",\"NC\",INDIRECT(_xlfn.CONCAT(\"'Intervenant \",AA$5,\"'!$C\"&ROW($H30))))","v":"NC"},{"$f":"IF(INDIRECT(_xlfn.CONCAT(\"'Intervenant \",AB$5,\"'!$B\"&ROW($H30)))=\"NON\",\"NC\",INDIRECT(_xlfn.CONCAT(\"'Intervenant \",AB$5,\"'!$C\"&ROW($H30))))","v":"NC"}]
[null,"EXPLOITATION",20,"Conception et réalisation d'une maquette numérique de gestion","BIM",{"$f":"IF(OR('Intervenant 1'!B31=\"OUI\",'Intervenant 2'!B31=\"OUI\",'Intervenant 3'!B31=\"OUI\",'Intervenant 4'!B31=\"OUI\",'Intervenant 5'!B31=\"OUI\",'Intervenant 6'!B31=\"OUI\",'Intervenant 7'!B31=\"OUI\",'Intervenant 8'!B31=\"OUI\",'Intervenant 9'!B31=\"OUI\",'Intervenant 10'!B31=\"OUI\",'Intervenant 11'!B31=\"OUI\",'Intervenant 12'!B31=\"OUI\",'Intervenant 13'!B31=\"OUI\",'Intervenant 14'!B31=\"OUI\",'Intervenant 15'!B31=\"OUI\",'Intervenant 16'!B31=\"OUI\",'Intervenant 17'!B31=\"OUI\",'Intervenant 18'!B31=\"OUI\",'Intervenant 19'!B31=\"OUI\",'Intervenant 20'!B31=\"OUI\"),\"OUI\",\"NON\")","v":"NON"},"NC",null,{"$f":"IF(INDIRECT(_xlfn.CONCAT(\"'Intervenant \",I$5,\"'!$B\"&ROW($H31)))=\"NON\",\"NC\",INDIRECT(_xlfn.CONCAT(\"'Intervenant \",I$5,\"'!$C\"&ROW($H31))))","v":"NC"},{"$f":"IF(INDIRECT(_xlfn.CONCAT(\"'Intervenant \",J$5,\"'!$B\"&ROW($H31)))=\"NON\",\"NC\",INDIRECT(_xlfn.CONCAT(\"'Intervenant \",J$5,\"'!$C\"&ROW($H31))))","v":"NC"},{"$f":"IF(INDIRECT(_xlfn.CONCAT(\"'Intervenant \",K$5,\"'!$B\"&ROW($H31)))=\"NON\",\"NC\",INDIRECT(_xlfn.CONCAT(\"'Intervenant \",K$5,\"'!$C\"&ROW($H31))))","v":"NC"},{"$f":"IF(INDIRECT(_xlfn.CONCAT(\"'Intervenant \",L$5,\"'!$B\"&ROW($H31)))=\"NON\",\"NC\",INDIRECT(_xlfn.CONCAT(\"'Intervenant \",L$5,\"'!$C\"&ROW($H31))))","v":"NC"},{"$f":"IF(INDIRECT(_xlfn.CONCAT(\"'Intervenant \",M$5,\"'!$B\"&ROW($H31)))=\"NON\",\"NC\",INDIRECT(_xlfn.CONCAT(\"'Intervenant \",M$5,\"'!$C\"&ROW($H31))))","v":"NC"},{"$f":"IF(INDIRECT(_xlfn.CONCAT(\"'Intervenant \",N$5,\"'!$B\"&ROW($H31)))=\"NON\",\"NC\",INDIRECT(_xlfn.CONCAT(\"'Intervenant \",N$5,\"'!$C\"&ROW($H31))))","v":"NC"},{"$f":"IF(INDIRECT(_xlfn.CONCAT(\"'Intervenant \",O$5,\"'!$B\"&ROW($H31)))=\"NON\",\"NC\",INDIRECT(_xlfn.CONCAT(\"'Intervenant \",O$5,\"'!$C\"&ROW($H31))))","v":"NC"},{"$f":"IF(INDIRECT(_xlfn.CONCAT(\"'Intervenant \",P$5,\"'!$B\"&ROW($H31)))=\"NON\",\"NC\",INDIRECT(_xlfn.CONCAT(\"'Intervenant \",P$5,\"'!$C\"&ROW($H31))))","v":"NC"},{"$f":"IF(INDIRECT(_xlfn.CONCAT(\"'Intervenant \",Q$5,\"'!$B\"&ROW($H31)))=\"NON\",\"NC\",INDIRECT(_xlfn.CONCAT(\"'Intervenant \",Q$5,\"'!$C\"&ROW($H31))))","v":"NC"},{"$f":"IF(INDIRECT(_xlfn.CONCAT(\"'Intervenant \",R$5,\"'!$B\"&ROW($H31)))=\"NON\",\"NC\",INDIRECT(_xlfn.CONCAT(\"'Intervenant \",R$5,\"'!$C\"&ROW($H31))))","v":"NC"},{"$f":"IF(INDIRECT(_xlfn.CONCAT(\"'Intervenant \",S$5,\"'!$B\"&ROW($H31)))=\"NON\",\"NC\",INDIRECT(_xlfn.CONCAT(\"'Intervenant \",S$5,\"'!$C\"&ROW($H31))))","v":"NC"},{"$f":"IF(INDIRECT(_xlfn.CONCAT(\"'Intervenant \",T$5,\"'!$B\"&ROW($H31)))=\"NON\",\"NC\",INDIRECT(_xlfn.CONCAT(\"'Intervenant \",T$5,\"'!$C\"&ROW($H31))))","v":"NC"},{"$f":"IF(INDIRECT(_xlfn.CONCAT(\"'Intervenant \",U$5,\"'!$B\"&ROW($H31)))=\"NON\",\"NC\",INDIRECT(_xlfn.CONCAT(\"'Intervenant \",U$5,\"'!$C\"&ROW($H31))))","v":"NC"},{"$f":"IF(INDIRECT(_xlfn.CONCAT(\"'Intervenant \",V$5,\"'!$B\"&ROW($H31)))=\"NON\",\"NC\",INDIRECT(_xlfn.CONCAT(\"'Intervenant \",V$5,\"'!$C\"&ROW($H31))))","v":"NC"},{"$f":"IF(INDIRECT(_xlfn.CONCAT(\"'Intervenant \",W$5,\"'!$B\"&ROW($H31)))=\"NON\",\"NC\",INDIRECT(_xlfn.CONCAT(\"'Intervenant \",W$5,\"'!$C\"&ROW($H31))))","v":"NC"},{"$f":"IF(INDIRECT(_xlfn.CONCAT(\"'Intervenant \",X$5,\"'!$B\"&ROW($H31)))=\"NON\",\"NC\",INDIRECT(_xlfn.CONCAT(\"'Intervenant \",X$5,\"'!$C\"&ROW($H31))))","v":"NC"},{"$f":"IF(INDIRECT(_xlfn.CONCAT(\"'Intervenant \",Y$5,\"'!$B\"&ROW($H31)))=\"NON\",\"NC\",INDIRECT(_xlfn.CONCAT(\"'Intervenant \",Y$5,\"'!$C\"&ROW($H31))))","v":"NC"},{"$f":"IF(INDIRECT(_xlfn.CONCAT(\"'Intervenant \",Z$5,\"'!$B\"&ROW($H31)))=\"NON\",\"NC\",INDIRECT(_xlfn.CONCAT(\"'Intervenant \",Z$5,\"'!$C\"&ROW($H31))))","v":"NC"},{"$f":"IF(INDIRECT(_xlfn.CONCAT(\"'Intervenant \",AA$5,\"'!$B\"&ROW($H31)))=\"NON\",\"NC\",INDIRECT(_xlfn.CONCAT(\"'Intervenant \",AA$5,\"'!$C\"&ROW($H31))))","v":"NC"},{"$f":"IF(INDIRECT(_xlfn.CONCAT(\"'Intervenant \",AB$5,\"'!$B\"&ROW($H31)))=\"NON\",\"NC\",INDIRECT(_xlfn.CONCAT(\"'Intervenant \",AB$5,\"'!$C\"&ROW($H31))))","v":"NC"}]
[null,null,"21","Plan prévisionnel de maintenance","CIM BIM",{"$f":"IF(OR('Intervenant 1'!B32=\"OUI\",'Intervenant 2'!B32=\"OUI\",'Intervenant 3'!B32=\"OUI\",'Intervenant 4'!B32=\"OUI\",'Intervenant 5'!B32=\"OUI\",'Intervenant 6'!B32=\"OUI\",'Intervenant 7'!B32=\"OUI\",'Intervenant 8'!B32=\"OUI\",'Intervenant 9'!B32=\"OUI\",'Intervenant 10'!B32=\"OUI\",'Intervenant 11'!B32=\"OUI\",'Intervenant 12'!B32=\"OUI\",'Intervenant 13'!B32=\"OUI\",'Intervenant 14'!B32=\"OUI\",'Intervenant 15'!B32=\"OUI\",'Intervenant 16'!B32=\"OUI\",'Intervenant 17'!B32=\"OUI\",'Intervenant 18'!B32=\"OUI\",'Intervenant 19'!B32=\"OUI\",'Intervenant 20'!B32=\"OUI\"),\"OUI\",\"NON\")","v":"NON"},"NC",null,{"$f":"IF(INDIRECT(_xlfn.CONCAT(\"'Intervenant \",I$5,\"'!$B\"&ROW($H32)))=\"NON\",\"NC\",INDIRECT(_xlfn.CONCAT(\"'Intervenant \",I$5,\"'!$C\"&ROW($H32))))","v":"NC"},{"$f":"IF(INDIRECT(_xlfn.CONCAT(\"'Intervenant \",J$5,\"'!$B\"&ROW($H32)))=\"NON\",\"NC\",INDIRECT(_xlfn.CONCAT(\"'Intervenant \",J$5,\"'!$C\"&ROW($H32))))","v":"NC"},{"$f":"IF(INDIRECT(_xlfn.CONCAT(\"'Intervenant \",K$5,\"'!$B\"&ROW($H32)))=\"NON\",\"NC\",INDIRECT(_xlfn.CONCAT(\"'Intervenant \",K$5,\"'!$C\"&ROW($H32))))","v":"NC"},{"$f":"IF(INDIRECT(_xlfn.CONCAT(\"'Intervenant \",L$5,\"'!$B\"&ROW($H32)))=\"NON\",\"NC\",INDIRECT(_xlfn.CONCAT(\"'Intervenant \",L$5,\"'!$C\"&ROW($H32))))","v":"NC"},{"$f":"IF(INDIRECT(_xlfn.CONCAT(\"'Intervenant \",M$5,\"'!$B\"&ROW($H32)))=\"NON\",\"NC\",INDIRECT(_xlfn.CONCAT(\"'Intervenant \",M$5,\"'!$C\"&ROW($H32))))","v":"NC"},{"$f":"IF(INDIRECT(_xlfn.CONCAT(\"'Intervenant \",N$5,\"'!$B\"&ROW($H32)))=\"NON\",\"NC\",INDIRECT(_xlfn.CONCAT(\"'Intervenant \",N$5,\"'!$C\"&ROW($H32))))","v":"NC"},{"$f":"IF(INDIRECT(_xlfn.CONCAT(\"'Intervenant \",O$5,\"'!$B\"&ROW($H32)))=\"NON\",\"NC\",INDIRECT(_xlfn.CONCAT(\"'Intervenant \",O$5,\"'!$C\"&ROW($H32))))","v":"NC"},{"$f":"IF(INDIRECT(_xlfn.CONCAT(\"'Intervenant \",P$5,\"'!$B\"&ROW($H32)))=\"NON\",\"NC\",INDIRECT(_xlfn.CONCAT(\"'Intervenant \",P$5,\"'!$C\"&ROW($H32))))","v":"NC"},{"$f":"IF(INDIRECT(_xlfn.CONCAT(\"'Intervenant \",Q$5,\"'!$B\"&ROW($H32)))=\"NON\",\"NC\",INDIRECT(_xlfn.CONCAT(\"'Intervenant \",Q$5,\"'!$C\"&ROW($H32))))","v":"NC"},{"$f":"IF(INDIRECT(_xlfn.CONCAT(\"'Intervenant \",R$5,\"'!$B\"&ROW($H32)))=\"NON\",\"NC\",INDIRECT(_xlfn.CONCAT(\"'Intervenant \",R$5,\"'!$C\"&ROW($H32))))","v":"NC"},{"$f":"IF(INDIRECT(_xlfn.CONCAT(\"'Intervenant \",S$5,\"'!$B\"&ROW($H32)))=\"NON\",\"NC\",INDIRECT(_xlfn.CONCAT(\"'Intervenant \",S$5,\"'!$C\"&ROW($H32))))","v":"NC"},{"$f":"IF(INDIRECT(_xlfn.CONCAT(\"'Intervenant \",T$5,\"'!$B\"&ROW($H32)))=\"NON\",\"NC\",INDIRECT(_xlfn.CONCAT(\"'Intervenant \",T$5,\"'!$C\"&ROW($H32))))","v":"NC"},{"$f":"IF(INDIRECT(_xlfn.CONCAT(\"'Intervenant \",U$5,\"'!$B\"&ROW($H32)))=\"NON\",\"NC\",INDIRECT(_xlfn.CONCAT(\"'Intervenant \",U$5,\"'!$C\"&ROW($H32))))","v":"NC"},{"$f":"IF(INDIRECT(_xlfn.CONCAT(\"'Intervenant \",V$5,\"'!$B\"&ROW($H32)))=\"NON\",\"NC\",INDIRECT(_xlfn.CONCAT(\"'Intervenant \",V$5,\"'!$C\"&ROW($H32))))","v":"NC"},{"$f":"IF(INDIRECT(_xlfn.CONCAT(\"'Intervenant \",W$5,\"'!$B\"&ROW($H32)))=\"NON\",\"NC\",INDIRECT(_xlfn.CONCAT(\"'Intervenant \",W$5,\"'!$C\"&ROW($H32))))","v":"NC"},{"$f":"IF(INDIRECT(_xlfn.CONCAT(\"'Intervenant \",X$5,\"'!$B\"&ROW($H32)))=\"NON\",\"NC\",INDIRECT(_xlfn.CONCAT(\"'Intervenant \",X$5,\"'!$C\"&ROW($H32))))","v":"NC"},{"$f":"IF(INDIRECT(_xlfn.CONCAT(\"'Intervenant \",Y$5,\"'!$B\"&ROW($H32)))=\"NON\",\"NC\",INDIRECT(_xlfn.CONCAT(\"'Intervenant \",Y$5,\"'!$C\"&ROW($H32))))","v":"NC"},{"$f":"IF(INDIRECT(_xlfn.CONCAT(\"'Intervenant \",Z$5,\"'!$B\"&ROW($H32)))=\"NON\",\"NC\",INDIRECT(_xlfn.CONCAT(\"'Intervenant \",Z$5,\"'!$C\"&ROW($H32))))","v":"NC"},{"$f":"IF(INDIRECT(_xlfn.CONCAT(\"'Intervenant \",AA$5,\"'!$B\"&ROW($H32)))=\"NON\",\"NC\",INDIRECT(_xlfn.CONCAT(\"'Intervenant \",AA$5,\"'!$C\"&ROW($H32))))","v":"NC"},{"$f":"IF(INDIRECT(_xlfn.CONCAT(\"'Intervenant \",AB$5,\"'!$B\"&ROW($H32)))=\"NON\",\"NC\",INDIRECT(_xlfn.CONCAT(\"'Intervenant \",AB$5,\"'!$C\"&ROW($H32))))","v":"NC"}]
[null,null,"22","Gestion des ouvrages et des équipements par gestionnaire","TIM CIM BIM",{"$f":"IF(OR('Intervenant 1'!B33=\"OUI\",'Intervenant 2'!B33=\"OUI\",'Intervenant 3'!B33=\"OUI\",'Intervenant 4'!B33=\"OUI\",'Intervenant 5'!B33=\"OUI\",'Intervenant 6'!B33=\"OUI\",'Intervenant 7'!B33=\"OUI\",'Intervenant 8'!B33=\"OUI\",'Intervenant 9'!B33=\"OUI\",'Intervenant 10'!B33=\"OUI\",'Intervenant 11'!B33=\"OUI\",'Intervenant 12'!B33=\"OUI\",'Intervenant 13'!B33=\"OUI\",'Intervenant 14'!B33=\"OUI\",'Intervenant 15'!B33=\"OUI\",'Intervenant 16'!B33=\"OUI\",'Intervenant 17'!B33=\"OUI\",'Intervenant 18'!B33=\"OUI\",'Intervenant 19'!B33=\"OUI\",'Intervenant 20'!B33=\"OUI\"),\"OUI\",\"NON\")","v":"NON"},"NC",null,{"$f":"IF(INDIRECT(_xlfn.CONCAT(\"'Intervenant \",I$5,\"'!$B\"&ROW($H33)))=\"NON\",\"NC\",INDIRECT(_xlfn.CONCAT(\"'Intervenant \",I$5,\"'!$C\"&ROW($H33))))","v":"NC"},{"$f":"IF(INDIRECT(_xlfn.CONCAT(\"'Intervenant \",J$5,\"'!$B\"&ROW($H33)))=\"NON\",\"NC\",INDIRECT(_xlfn.CONCAT(\"'Intervenant \",J$5,\"'!$C\"&ROW($H33))))","v":"NC"},{"$f":"IF(INDIRECT(_xlfn.CONCAT(\"'Intervenant \",K$5,\"'!$B\"&ROW($H33)))=\"NON\",\"NC\",INDIRECT(_xlfn.CONCAT(\"'Intervenant \",K$5,\"'!$C\"&ROW($H33))))","v":"NC"},{"$f":"IF(INDIRECT(_xlfn.CONCAT(\"'Intervenant \",L$5,\"'!$B\"&ROW($H33)))=\"NON\",\"NC\",INDIRECT(_xlfn.CONCAT(\"'Intervenant \",L$5,\"'!$C\"&ROW($H33))))","v":"NC"},{"$f":"IF(INDIRECT(_xlfn.CONCAT(\"'Intervenant \",M$5,\"'!$B\"&ROW($H33)))=\"NON\",\"NC\",INDIRECT(_xlfn.CONCAT(\"'Intervenant \",M$5,\"'!$C\"&ROW($H33))))","v":"NC"},{"$f":"IF(INDIRECT(_xlfn.CONCAT(\"'Intervenant \",N$5,\"'!$B\"&ROW($H33)))=\"NON\",\"NC\",INDIRECT(_xlfn.CONCAT(\"'Intervenant \",N$5,\"'!$C\"&ROW($H33))))","v":"NC"},{"$f":"IF(INDIRECT(_xlfn.CONCAT(\"'Intervenant \",O$5,\"'!$B\"&ROW($H33)))=\"NON\",\"NC\",INDIRECT(_xlfn.CONCAT(\"'Intervenant \",O$5,\"'!$C\"&ROW($H33))))","v":"NC"},{"$f":"IF(INDIRECT(_xlfn.CONCAT(\"'Intervenant \",P$5,\"'!$B\"&ROW($H33)))=\"NON\",\"NC\",INDIRECT(_xlfn.CONCAT(\"'Intervenant \",P$5,\"'!$C\"&ROW($H33))))","v":"NC"},{"$f":"IF(INDIRECT(_xlfn.CONCAT(\"'Intervenant \",Q$5,\"'!$B\"&ROW($H33)))=\"NON\",\"NC\",INDIRECT(_xlfn.CONCAT(\"'Intervenant \",Q$5,\"'!$C\"&ROW($H33))))","v":"NC"},{"$f":"IF(INDIRECT(_xlfn.CONCAT(\"'Intervenant \",R$5,\"'!$B\"&ROW($H33)))=\"NON\",\"NC\",INDIRECT(_xlfn.CONCAT(\"'Intervenant \",R$5,\"'!$C\"&ROW($H33))))","v":"NC"},{"$f":"IF(INDIRECT(_xlfn.CONCAT(\"'Intervenant \",S$5,\"'!$B\"&ROW($H33)))=\"NON\",\"NC\",INDIRECT(_xlfn.CONCAT(\"'Intervenant \",S$5,\"'!$C\"&ROW($H33))))","v":"NC"},{"$f":"IF(INDIRECT(_xlfn.CONCAT(\"'Intervenant \",T$5,\"'!$B\"&ROW($H33)))=\"NON\",\"NC\",INDIRECT(_xlfn.CONCAT(\"'Intervenant \",T$5,\"'!$C\"&ROW($H33))))","v":"NC"},{"$f":"IF(INDIRECT(_xlfn.CONCAT(\"'Intervenant \",U$5,\"'!$B\"&ROW($H33)))=\"NON\",\"NC\",INDIRECT(_xlfn.CONCAT(\"'Intervenant \",U$5,\"'!$C\"&ROW($H33))))","v":"NC"},{"$f":"IF(INDIRECT(_xlfn.CONCAT(\"'Intervenant \",V$5,\"'!$B\"&ROW($H33)))=\"NON\",\"NC\",INDIRECT(_xlfn.CONCAT(\"'Intervenant \",V$5,\"'!$C\"&ROW($H33))))","v":"NC"},{"$f":"IF(INDIRECT(_xlfn.CONCAT(\"'Intervenant \",W$5,\"'!$B\"&ROW($H33)))=\"NON\",\"NC\",INDIRECT(_xlfn.CONCAT(\"'Intervenant \",W$5,\"'!$C\"&ROW($H33))))","v":"NC"},{"$f":"IF(INDIRECT(_xlfn.CONCAT(\"'Intervenant \",X$5,\"'!$B\"&ROW($H33)))=\"NON\",\"NC\",INDIRECT(_xlfn.CONCAT(\"'Intervenant \",X$5,\"'!$C\"&ROW($H33))))","v":"NC"},{"$f":"IF(INDIRECT(_xlfn.CONCAT(\"'Intervenant \",Y$5,\"'!$B\"&ROW($H33)))=\"NON\",\"NC\",INDIRECT(_xlfn.CONCAT(\"'Intervenant \",Y$5,\"'!$C\"&ROW($H33))))","v":"NC"},{"$f":"IF(INDIRECT(_xlfn.CONCAT(\"'Intervenant \",Z$5,\"'!$B\"&ROW($H33)))=\"NON\",\"NC\",INDIRECT(_xlfn.CONCAT(\"'Intervenant \",Z$5,\"'!$C\"&ROW($H33))))","v":"NC"},{"$f":"IF(INDIRECT(_xlfn.CONCAT(\"'Intervenant \",AA$5,\"'!$B\"&ROW($H33)))=\"NON\",\"NC\",INDIRECT(_xlfn.CONCAT(\"'Intervenant \",AA$5,\"'!$C\"&ROW($H33))))","v":"NC"},{"$f":"IF(INDIRECT(_xlfn.CONCAT(\"'Intervenant \",AB$5,\"'!$B\"&ROW($H33)))=\"NON\",\"NC\",INDIRECT(_xlfn.CONCAT(\"'Intervenant \",AB$5,\"'!$C\"&ROW($H33))))","v":"NC"}]
[null,null,"23","Rétribution de données dans une base de données publique","TIM CIM",{"$f":"IF(OR('Intervenant 1'!B34=\"OUI\",'Intervenant 2'!B34=\"OUI\",'Intervenant 3'!B34=\"OUI\",'Intervenant 4'!B34=\"OUI\",'Intervenant 5'!B34=\"OUI\",'Intervenant 6'!B34=\"OUI\",'Intervenant 7'!B34=\"OUI\",'Intervenant 8'!B34=\"OUI\",'Intervenant 9'!B34=\"OUI\",'Intervenant 10'!B34=\"OUI\",'Intervenant 11'!B34=\"OUI\",'Intervenant 12'!B34=\"OUI\",'Intervenant 13'!B34=\"OUI\",'Intervenant 14'!B34=\"OUI\",'Intervenant 15'!B34=\"OUI\",'Intervenant 16'!B34=\"OUI\",'Intervenant 17'!B34=\"OUI\",'Intervenant 18'!B34=\"OUI\",'Intervenant 19'!B34=\"OUI\",'Intervenant 20'!B34=\"OUI\"),\"OUI\",\"NON\")","v":"NON"},"NC",null,{"$f":"IF(INDIRECT(_xlfn.CONCAT(\"'Intervenant \",I$5,\"'!$B\"&ROW($H34)))=\"NON\",\"NC\",INDIRECT(_xlfn.CONCAT(\"'Intervenant \",I$5,\"'!$C\"&ROW($H34))))","v":"NC"},{"$f":"IF(INDIRECT(_xlfn.CONCAT(\"'Intervenant \",J$5,\"'!$B\"&ROW($H34)))=\"NON\",\"NC\",INDIRECT(_xlfn.CONCAT(\"'Intervenant \",J$5,\"'!$C\"&ROW($H34))))","v":"NC"},{"$f":"IF(INDIRECT(_xlfn.CONCAT(\"'Intervenant \",K$5,\"'!$B\"&ROW($H34)))=\"NON\",\"NC\",INDIRECT(_xlfn.CONCAT(\"'Intervenant \",K$5,\"'!$C\"&ROW($H34))))","v":"NC"},{"$f":"IF(INDIRECT(_xlfn.CONCAT(\"'Intervenant \",L$5,\"'!$B\"&ROW($H34)))=\"NON\",\"NC\",INDIRECT(_xlfn.CONCAT(\"'Intervenant \",L$5,\"'!$C\"&ROW($H34))))","v":"NC"},{"$f":"IF(INDIRECT(_xlfn.CONCAT(\"'Intervenant \",M$5,\"'!$B\"&ROW($H34)))=\"NON\",\"NC\",INDIRECT(_xlfn.CONCAT(\"'Intervenant \",M$5,\"'!$C\"&ROW($H34))))","v":"NC"},{"$f":"IF(INDIRECT(_xlfn.CONCAT(\"'Intervenant \",N$5,\"'!$B\"&ROW($H34)))=\"NON\",\"NC\",INDIRECT(_xlfn.CONCAT(\"'Intervenant \",N$5,\"'!$C\"&ROW($H34))))","v":"NC"},{"$f":"IF(INDIRECT(_xlfn.CONCAT(\"'Intervenant \",O$5,\"'!$B\"&ROW($H34)))=\"NON\",\"NC\",INDIRECT(_xlfn.CONCAT(\"'Intervenant \",O$5,\"'!$C\"&ROW($H34))))","v":"NC"},{"$f":"IF(INDIRECT(_xlfn.CONCAT(\"'Intervenant \",P$5,\"'!$B\"&ROW($H34)))=\"NON\",\"NC\",INDIRECT(_xlfn.CONCAT(\"'Intervenant \",P$5,\"'!$C\"&ROW($H34))))","v":"NC"},{"$f":"IF(INDIRECT(_xlfn.CONCAT(\"'Intervenant \",Q$5,\"'!$B\"&ROW($H34)))=\"NON\",\"NC\",INDIRECT(_xlfn.CONCAT(\"'Intervenant \",Q$5,\"'!$C\"&ROW($H34))))","v":"NC"},{"$f":"IF(INDIRECT(_xlfn.CONCAT(\"'Intervenant \",R$5,\"'!$B\"&ROW($H34)))=\"NON\",\"NC\",INDIRECT(_xlfn.CONCAT(\"'Intervenant \",R$5,\"'!$C\"&ROW($H34))))","v":"NC"},{"$f":"IF(INDIRECT(_xlfn.CONCAT(\"'Intervenant \",S$5,\"'!$B\"&ROW($H34)))=\"NON\",\"NC\",INDIRECT(_xlfn.CONCAT(\"'Intervenant \",S$5,\"'!$C\"&ROW($H34))))","v":"NC"},{"$f":"IF(INDIRECT(_xlfn.CONCAT(\"'Intervenant \",T$5,\"'!$B\"&ROW($H34)))=\"NON\",\"NC\",INDIRECT(_xlfn.CONCAT(\"'Intervenant \",T$5,\"'!$C\"&ROW($H34))))","v":"NC"},{"$f":"IF(INDIRECT(_xlfn.CONCAT(\"'Intervenant \",U$5,\"'!$B\"&ROW($H34)))=\"NON\",\"NC\",INDIRECT(_xlfn.CONCAT(\"'Intervenant \",U$5,\"'!$C\"&ROW($H34))))","v":"NC"},{"$f":"IF(INDIRECT(_xlfn.CONCAT(\"'Intervenant \",V$5,\"'!$B\"&ROW($H34)))=\"NON\",\"NC\",INDIRECT(_xlfn.CONCAT(\"'Intervenant \",V$5,\"'!$C\"&ROW($H34))))","v":"NC"},{"$f":"IF(INDIRECT(_xlfn.CONCAT(\"'Intervenant \",W$5,\"'!$B\"&ROW($H34)))=\"NON\",\"NC\",INDIRECT(_xlfn.CONCAT(\"'Intervenant \",W$5,\"'!$C\"&ROW($H34))))","v":"NC"},{"$f":"IF(INDIRECT(_xlfn.CONCAT(\"'Intervenant \",X$5,\"'!$B\"&ROW($H34)))=\"NON\",\"NC\",INDIRECT(_xlfn.CONCAT(\"'Intervenant \",X$5,\"'!$C\"&ROW($H34))))","v":"NC"},{"$f":"IF(INDIRECT(_xlfn.CONCAT(\"'Intervenant \",Y$5,\"'!$B\"&ROW($H34)))=\"NON\",\"NC\",INDIRECT(_xlfn.CONCAT(\"'Intervenant \",Y$5,\"'!$C\"&ROW($H34))))","v":"NC"},{"$f":"IF(INDIRECT(_xlfn.CONCAT(\"'Intervenant \",Z$5,\"'!$B\"&ROW($H34)))=\"NON\",\"NC\",INDIRECT(_xlfn.CONCAT(\"'Intervenant \",Z$5,\"'!$C\"&ROW($H34))))","v":"NC"},{"$f":"IF(INDIRECT(_xlfn.CONCAT(\"'Intervenant \",AA$5,\"'!$B\"&ROW($H34)))=\"NON\",\"NC\",INDIRECT(_xlfn.CONCAT(\"'Intervenant \",AA$5,\"'!$C\"&ROW($H34))))","v":"NC"},{"$f":"IF(INDIRECT(_xlfn.CONCAT(\"'Intervenant \",AB$5,\"'!$B\"&ROW($H34)))=\"NON\",\"NC\",INDIRECT(_xlfn.CONCAT(\"'Intervenant \",AB$5,\"'!$C\"&ROW($H34))))","v":"NC"}]
[null,null,"24","Communication de projet","TIM CIM BIM",{"$f":"IF(OR('Intervenant 1'!B35=\"OUI\",'Intervenant 2'!B35=\"OUI\",'Intervenant 3'!B35=\"OUI\",'Intervenant 4'!B35=\"OUI\",'Intervenant 5'!B35=\"OUI\",'Intervenant 6'!B35=\"OUI\",'Intervenant 7'!B35=\"OUI\",'Intervenant 8'!B35=\"OUI\",'Intervenant 9'!B35=\"OUI\",'Intervenant 10'!B35=\"OUI\",'Intervenant 11'!B35=\"OUI\",'Intervenant 12'!B35=\"OUI\",'Intervenant 13'!B35=\"OUI\",'Intervenant 14'!B35=\"OUI\",'Intervenant 15'!B35=\"OUI\",'Intervenant 16'!B35=\"OUI\",'Intervenant 17'!B35=\"OUI\",'Intervenant 18'!B35=\"OUI\",'Intervenant 19'!B35=\"OUI\",'Intervenant 20'!B35=\"OUI\"),\"OUI\",\"NON\")","v":"NON"},"NC",null,{"$f":"IF(INDIRECT(_xlfn.CONCAT(\"'Intervenant \",I$5,\"'!$B\"&ROW($H35)))=\"NON\",\"NC\",INDIRECT(_xlfn.CONCAT(\"'Intervenant \",I$5,\"'!$C\"&ROW($H35))))","v":"NC"},{"$f":"IF(INDIRECT(_xlfn.CONCAT(\"'Intervenant \",J$5,\"'!$B\"&ROW($H35)))=\"NON\",\"NC\",INDIRECT(_xlfn.CONCAT(\"'Intervenant \",J$5,\"'!$C\"&ROW($H35))))","v":"NC"},{"$f":"IF(INDIRECT(_xlfn.CONCAT(\"'Intervenant \",K$5,\"'!$B\"&ROW($H35)))=\"NON\",\"NC\",INDIRECT(_xlfn.CONCAT(\"'Intervenant \",K$5,\"'!$C\"&ROW($H35))))","v":"NC"},{"$f":"IF(INDIRECT(_xlfn.CONCAT(\"'Intervenant \",L$5,\"'!$B\"&ROW($H35)))=\"NON\",\"NC\",INDIRECT(_xlfn.CONCAT(\"'Intervenant \",L$5,\"'!$C\"&ROW($H35))))","v":"NC"},{"$f":"IF(INDIRECT(_xlfn.CONCAT(\"'Intervenant \",M$5,\"'!$B\"&ROW($H35)))=\"NON\",\"NC\",INDIRECT(_xlfn.CONCAT(\"'Intervenant \",M$5,\"'!$C\"&ROW($H35))))","v":"NC"},{"$f":"IF(INDIRECT(_xlfn.CONCAT(\"'Intervenant \",N$5,\"'!$B\"&ROW($H35)))=\"NON\",\"NC\",INDIRECT(_xlfn.CONCAT(\"'Intervenant \",N$5,\"'!$C\"&ROW($H35))))","v":"NC"},{"$f":"IF(INDIRECT(_xlfn.CONCAT(\"'Intervenant \",O$5,\"'!$B\"&ROW($H35)))=\"NON\",\"NC\",INDIRECT(_xlfn.CONCAT(\"'Intervenant \",O$5,\"'!$C\"&ROW($H35))))","v":"NC"},{"$f":"IF(INDIRECT(_xlfn.CONCAT(\"'Intervenant \",P$5,\"'!$B\"&ROW($H35)))=\"NON\",\"NC\",INDIRECT(_xlfn.CONCAT(\"'Intervenant \",P$5,\"'!$C\"&ROW($H35))))","v":"NC"},{"$f":"IF(INDIRECT(_xlfn.CONCAT(\"'Intervenant \",Q$5,\"'!$B\"&ROW($H35)))=\"NON\",\"NC\",INDIRECT(_xlfn.CONCAT(\"'Intervenant \",Q$5,\"'!$C\"&ROW($H35))))","v":"NC"},{"$f":"IF(INDIRECT(_xlfn.CONCAT(\"'Intervenant \",R$5,\"'!$B\"&ROW($H35)))=\"NON\",\"NC\",INDIRECT(_xlfn.CONCAT(\"'Intervenant \",R$5,\"'!$C\"&ROW($H35))))","v":"NC"},{"$f":"IF(INDIRECT(_xlfn.CONCAT(\"'Intervenant \",S$5,\"'!$B\"&ROW($H35)))=\"NON\",\"NC\",INDIRECT(_xlfn.CONCAT(\"'Intervenant \",S$5,\"'!$C\"&ROW($H35))))","v":"NC"},{"$f":"IF(INDIRECT(_xlfn.CONCAT(\"'Intervenant \",T$5,\"'!$B\"&ROW($H35)))=\"NON\",\"NC\",INDIRECT(_xlfn.CONCAT(\"'Intervenant \",T$5,\"'!$C\"&ROW($H35))))","v":"NC"},{"$f":"IF(INDIRECT(_xlfn.CONCAT(\"'Intervenant \",U$5,\"'!$B\"&ROW($H35)))=\"NON\",\"NC\",INDIRECT(_xlfn.CONCAT(\"'Intervenant \",U$5,\"'!$C\"&ROW($H35))))","v":"NC"},{"$f":"IF(INDIRECT(_xlfn.CONCAT(\"'Intervenant \",V$5,\"'!$B\"&ROW($H35)))=\"NON\",\"NC\",INDIRECT(_xlfn.CONCAT(\"'Intervenant \",V$5,\"'!$C\"&ROW($H35))))","v":"NC"},{"$f":"IF(INDIRECT(_xlfn.CONCAT(\"'Intervenant \",W$5,\"'!$B\"&ROW($H35)))=\"NON\",\"NC\",INDIRECT(_xlfn.CONCAT(\"'Intervenant \",W$5,\"'!$C\"&ROW($H35))))","v":"NC"},{"$f":"IF(INDIRECT(_xlfn.CONCAT(\"'Intervenant \",X$5,\"'!$B\"&ROW($H35)))=\"NON\",\"NC\",INDIRECT(_xlfn.CONCAT(\"'Intervenant \",X$5,\"'!$C\"&ROW($H35))))","v":"NC"},{"$f":"IF(INDIRECT(_xlfn.CONCAT(\"'Intervenant \",Y$5,\"'!$B\"&ROW($H35)))=\"NON\",\"NC\",INDIRECT(_xlfn.CONCAT(\"'Intervenant \",Y$5,\"'!$C\"&ROW($H35))))","v":"NC"},{"$f":"IF(INDIRECT(_xlfn.CONCAT(\"'Intervenant \",Z$5,\"'!$B\"&ROW($H35)))=\"NON\",\"NC\",INDIRECT(_xlfn.CONCAT(\"'Intervenant \",Z$5,\"'!$C\"&ROW($H35))))","v":"NC"},{"$f":"IF(INDIRECT(_xlfn.CONCAT(\"'Intervenant \",AA$5,\"'!$B\"&ROW($H35)))=\"NON\",\"NC\",INDIRECT(_xlfn.CONCAT(\"'Intervenant \",AA$5,\"'!$C\"&ROW($H35))))","v":"NC"},{"$f":"IF(INDIRECT(_xlfn.CONCAT(\"'Intervenant \",AB$5,\"'!$B\"&ROW($H35)))=\"NON\",\"NC\",INDIRECT(_xlfn.CONCAT(\"'Intervenant \",AB$5,\"'!$C\"&ROW($H35))))","v":"NC"}]

{"sheet":"Qualité Architecturale","index":2,"n_rows":19,"n_cols":6,"rows_kept":19,"cut":false,"hidden":false,"merged":[[1,2,2,4],[5,1,7,1],[5,2,7,2],[10,1,13,1],[10,2,13,2],[16,1,18,1],[16,2,18,2]]}
[]
[null,"Retour à la page d'accueil","Qualité urbaine et architecturale"]
[]
[]
[null,null,null,null,"Objectif","Atteint"]
[null,"Contexte local","Prise en compte du contexte urbain local","Etude urbaine","Réalisation d'une étude urbaine exhaustive et intégration des différents éléments dans la maquette numérique urbaine (transport, POI, trames…)",{"$f":"IFERROR(SUM('Intervenant 1'!I31,'Intervenant 2'!I31,'Intervenant 3'!I31,'Intervenant 4'!I31,'Intervenant 5'!I31,'Intervenant 6'!I31,'Intervenant 7'!I31,'Intervenant 8'!I31,'Intervenant 9'!I31,'Intervenant 10'!I31,'Intervenant 11'!I31,'Intervenant 12'!I31,'Intervenant 13'!I31,'Intervenant 14'!I31,'Intervenant 15'!I31,'Intervenant 16'!I31,'Intervenant 17'!I31,'Intervenant 18'!I31,'Intervenant 19'!I31,'Intervenant 20'!I31)/Intro!$E$10,\"\")","v":""}]
[null,null,null,"Etude historique","Réalisation d'une étude historique du contexte et intégration des différents éléments dans la maquette numérique urbaine (axes, noyaux...)",{"$f":"IFERROR(SUM('Intervenant 1'!I32,'Intervenant 2'!I32,'Intervenant 3'!I32,'Intervenant 4'!I32,'Intervenant 5'!I32,'Intervenant 6'!I32,'Intervenant 7'!I32,'Intervenant 8'!I32,'Intervenant 9'!I32,'Intervenant 10'!I32,'Intervenant 11'!I32,'Intervenant 12'!I32,'Intervenant 13'!I32,'Intervenant 14'!I32,'Intervenant 15'!I32,'Intervenant 16'!I32,'Intervenant 17'!I32,'Intervenant 18'!I32,'Intervenant 19'!I32,'Intervenant 20'!I32)/Intro!$E$10,\"\")","v":""}]
[null,null,null,"Etude architecturale","Réalisation d'une étude architecturale de l'ensemble bâti du contexte urbain. Insertion de références ou images au sein de la maquette numérique",{"$f":"IFERROR(SUM('Intervenant 1'!I33,'Intervenant 2'!I33,'Intervenant 3'!I33,'Intervenant 4'!I33,'Intervenant 5'!I33,'Intervenant 6'!I33,'Intervenant 7'!I33,'Intervenant 8'!I33,'Intervenant 9'!I33,'Intervenant 10'!I33,'Intervenant 11'!I33,'Intervenant 12'!I33,'Intervenant 13'!I33,'Intervenant 14'!I33,'Intervenant 15'!I33,'Intervenant 16'!I33,'Intervenant 17'!I33,'Intervenant 18'!I33,'Intervenant 19'!I33,'Intervenant 20'!I33)/Intro!$E$10,\"\")","v":""}]
[]
[]
[null,"Conception bioclimatique","Prise en compte du contexte naturel","Ensoleillement","85% des locaux avec un ensolleillement supérieur à 4h par jour (au 21 juin)",{"$f":"IFERROR(SUM('Intervenant 1'!I34,'Intervenant 2'!I34,'Intervenant 3'!I34,'Intervenant 4'!I34,'Intervenant 5'!I34,'Intervenant 6'!I34,'Intervenant 7'!I34,'Intervenant 8'!I34,'Intervenant 9'!I34,'Intervenant 10'!I34,'Intervenant 11'!I34,'Intervenant 12'!I34,'Intervenant 13'!I34,'Intervenant 14'!I34,'Intervenant 15'!I34,'Intervenant 16'!I34,'Intervenant 17'!I34,'Intervenant 18'!I34,'Intervenant 19'!I34,'Intervenant 20'!I34)/Intro!$E$10,\"\")","v":""}]
[null,null,null,"Eolien","Minimiser au maximum la création d'inconfort lié au vent (voir échelle de confort lié au vent du CSTB)",{"$f":"IFERROR(SUM('Intervenant 1'!I35,'Intervenant 2'!I35,'Intervenant 3'!I35,'Intervenant 4'!I35,'Intervenant 5'!I35,'Intervenant 6'!I35,'Intervenant 7'!I35,'Intervenant 8'!I35,'Intervenant 9'!I35,'Intervenant 10'!I35,'Intervenant 11'!I35,'Intervenant 12'!I35,'Intervenant 13'!I35,'Intervenant 14'!I35,'Intervenant 15'!I35,'Intervenant 16'!I35,'Intervenant 17'!I35,'Intervenant 18'!I35,'Intervenant 19'!I35,'Intervenant 20'!I35)/Intro!$E$10,\"\")","v":""}]
[null,null,null,"Acoustique","80% de locaux avec un bruit inférieur à 45 dB(A)\nMéthode calcul (CNOSSOS-EU)",{"$f":"IFERROR(SUM('Intervenant 1'!I36,'Intervenant 2'!I36,'Intervenant 3'!I36,'Intervenant 4'!I36,'Intervenant 5'!I36,'Intervenant 6'!I36,'Intervenant 7'!I36,'Intervenant 8'!I36,'Intervenant 9'!I36,'Intervenant 10'!I36,'Intervenant 11'!I36,'Intervenant 12'!I36,'Intervenant 13'!I36,'Intervenant 14'!I36,'Intervenant 15'!I36,'Intervenant 16'!I36,'Intervenant 17'!I36,'Intervenant 18'!I36,'Intervenant 19'!I36,'Intervenant 20'!I36)/Intro!$E$10,\"\")","v":""}]
[null,null,null,"Confort thermique","Minimiser la création d'îlots de chaleur en favorisant l'aération des espaces extérieurs et l'insertion de végétation",{"$f":"IFERROR(SUM('Intervenant 1'!I37,'Intervenant 2'!I37,'Intervenant 3'!I37,'Intervenant 4'!I37,'Intervenant 5'!I37,'Intervenant 6'!I37,'Intervenant 7'!I37,'Intervenant 8'!I37,'Intervenant 9'!I37,'Intervenant 10'!I37,'Intervenant 11'!I37,'Intervenant 12'!I37,'Intervenant 13'!I37,'Intervenant 14'!I37,'Intervenant 15'!I37,'Intervenant 16'!I37,'Intervenant 17'!I37,'Intervenant 18'!I37,'Intervenant 19'!I37,'Intervenant 20'!I37)/Intro!$E$10,\"\")","v":""}]
[]
[]
[null,"Matérialité","Insertion de matériaux nobles au sein du projet avec prise en compte des ressources locales","Présence de matériaux géosourcé ou bio sourcé","Une quantité significative de matériaux sont des matériaux biosourcés ou géosourcés",{"$f":"IFERROR(SUM('Intervenant 1'!I38,'Intervenant 2'!I38,'Intervenant 3'!I38,'Intervenant 4'!I38,'Intervenant 5'!I38,'Intervenant 6'!I38,'Intervenant 7'!I38,'Intervenant 8'!I38,'Intervenant 9'!I38,'Intervenant 10'!I38,'Intervenant 11'!I38,'Intervenant 12'!I38,'Intervenant 13'!I38,'Intervenant 14'!I38,'Intervenant 15'!I38,'Intervenant 16'!I38,'Intervenant 17'!I38,'Intervenant 18'!I38,'Intervenant 19'!I38,'Intervenant 20'!I38)/Intro!$E$10,\"\")","v":""}]
[null,null,null,"Matériaux nobles utilisés ","30% de la surface de façade minimum - Baies comprises",{"$f":"IFERROR(SUM('Intervenant 1'!I39,'Intervenant 2'!I39,'Intervenant 3'!I39,'Intervenant 4'!I39,'Intervenant 5'!I39,'Intervenant 6'!I39,'Intervenant 7'!I39,'Intervenant 8'!I39,'Intervenant 9'!I39,'Intervenant 10'!I39,'Intervenant 11'!I39,'Intervenant 12'!I39,'Intervenant 13'!I39,'Intervenant 14'!I39,'Intervenant 15'!I39,'Intervenant 16'!I39,'Intervenant 17'!I39,'Intervenant 18'!I39,'Intervenant 19'!I39,'Intervenant 20'!I39)/Intro!$E$10,\"\")","v":""}]
[null,null,null,"Utilisation de matériaux locaux","Une quantité significative de matériaux provient de la région (<150km)",{"$f":"IFERROR(SUM('Intervenant 1'!I40,'Intervenant 2'!I40,'Intervenant 3'!I40,'Intervenant 4'!I40,'Intervenant 5'!I40,'Intervenant 6'!I40,'Intervenant 7'!I40,'Intervenant 8'!I40,'Intervenant 9'!I40,'Intervenant 10'!I40,'Intervenant 11'!I40,'Intervenant 12'!I40,'Intervenant 13'!I40,'Intervenant 14'!I40,'Intervenant 15'!I40,'Intervenant 16'!I40,'Intervenant 17'!I40,'Intervenant 18'!I40,'Intervenant 19'!I40,'Intervenant 20'!I40)/Intro!$E$10,\"\")","v":""}]

{"sheet":"Analyse qualitative","index":3,"n_rows":11,"n_cols":10,"rows_kept":11,"cut":false,"hidden":false,"merged":[[1,1,1,9]]}
[]
[null,"Analyse qualitative des gains"]
[]
[]
[null,null,"Accès au marché","Partage d'idée","Communication","Processus de décision","Gestion de l'information","Qualité des résultats produits","Acceptabilité du projet","Image de marque"]
[null,"Programmer",{"$f":"IFERROR(SUM('Intervenant 1'!L12,'Intervenant 2'!L12,'Intervenant 3'!L12,'Intervenant 4'!L12,'Intervenant 5'!L12,'Intervenant 6'!L12,'Intervenant 7'!L12,'Intervenant 8'!L12,'Intervenant 9'!L12,'Intervenant 10'!L12,'Intervenant 11'!L12,'Intervenant 12'!L12,'Intervenant 13'!L12,'Intervenant 14'!L12,'Intervenant 15'!L12,'Intervenant 16'!L12,'Intervenant 17'!L12,'Intervenant 18'!L12,'Intervenant 19'!L12,'Intervenant 20'!L12)/Intro!$E$10,\"\")","v":""},{"$f":"IFERROR(SUM('Intervenant 1'!M12,'Intervenant 2'!M12,'Intervenant 3'!M12,'Intervenant 4'!M12,'Intervenant 5'!M12,'Intervenant 6'!M12,'Intervenant 7'!M12,'Intervenant 8'!M12,'Intervenant 9'!M12,'Intervenant 10'!M12,'Intervenant 11'!M12,'Intervenant 12'!M12,'Intervenant 13'!M12,'Intervenant 14'!M12,'Intervenant 15'!M12,'Intervenant 16'!M12,'Intervenant 17'!M12,'Intervenant 18'!M12,'Intervenant 19'!M12,'Intervenant 20'!M12)/Intro!$E$10,\"\")","v":""},{"$f":"IFERROR(SUM('Intervenant 1'!N12,'Intervenant 2'!N12,'Intervenant 3'!N12,'Intervenant 4'!N12,'Intervenant 5'!N12,'Intervenant 6'!N12,'Intervenant 7'!N12,'Intervenant 8'!N12,'Intervenant 9'!N12,'Intervenant 10'!N12,'Intervenant 11'!N12,'Intervenant 12'!N12,'Intervenant 13'!N12,'Intervenant 14'!N12,'Intervenant 15'!N12,'Intervenant 16'!N12,'Intervenant 17'!N12,'Intervenant 18'!N12,'Intervenant 19'!N12,'Intervenant 20'!N12)/Intro!$E$10,\"\")","v":""},{"$f":"IFERROR(SUM('Intervenant 1'!O12,'Intervenant 2'!O12,'Intervenant 3'!O12,'Intervenant 4'!O12,'Intervenant 5'!O12,'Intervenant 6'!O12,'Intervenant 7'!O12,'Intervenant 8'!O12,'Intervenant 9'!O12,'Intervenant 10'!O12,'Intervenant 11'!O12,'Intervenant 12'!O12,'Intervenant 13'!O12,'Intervenant 14'!O12,'Intervenant 15'!O12,'Intervenant 16'!O12,'Intervenant 17'!O12,'Intervenant 18'!O12,'Intervenant 19'!O12,'Intervenant 20'!O12)/Intro!$E$10,\"\")","v":""},{"$f":"IFERROR(SUM('Intervenant 1'!P12,'Intervenant 2'!P12,'Intervenant 3'!P12,'Intervenant 4'!P12,'Intervenant 5'!P12,'Intervenant 6'!P12,'Intervenant 7'!P12,'Intervenant 8'!P12,'Intervenant 9'!P12,'Intervenant 10'!P12,'Intervenant 11'!P12,'Intervenant 12'!P12,'Intervenant 13'!P12,'Intervenant 14'!P12,'Intervenant 15'!P12,'Intervenant 16'!P12,'Intervenant 17'!P12,'Intervenant 18'!P12,'Intervenant 19'!P12,'Intervenant 20'!P12)/Intro!$E$10,\"\")","v":""},{"$f":"IFERROR(SUM('Intervenant 1'!Q12,'Intervenant 2'!Q12,'Intervenant 3'!Q12,'Intervenant 4'!Q12,'Intervenant 5'!Q12,'Intervenant 6'!Q12,'Intervenant 7'!Q12,'Intervenant 8'!Q12,'Intervenant 9'!Q12,'Intervenant 10'!Q12,'Intervenant 11'!Q12,'Intervenant 12'!Q12,'Intervenant 13'!Q12,'Intervenant 14'!Q12,'Intervenant 15'!Q12,'Intervenant 16'!Q12,'Intervenant 17'!Q12,'Intervenant 18'!Q12,'Intervenant 19'!Q12,'Intervenant 20'!Q12)/Intro!$E$10,\"\")","v":""},{"$f":"IFERROR(SUM('Intervenant 1'!R12,'Intervenant 2'!R12,'Intervenant 3'!R12,'Intervenant 4'!R12,'Intervenant 5'!R12,'Intervenant 6'!R12,'Intervenant 7'!R12,'Intervenant 8'!R12,'Intervenant 9'!R12,'Intervenant 10'!R12,'Intervenant 11'!R12,'Intervenant 12'!R12,'Intervenant 13'!R12,'Intervenant 14'!R12,'Intervenant 15'!R12,'Intervenant 16'!R12,'Intervenant 17'!R12,'Intervenant 18'!R12,'Intervenant 19'!R12,'Intervenant 20'!R12)/Intro!$E$10,\"\")","v":""},{"$f":"IFERROR(SUM('Intervenant 1'!S12,'Intervenant 2'!S12,'Intervenant 3'!S12,'Intervenant 4'!S12,'Intervenant 5'!S12,'Intervenant 6'!S12,'Intervenant 7'!S12,'Intervenant 8'!S12,'Intervenant 9'!S12,'Intervenant 10'!S12,'Intervenant 11'!S12,'Intervenant 12'!S12,'Intervenant 13'!S12,'Intervenant 14'!S12,'Intervenant 15'!S12,'Intervenant 16'!S12,'Intervenant 17'!S12,'Intervenant 18'!S12,'Intervenant 19'!S12,'Intervenant 20'!S12)/Intro!$E$10,\"\")","v":""}]
[null,"Concevoir",{"$f":"IFERROR(SUM('Intervenant 1'!L13,'Intervenant 2'!L13,'Intervenant 3'!L13,'Intervenant 4'!L13,'Intervenant 5'!L13,'Intervenant 6'!L13,'Intervenant 7'!L13,'Intervenant 8'!L13,'Intervenant 9'!L13,'Intervenant 10'!L13,'Intervenant 11'!L13,'Intervenant 12'!L13,'Intervenant 13'!L13,'Intervenant 14'!L13,'Intervenant 15'!L13,'Intervenant 16'!L13,'Intervenant 17'!L13,'Intervenant 18'!L13,'Intervenant 19'!L13,'Intervenant 20'!L13)/Intro!$E$10,\"\")","v":""},{"$f":"IFERROR(SUM('Intervenant 1'!M13,'Intervenant 2'!M13,'Intervenant 3'!M13,'Intervenant 4'!M13,'Intervenant 5'!M13,'Intervenant 6'!M13,'Intervenant 7'!M13,'Intervenant 8'!M13,'Intervenant 9'!M13,'Intervenant 10'!M13,'Intervenant 11'!M13,'Intervenant 12'!M13,'Intervenant 13'!M13,'Intervenant 14'!M13,'Intervenant 15'!M13,'Intervenant 16'!M13,'Intervenant 17'!M13,'Intervenant 18'!M13,'Intervenant 19'!M13,'Intervenant 20'!M13)/Intro!$E$10,\"\")","v":""},{"$f":"IFERROR(SUM('Intervenant 1'!N13,'Intervenant 2'!N13,'Intervenant 3'!N13,'Intervenant 4'!N13,'Intervenant 5'!N13,'Intervenant 6'!N13,'Intervenant 7'!N13,'Intervenant 8'!N13,'Intervenant 9'!N13,'Intervenant 10'!N13,'Intervenant 11'!N13,'Intervenant 12'!N13,'Intervenant 13'!N13,'Intervenant 14'!N13,'Intervenant 15'!N13,'Intervenant 16'!N13,'Intervenant 17'!N13,'Intervenant 18'!N13,'Intervenant 19'!N13,'Intervenant 20'!N13)/Intro!$E$10,\"\")","v":""},{"$f":"IFERROR(SUM('Intervenant 1'!O13,'Intervenant 2'!O13,'Intervenant 3'!O13,'Intervenant 4'!O13,'Intervenant 5'!O13,'Intervenant 6'!O13,'Intervenant 7'!O13,'Intervenant 8'!O13,'Intervenant 9'!O13,'Intervenant 10'!O13,'Intervenant 11'!O13,'Intervenant 12'!O13,'Intervenant 13'!O13,'Intervenant 14'!O13,'Intervenant 15'!O13,'Intervenant 16'!O13,'Intervenant 17'!O13,'Intervenant 18'!O13,'Intervenant 19'!O13,'Intervenant 20'!O13)/Intro!$E$10,\"\")","v":""},{"$f":"IFERROR(SUM('Intervenant 1'!P13,'Intervenant 2'!P13,'Intervenant 3'!P13,'Intervenant 4'!P13,'Intervenant 5'!P13,'Intervenant 6'!P13,'Intervenant 7'!P13,'Intervenant 8'!P13,'Intervenant 9'!P13,'Intervenant 10'!P13,'Intervenant 11'!P13,'Intervenant 12'!P13,'Intervenant 13'!P13,'Intervenant 14'!P13,'Intervenant 15'!P13,'Intervenant 16'!P13,'Intervenant 17'!P13,'Intervenant 18'!P13,'Intervenant 19'!P13,'Intervenant 20'!P13)/Intro!$E$10,\"\")","v":""},{"$f":"IFERROR(SUM('Intervenant 1'!Q13,'Intervenant 2'!Q13,'Intervenant 3'!Q13,'Intervenant 4'!Q13,'Intervenant 5'!Q13,'Intervenant 6'!Q13,'Intervenant 7'!Q13,'Intervenant 8'!Q13,'Intervenant 9'!Q13,'Intervenant 10'!Q13,'Intervenant 11'!Q13,'Intervenant 12'!Q13,'Intervenant 13'!Q13,'Intervenant 14'!Q13,'Intervenant 15'!Q13,'Intervenant 16'!Q13,'Intervenant 17'!Q13,'Intervenant 18'!Q13,'Intervenant 19'!Q13,'Intervenant 20'!Q13)/Intro!$E$10,\"\")","v":""},{"$f":"IFERROR(SUM('Intervenant 1'!R13,'Intervenant 2'!R13,'Intervenant 3'!R13,'Intervenant 4'!R13,'Intervenant 5'!R13,'Intervenant 6'!R13,'Intervenant 7'!R13,'Intervenant 8'!R13,'Intervenant 9'!R13,'Intervenant 10'!R13,'Intervenant 11'!R13,'Intervenant 12'!R13,'Intervenant 13'!R13,'Intervenant 14'!R13,'Intervenant 15'!R13,'Intervenant 16'!R13,'Intervenant 17'!R13,'Intervenant 18'!R13,'Intervenant 19'!R13,'Intervenant 20'!R13)/Intro!$E$10,\"\")","v":""},{"$f":"IFERROR(SUM('Intervenant 1'!S13,'Intervenant 2'!S13,'Intervenant 3'!S13,'Intervenant 4'!S13,'Intervenant 5'!S13,'Intervenant 6'!S13,'Intervenant 7'!S13,'Intervenant 8'!S13,'Intervenant 9'!S13,'Intervenant 10'!S13,'Intervenant 11'!S13,'Intervenant 12'!S13,'Intervenant 13'!S13,'Intervenant 14'!S13,'Intervenant 15'!S13,'Intervenant 16'!S13,'Intervenant 17'!S13,'Intervenant 18'!S13,'Intervenant 19'!S13,'Intervenant 20'!S13)/Intro!$E$10,\"\")","v":""}]
[null,"Exécuter",{"$f":"IFERROR(SUM('Intervenant 1'!L14,'Intervenant 2'!L14,'Intervenant 3'!L14,'Intervenant 4'!L14,'Intervenant 5'!L14,'Intervenant 6'!L14,'Intervenant 7'!L14,'Intervenant 8'!L14,'Intervenant 9'!L14,'Intervenant 10'!L14,'Intervenant 11'!L14,'Intervenant 12'!L14,'Intervenant 13'!L14,'Intervenant 14'!L14,'Intervenant 15'!L14,'Intervenant 16'!L14,'Intervenant 17'!L14,'Intervenant 18'!L14,'Intervenant 19'!L14,'Intervenant 20'!L14)/Intro!$E$10,\"\")","v":""},{"$f":"IFERROR(SUM('Intervenant 1'!M14,'Intervenant 2'!M14,'Intervenant 3'!M14,'Intervenant 4'!M14,'Intervenant 5'!M14,'Intervenant 6'!M14,'Intervenant 7'!M14,'Intervenant 8'!M14,'Intervenant 9'!M14,'Intervenant 10'!M14,'Intervenant 11'!M14,'Intervenant 12'!M14,'Intervenant 13'!M14,'Intervenant 14'!M14,'Intervenant 15'!M14,'Intervenant 16'!M14,'Intervenant 17'!M14,'Intervenant 18'!M14,'Intervenant 19'!M14,'Intervenant 20'!M14)/Intro!$E$10,\"\")","v":""},{"$f":"IFERROR(SUM('Intervenant 1'!N14,'Intervenant 2'!N14,'Intervenant 3'!N14,'Intervenant 4'!N14,'Intervenant 5'!N14,'Intervenant 6'!N14,'Intervenant 7'!N14,'Intervenant 8'!N14,'Intervenant 9'!N14,'Intervenant 10'!N14,'Intervenant 11'!N14,'Intervenant 12'!N14,'Intervenant 13'!N14,'Intervenant 14'!N14,'Intervenant 15'!N14,'Intervenant 16'!N14,'Intervenant 17'!N14,'Intervenant 18'!N14,'Intervenant 19'!N14,'Intervenant 20'!N14)/Intro!$E$10,\"\")","v":""},{"$f":"IFERROR(SUM('Intervenant 1'!O14,'Intervenant 2'!O14,'Intervenant 3'!O14,'Intervenant 4'!O14,'Intervenant 5'!O14,'Intervenant 6'!O14,'Intervenant 7'!O14,'Intervenant 8'!O14,'Intervenant 9'!O14,'Intervenant 10'!O14,'Intervenant 11'!O14,'Intervenant 12'!O14,'Intervenant 13'!O14,'Intervenant 14'!O14,'Intervenant 15'!O14,'Intervenant 16'!O14,'Intervenant 17'!O14,'Intervenant 18'!O14,'Intervenant 19'!O14,'Intervenant 20'!O14)/Intro!$E$10,\"\")","v":""},{"$f":"IFERROR(SUM('Intervenant 1'!P14,'Intervenant 2'!P14,'Intervenant 3'!P14,'Intervenant 4'!P14,'Intervenant 5'!P14,'Intervenant 6'!P14,'Intervenant 7'!P14,'Intervenant 8'!P14,'Intervenant 9'!P14,'Intervenant 10'!P14,'Intervenant 11'!P14,'Intervenant 12'!P14,'Intervenant 13'!P14,'Intervenant 14'!P14,'Intervenant 15'!P14,'Intervenant 16'!P14,'Intervenant 17'!P14,'Intervenant 18'!P14,'Intervenant 19'!P14,'Intervenant 20'!P14)/Intro!$E$10,\"\")","v":""},{"$f":"IFERROR(SUM('Intervenant 1'!Q14,'Intervenant 2'!Q14,'Intervenant 3'!Q14,'Intervenant 4'!Q14,'Intervenant 5'!Q14,'Intervenant 6'!Q14,'Intervenant 7'!Q14,'Intervenant 8'!Q14,'Intervenant 9'!Q14,'Intervenant 10'!Q14,'Intervenant 11'!Q14,'Intervenant 12'!Q14,'Intervenant 13'!Q14,'Intervenant 14'!Q14,'Intervenant 15'!Q14,'Intervenant 16'!Q14,'Intervenant 17'!Q14,'Intervenant 18'!Q14,'Intervenant 19'!Q14,'Intervenant 20'!Q14)/Intro!$E$10,\"\")","v":""},{"$f":"IFERROR(SUM('Intervenant 1'!R14,'Intervenant 2'!R14,'Intervenant 3'!R14,'Intervenant 4'!R14,'Intervenant 5'!R14,'Intervenant 6'!R14,'Intervenant 7'!R14,'Intervenant 8'!R14,'Intervenant 9'!R14,'Intervenant 10'!R14,'Intervenant 11'!R14,'Intervenant 12'!R14,'Intervenant 13'!R14,'Intervenant 14'!R14,'Intervenant 15'!R14,'Intervenant 16'!R14,'Intervenant 17'!R14,'Intervenant 18'!R14,'Intervenant 19'!R14,'Intervenant 20'!R14)/Intro!$E$10,\"\")","v":""},{"$f":"IFERROR(SUM('Intervenant 1'!S14,'Intervenant 2'!S14,'Intervenant 3'!S14,'Intervenant 4'!S14,'Intervenant 5'!S14,'Intervenant 6'!S14,'Intervenant 7'!S14,'Intervenant 8'!S14,'Intervenant 9'!S14,'Intervenant 10'!S14,'Intervenant 11'!S14,'Intervenant 12'!S14,'Intervenant 13'!S14,'Intervenant 14'!S14,'Intervenant 15'!S14,'Intervenant 16'!S14,'Intervenant 17'!S14,'Intervenant 18'!S14,'Intervenant 19'!S14,'Intervenant 20'!S14)/Intro!$E$10,\"\")","v":""}]
[null,"Gérer et maintenir",{"$f":"IFERROR(SUM('Intervenant 1'!L15,'Intervenant 2'!L15,'Intervenant 3'!L15,'Intervenant 4'!L15,'Intervenant 5'!L15,'Intervenant 6'!L15,'Intervenant 7'!L15,'Intervenant 8'!L15,'Intervenant 9'!L15,'Intervenant 10'!L15,'Intervenant 11'!L15,'Intervenant 12'!L15,'Intervenant 13'!L15,'Intervenant 14'!L15,'Intervenant 15'!L15,'Intervenant 16'!L15,'Intervenant 17'!L15,'Intervenant 18'!L15,'Intervenant 19'!L15,'Intervenant 20'!L15)/Intro!$E$10,\"\")","v":""},{"$f":"IFERROR(SUM('Intervenant 1'!M15,'Intervenant 2'!M15,'Intervenant 3'!M15,'Intervenant 4'!M15,'Intervenant 5'!M15,'Intervenant 6'!M15,'Intervenant 7'!M15,'Intervenant 8'!M15,'Intervenant 9'!M15,'Intervenant 10'!M15,'Intervenant 11'!M15,'Intervenant 12'!M15,'Intervenant 13'!M15,'Intervenant 14'!M15,'Intervenant 15'!M15,'Intervenant 16'!M15,'Intervenant 17'!M15,'Intervenant 18'!M15,'Intervenant 19'!M15,'Intervenant 20'!M15)/Intro!$E$10,\"\")","v":""},{"$f":"IFERROR(SUM('Intervenant 1'!N15,'Intervenant 2'!N15,'Intervenant 3'!N15,'Intervenant 4'!N15,'Intervenant 5'!N15,'Intervenant 6'!N15,'Intervenant 7'!N15,'Intervenant 8'!N15,'Intervenant 9'!N15,'Intervenant 10'!N15,'Intervenant 11'!N15,'Intervenant 12'!N15,'Intervenant 13'!N15,'Intervenant 14'!N15,'Intervenant 15'!N15,'Intervenant 16'!N15,'Intervenant 17'!N15,'Intervenant 18'!N15,'Intervenant 19'!N15,'Intervenant 20'!N15)/Intro!$E$10,\"\")","v":""},{"$f":"IFERROR(SUM('Intervenant 1'!O15,'Intervenant 2'!O15,'Intervenant 3'!O15,'Intervenant 4'!O15,'Intervenant 5'!O15,'Intervenant 6'!O15,'Intervenant 7'!O15,'Intervenant 8'!O15,'Intervenant 9'!O15,'Intervenant 10'!O15,'Intervenant 11'!O15,'Intervenant 12'!O15,'Intervenant 13'!O15,'Intervenant 14'!O15,'Intervenant 15'!O15,'Intervenant 16'!O15,'Intervenant 17'!O15,'Intervenant 18'!O15,'Intervenant 19'!O15,'Intervenant 20'!O15)/Intro!$E$10,\"\")","v":""},{"$f":"IFERROR(SUM('Intervenant 1'!P15,'Intervenant 2'!P15,'Intervenant 3'!P15,'Intervenant 4'!P15,'Intervenant 5'!P15,'Intervenant 6'!P15,'Intervenant 7'!P15,'Intervenant 8'!P15,'Intervenant 9'!P15,'Intervenant 10'!P15,'Intervenant 11'!P15,'Intervenant 12'!P15,'Intervenant 13'!P15,'Intervenant 14'!P15,'Intervenant 15'!P15,'Intervenant 16'!P15,'Intervenant 17'!P15,'Intervenant 18'!P15,'Intervenant 19'!P15,'Intervenant 20'!P15)/Intro!$E$10,\"\")","v":""},{"$f":"IFERROR(SUM('Intervenant 1'!Q15,'Intervenant 2'!Q15,'Intervenant 3'!Q15,'Intervenant 4'!Q15,'Intervenant 5'!Q15,'Intervenant 6'!Q15,'Intervenant 7'!Q15,'Intervenant 8'!Q15,'Intervenant 9'!Q15,'Intervenant 10'!Q15,'Intervenant 11'!Q15,'Intervenant 12'!Q15,'Intervenant 13'!Q15,'Intervenant 14'!Q15,'Intervenant 15'!Q15,'Intervenant 16'!Q15,'Intervenant 17'!Q15,'Intervenant 18'!Q15,'Intervenant 19'!Q15,'Intervenant 20'!Q15)/Intro!$E$10,\"\")","v":""},{"$f":"IFERROR(SUM('Intervenant 1'!R15,'Intervenant 2'!R15,'Intervenant 3'!R15,'Intervenant 4'!R15,'Intervenant 5'!R15,'Intervenant 6'!R15,'Intervenant 7'!R15,'Intervenant 8'!R15,'Intervenant 9'!R15,'Intervenant 10'!R15,'Intervenant 11'!R15,'Intervenant 12'!R15,'Intervenant 13'!R15,'Intervenant 14'!R15,'Intervenant 15'!R15,'Intervenant 16'!R15,'Intervenant 17'!R15,'Intervenant 18'!R15,'Intervenant 19'!R15,'Intervenant 20'!R15)/Intro!$E$10,\"\")","v":""},{"$f":"IFERROR(SUM('Intervenant 1'!S15,'Intervenant 2'!S15,'Intervenant 3'!S15,'Intervenant 4'!S15,'Intervenant 5'!S15,'Intervenant 6'!S15,'Intervenant 7'!S15,'Intervenant 8'!S15,'Intervenant 9'!S15,'Intervenant 10'!S15,'Intervenant 11'!S15,'Intervenant 12'!S15,'Intervenant 13'!S15,'Intervenant 14'!S15,'Intervenant 15'!S15,'Intervenant 16'!S15,'Intervenant 17'!S15,'Intervenant 18'!S15,'Intervenant 19'!S15,'Intervenant 20'!S15)/Intro!$E$10,\"\")","v":""}]
[]
[null,"TOTAUX",{"$f":"IFERROR(AVERAGE(C6:C9),\"NC\")","v":"NC"},{"$f":"IFERROR(AVERAGE(D6:D9),\"NC\")","v":"NC"},"NC","NC","NC","NC","NC","NC"]

{"sheet":"Coût fixes","index":4,"n_rows":16,"n_cols":3,"rows_kept":16,"cut":false,"hidden":false,"merged":[[1,1,1,2]]}
[]
[null,"Etude des coûts fixes"]
[]
[]
[null,null,"Coût HT en euros"]
[null,"Matériel",{"$f":"SUM('Intervenant 1'!I19,'Intervenant 2'!I19,'Intervenant 3'!I19,'Intervenant 4'!I19,'Intervenant 5'!I19,'Intervenant 6'!I19,'Intervenant 7'!I19,'Intervenant 8'!I19,'Intervenant 9'!I19,'Intervenant 10'!I19,'Intervenant 11'!I19,'Intervenant 12'!I19,'Intervenant 13'!I19,'Intervenant 14'!I19,'Intervenant 15'!I19,'Intervenant 16'!I19,'Intervenant 17'!I19,'Intervenant 18'!I19,'Intervenant 19'!I19,'Intervenant 20'!I19)","v":0}]
[null,"Licence",{"$f":"SUM('Intervenant 1'!I20,'Intervenant 2'!I20,'Intervenant 3'!I20,'Intervenant 4'!I20,'Intervenant 5'!I20,'Intervenant 6'!I20,'Intervenant 7'!I20,'Intervenant 8'!I20,'Intervenant 9'!I20,'Intervenant 10'!I20,'Intervenant 11'!I20,'Intervenant 12'!I20,'Intervenant 13'!I20,'Intervenant 14'!I20,'Intervenant 15'!I20,'Intervenant 16'!I20,'Intervenant 17'!I20,'Intervenant 18'!I20,'Intervenant 19'!I20,'Intervenant 20'!I20)","v":0}]
[null,"Maintenance",{"$f":"SUM('Intervenant 1'!I21,'Intervenant 2'!I21,'Intervenant 3'!I21,'Intervenant 4'!I21,'Intervenant 5'!I21,'Intervenant 6'!I21,'Intervenant 7'!I21,'Intervenant 8'!I21,'Intervenant 9'!I21,'Intervenant 10'!I21,'Intervenant 11'!I21,'Intervenant 12'!I21,'Intervenant 13'!I21,'Intervenant 14'!I21,'Intervenant 15'!I21,'Intervenant 16'!I21,'Intervenant 17'!I21,'Intervenant 18'!I21,'Intervenant 19'!I21,'Intervenant 20'!I21)","v":0}]
[null,"Formation",{"$f":"SUM('Intervenant 1'!I22,'Intervenant 2'!I22,'Intervenant 3'!I22,'Intervenant 4'!I22,'Intervenant 5'!I22,'Intervenant 6'!I22,'Intervenant 7'!I22,'Intervenant 8'!I22,'Intervenant 9'!I22,'Intervenant 10'!I22,'Intervenant 11'!I22,'Intervenant 12'!I22,'Intervenant 13'!I22,'Intervenant 14'!I22,'Intervenant 15'!I22,'Intervenant 16'!I22,'Intervenant 17'!I22,'Intervenant 18'!I22,'Intervenant 19'!I22,'Intervenant 20'!I22)","v":0}]
[null,"Espace physique dédié",{"$f":"SUM('Intervenant 1'!I23,'Intervenant 2'!I23,'Intervenant 3'!I23,'Intervenant 4'!I23,'Intervenant 5'!I23,'Intervenant 6'!I23,'Intervenant 7'!I23,'Intervenant 8'!I23,'Intervenant 9'!I23,'Intervenant 10'!I23,'Intervenant 11'!I23,'Intervenant 12'!I23,'Intervenant 13'!I23,'Intervenant 14'!I23,'Intervenant 15'!I23,'Intervenant 16'!I23,'Intervenant 17'!I23,'Intervenant 18'!I23,'Intervenant 19'!I23,'Intervenant 20'!I23)","v":0}]
[null,"Recrutement spécifique",{"$f":"SUM('Intervenant 1'!I24,'Intervenant 2'!I24,'Intervenant 3'!I24,'Intervenant 4'!I24,'Intervenant 5'!I24,'Intervenant 6'!I24,'Intervenant 7'!I24,'Intervenant 8'!I24,'Intervenant 9'!I24,'Intervenant 10'!I24,'Intervenant 11'!I24,'Intervenant 12'!I24,'Intervenant 13'!I24,'Intervenant 14'!I24,'Intervenant 15'!I24,'Intervenant 16'!I24,'Intervenant 17'!I24,'Intervenant 18'!I24,'Intervenant 19'!I24,'Intervenant 20'!I24)","v":0}]
[null,"Consultance",{"$f":"SUM('Intervenant 1'!I25,'Intervenant 2'!I25,'Intervenant 3'!I25,'Intervenant 4'!I25,'Intervenant 5'!I25,'Intervenant 6'!I25,'Intervenant 7'!I25,'Intervenant 8'!I25,'Intervenant 9'!I25,'Intervenant 10'!I25,'Intervenant 11'!I25,'Intervenant 12'!I25,'Intervenant 13'!I25,'Intervenant 14'!I25,'Intervenant 15'!I25,'Intervenant 16'!I25,'Intervenant 17'!I25,'Intervenant 18'!I25,'Intervenant 19'!I25,'Intervenant 20'!I25)","v":0}]
[null,"Données spécifiques",{"$f":"SUM('Intervenant 1'!I26,'Intervenant 2'!I26,'Intervenant 3'!I26,'Intervenant 4'!I26,'Intervenant 5'!I26,'Intervenant 6'!I26,'Intervenant 7'!I26,'Intervenant 8'!I26,'Intervenant 9'!I26,'Intervenant 10'!I26,'Intervenant 11'!I26,'Intervenant 12'!I26,'Intervenant 13'!I26,'Intervenant 14'!I26,'Intervenant 15'!I26,'Intervenant 16'!I26,'Intervenant 17'!I26,'Intervenant 18'!I26,'Intervenant 19'!I26,'Intervenant 20'!I26)","v":0}]
[null,"Autre",{"$f":"SUM('Intervenant 1'!I27,'Intervenant 2'!I27,'Intervenant 3'!I27,'Intervenant 4'!I27,'Intervenant 5'!I27,'Intervenant 6'!I27,'Intervenant 7'!I27,'Intervenant 8'!I27,'Intervenant 9'!I27,'Intervenant 10'!I27,'Intervenant 11'!I27,'Intervenant 12'!I27,'Intervenant 13'!I27,'Intervenant 14'!I27,'Intervenant 15'!I27,'Intervenant 16'!I27,'Intervenant 17'!I27,'Intervenant 18'!I27,'Intervenant 19'!I27,'Intervenant 20'!I27)","v":0}]
[]
[null,"TOTAL",{"$f":"SUM(C6:C14)","v":0}]

{"sheet":"Analyse des gains directs","index":5,"n_rows":67,"n_cols":6,"rows_kept":67,"cut":false,"hidden":false,"merged":[[66,1,66,2],[1,1,1,5],[1,11,1,14],[4,1,16,1],[18,1,37,1],[39,1,54,1],[56,1,64,1]]}
[]
[null,"Analyse quantitative des gains directs"]
[]
[]
[null,"PROGRAMMER","Utilisé ?","Code","Cas d'usage","TOTAL GAIN/PERTE"]
[null,null,{"$f":"IF(VLOOKUP(QA_PROG[[#This Row],[Cas d''usage]],CAS_USAGES[[Cas d’usages]:[Cas d''usage mis en place ?]],3,FALSE)=\"OUI\",\"X\",\"\")","v":""},"P-01","Analyse préalable  ",{"$f":"SUM('Intervenant 1'!F12,'Intervenant 2'!F12,'Intervenant 3'!F12,'Intervenant 4'!F12,'Intervenant 5'!F12,'Intervenant 6'!F12,'Intervenant 7'!F12,'Intervenant 8'!F12,'Intervenant 9'!F12,'Intervenant 10'!F12,'Intervenant 11'!F12,'Intervenant 12'!F12,'Intervenant 13'!F12,'Intervenant 14'!F12,'Intervenant 15'!F12,'Intervenant 16'!F12,'Intervenant 17'!F12,'Intervenant 18'!F12,'Intervenant 19'!F12,'Intervenant 20'!F12)","v":0}]
[null,null,{"$f":"IF(VLOOKUP(QA_PROG[[#This Row],[Cas d''usage]],CAS_USAGES[[Cas d’usages]:[Cas d''usage mis en place ?]],3,FALSE)=\"OUI\",\"X\",\"\")","v":""},"P-02","Programmation",{"$f":"SUM('Intervenant 1'!F13,'Intervenant 2'!F13,'Intervenant 3'!F13,'Intervenant 4'!F13,'Intervenant 5'!F13,'Intervenant 6'!F13,'Intervenant 7'!F13,'Intervenant 8'!F13,'Intervenant 9'!F13,'Intervenant 10'!F13,'Intervenant 11'!F13,'Intervenant 12'!F13,'Intervenant 13'!F13,'Intervenant 14'!F13,'Intervenant 15'!F13,'Intervenant 16'!F13,'Intervenant 17'!F13,'Intervenant 18'!F13,'Intervenant 19'!F13,'Intervenant 20'!F13)","v":0}]
[null,null,{"$f":"IF(VLOOKUP(QA_PROG[[#This Row],[Cas d''usage]],CAS_USAGES[[Cas d’usages]:[Cas d''usage mis en place ?]],3,FALSE)=\"OUI\",\"X\",\"\")","v":""},"P-04","Modélisation du site environnant (existant)",{"$f":"SUM('Intervenant 1'!F14,'Intervenant 2'!F14,'Intervenant 3'!F14,'Intervenant 4'!F14,'Intervenant 5'!F14,'Intervenant 6'!F14,'Intervenant 7'!F14,'Intervenant 8'!F14,'Intervenant 9'!F14,'Intervenant 10'!F14,'Intervenant 11'!F14,'Intervenant 12'!F14,'Intervenant 13'!F14,'Intervenant 14'!F14,'Intervenant 15'!F14,'Intervenant 16'!F14,'Intervenant 17'!F14,'Intervenant 18'!F14,'Intervenant 19'!F14,'Intervenant 20'!F14)","v":0}]
[null,null,{"$f":"IF(VLOOKUP(QA_PROG[[#This Row],[Cas d''usage]],CAS_USAGES[[Cas d’usages]:[Cas d''usage mis en place ?]],3,FALSE)=\"OUI\",\"X\",\"\")","v":""},"P-05","Diagnostic contextuel\nEtude territoriale de l'existant",{"$f":"SUM('Intervenant 1'!F15,'Intervenant 2'!F15,'Intervenant 3'!F15,'Intervenant 4'!F15,'Intervenant 5'!F15,'Intervenant 6'!F15,'Intervenant 7'!F15,'Intervenant 8'!F15,'Intervenant 9'!F15,'Intervenant 10'!F15,'Intervenant 11'!F15,'Intervenant 12'!F15,'Intervenant 13'!F15,'Intervenant 14'!F15,'Intervenant 15'!F15,'Intervenant 16'!F15,'Intervenant 17'!F15,'Intervenant 18'!F15,'Intervenant 19'!F15,'Intervenant 20'!F15)","v":0}]
[null,null,{"$f":"IF(VLOOKUP(QA_PROG[[#This Row],[Cas d''usage]],CAS_USAGES[[Cas d’usages]:[Cas d''usage mis en place ?]],3,FALSE)=\"OUI\",\"X\",\"\")","v":""},"P-06","Modélisation du projet",{"$f":"SUM('Intervenant 1'!F16,'Intervenant 2'!F16,'Intervenant 3'!F16,'Intervenant 4'!F16,'Intervenant 5'!F16,'Intervenant 6'!F16,'Intervenant 7'!F16,'Intervenant 8'!F16,'Intervenant 9'!F16,'Intervenant 10'!F16,'Intervenant 11'!F16,'Intervenant 12'!F16,'Intervenant 13'!F16,'Intervenant 14'!F16,'Intervenant 15'!F16,'Intervenant 16'!F16,'Intervenant 17'!F16,'Intervenant 18'!F16,'Intervenant 19'!F16,'Intervenant 20'!F16)","v":0}]
[null,null,{"$f":"IF(VLOOKUP(QA_PROG[[#This Row],[Cas d''usage]],CAS_USAGES[[Cas d’usages]:[Cas d''usage mis en place ?]],3,FALSE)=\"OUI\",\"X\",\"\")","v":""},"P-07","Concertation externe avec les intervenants (usagers notamment)",{"$f":"SUM('Intervenant 1'!F17,'Intervenant 2'!F17,'Intervenant 3'!F17,'Intervenant 4'!F17,'Intervenant 5'!F17,'Intervenant 6'!F17,'Intervenant 7'!F17,'Intervenant 8'!F17,'Intervenant 9'!F17,'Intervenant 10'!F17,'Intervenant 11'!F17,'Intervenant 12'!F17,'Intervenant 13'!F17,'Intervenant 14'!F17,'Intervenant 15'!F17,'Intervenant 16'!F17,'Intervenant 17'!F17,'Intervenant 18'!F17,'Intervenant 19'!F17,'Intervenant 20'!F17)","v":0}]
[null,null,{"$f":"IF(VLOOKUP(QA_PROG[[#This Row],[Cas d''usage]],CAS_USAGES[[Cas d’usages]:[Cas d''usage mis en place ?]],3,FALSE)=\"OUI\",\"X\",\"\")","v":""},"P-08","Revues de projet",{"$f":"SUM('Intervenant 1'!F18,'Intervenant 2'!F18,'Intervenant 3'!F18,'Intervenant 4'!F18,'Intervenant 5'!F18,'Intervenant 6'!F18,'Intervenant 7'!F18,'Intervenant 8'!F18,'Intervenant 9'!F18,'Intervenant 10'!F18,'Intervenant 11'!F18,'Intervenant 12'!F18,'Intervenant 13'!F18,'Intervenant 14'!F18,'Intervenant 15'!F18,'Intervenant 16'!F18,'Intervenant 17'!F18,'Intervenant 18'!F18,'Intervenant 19'!F18,'Intervenant 20'!F18)","v":0}]
[null,null,{"$f":"IF(VLOOKUP(QA_PROG[[#This Row],[Cas d''usage]],CAS_USAGES[[Cas d’usages]:[Cas d''usage mis en place ?]],3,FALSE)=\"OUI\",\"X\",\"\")","v":""},"P-09","Production de livrables",{"$f":"SUM('Intervenant 1'!F19,'Intervenant 2'!F19,'Intervenant 3'!F19,'Intervenant 4'!F19,'Intervenant 5'!F19,'Intervenant 6'!F19,'Intervenant 7'!F19,'Intervenant 8'!F19,'Intervenant 9'!F19,'Intervenant 10'!F19,'Intervenant 11'!F19,'Intervenant 12'!F19,'Intervenant 13'!F19,'Intervenant 14'!F19,'Intervenant 15'!F19,'Intervenant 16'!F19,'Intervenant 17'!F19,'Intervenant 18'!F19,'Intervenant 19'!F19,'Intervenant 20'!F19)","v":0}]
[null,null,{"$f":"IF(VLOOKUP(QA_PROG[[#This Row],[Cas d''usage]],CAS_USAGES[[Cas d’usages]:[Cas d''usage mis en place ?]],3,FALSE)=\"OUI\",\"X\",\"\")","v":""},"P-11","Etudes des clash (conception et chantier)",{"$f":"SUM('Intervenant 1'!F20,'Intervenant 2'!F20,'Intervenant 3'!F20,'Intervenant 4'!F20,'Intervenant 5'!F20,'Intervenant 6'!F20,'Intervenant 7'!F20,'Intervenant 8'!F20,'Intervenant 9'!F20,'Intervenant 10'!F20,'Intervenant 11'!F20,'Intervenant 12'!F20,'Intervenant 13'!F20,'Intervenant 14'!F20,'Intervenant 15'!F20,'Intervenant 16'!F20,'Intervenant 17'!F20,'Intervenant 18'!F20,'Intervenant 19'!F20,'Intervenant 20'!F20)","v":0}]
[null,null,{"$f":"IF(VLOOKUP(QA_PROG[[#This Row],[Cas d''usage]],CAS_USAGES[[Cas d’usages]:[Cas d''usage mis en place ?]],3,FALSE)=\"OUI\",\"X\",\"\")","v":""},"P-12","Contrôle du modèle et de la donnée",{"$f":"SUM('Intervenant 1'!F21,'Intervenant 2'!F21,'Intervenant 3'!F21,'Intervenant 4'!F21,'Intervenant 5'!F21,'Intervenant 6'!F21,'Intervenant 7'!F21,'Intervenant 8'!F21,'Intervenant 9'!F21,'Intervenant 10'!F21,'Intervenant 11'!F21,'Intervenant 12'!F21,'Intervenant 13'!F21,'Intervenant 14'!F21,'Intervenant 15'!F21,'Intervenant 16'!F21,'Intervenant 17'!F21,'Intervenant 18'!F21,'Intervenant 19'!F21,'Intervenant 20'!F21)","v":0}]
[null,null,{"$f":"IF(VLOOKUP(QA_PROG[[#This Row],[Cas d''usage]],CAS_USAGES[[Cas d’usages]:[Cas d''usage mis en place ?]],3,FALSE)=\"OUI\",\"X\",\"\")","v":""},"P-13","Réalisation de quantitatifs",{"$f":"SUM('Intervenant 1'!F22,'Intervenant 2'!F22,'Intervenant 3'!F22,'Intervenant 4'!F22,'Intervenant 5'!F22,'Intervenant 6'!F22,'Intervenant 7'!F22,'Intervenant 8'!F22,'Intervenant 9'!F22,'Intervenant 10'!F22,'Intervenant 11'!F22,'Intervenant 12'!F22,'Intervenant 13'!F22,'Intervenant 14'!F22,'Intervenant 15'!F22,'Intervenant 16'!F22,'Intervenant 17'!F22,'Intervenant 18'!F22,'Intervenant 19'!F22,'Intervenant 20'!F22)","v":0}]
[null,null,{"$f":"IF(VLOOKUP(QA_PROG[[#This Row],[Cas d''usage]],CAS_USAGES[[Cas d’usages]:[Cas d''usage mis en place ?]],3,FALSE)=\"OUI\",\"X\",\"\")","v":""},"P-24","Communication de projet",{"$f":"SUM('Intervenant 1'!F23,'Intervenant 2'!F23,'Intervenant 3'!F23,'Intervenant 4'!F23,'Intervenant 5'!F23,'Intervenant 6'!F23,'Intervenant 7'!F23,'Intervenant 8'!F23,'Intervenant 9'!F23,'Intervenant 10'!F23,'Intervenant 11'!F23,'Intervenant 12'!F23,'Intervenant 13'!F23,'Intervenant 14'!F23,'Intervenant 15'!F23,'Intervenant 16'!F23,'Intervenant 17'!F23,'Intervenant 18'!F23,'Intervenant 19'!F23,'Intervenant 20'!F23)","v":0}]
[]
[null,"CONCEVOIR","Utilisé ?","Code","Cas d'usage","TOTAL GAIN/PERTE"]
[null,null,{"$f":"IF(VLOOKUP(QA_CONC[[#This Row],[Cas d''usage]],CAS_USAGES[[Cas d’usages]:[Cas d''usage mis en place ?]],3,FALSE)=\"OUI\",\"X\",\"\")","v":""},"C-04","Modélisation du site environnant (existant)",{"$f":"SUM('Intervenant 1'!F24,'Intervenant 2'!F24,'Intervenant 3'!F24,'Intervenant 4'!F24,'Intervenant 5'!F24,'Intervenant 6'!F24,'Intervenant 7'!F24,'Intervenant 8'!F24,'Intervenant 9'!F24,'Intervenant 10'!F24,'Intervenant 11'!F24,'Intervenant 12'!F24,'Intervenant 13'!F24,'Intervenant 14'!F24,'Intervenant 15'!F24,'Intervenant 16'!F24,'Intervenant 17'!F24,'Intervenant 18'!F24,'Intervenant 19'!F24,'Intervenant 20'!F24)","v":0}]
[null,null,{"$f":"IF(VLOOKUP(QA_CONC[[#This Row],[Cas d''usage]],CAS_USAGES[[Cas d’usages]:[Cas d''usage mis en place ?]],3,FALSE)=\"OUI\",\"X\",\"\")","v":""},"C-05","Diagnostic contextuel\nEtude territoriale de l'existant",{"$f":"SUM('Intervenant 1'!F25,'Intervenant 2'!F25,'Intervenant 3'!F25,'Intervenant 4'!F25,'Intervenant 5'!F25,'Intervenant 6'!F25,'Intervenant 7'!F25,'Intervenant 8'!F25,'Intervenant 9'!F25,'Intervenant 10'!F25,'Intervenant 11'!F25,'Intervenant 12'!F25,'Intervenant 13'!F25,'Intervenant 14'!F25,'Intervenant 15'!F25,'Intervenant 16'!F25,'Intervenant 17'!F25,'Intervenant 18'!F25,'Intervenant 19'!F25,'Intervenant 20'!F25)","v":0}]
[null,null,{"$f":"IF(VLOOKUP(QA_CONC[[#This Row],[Cas d''usage]],CAS_USAGES[[Cas d’usages]:[Cas d''usage mis en place ?]],3,FALSE)=\"OUI\",\"X\",\"\")","v":""},"C-06","Modélisation du projet",{"$f":"SUM('Intervenant 1'!F26,'Intervenant 2'!F26,'Intervenant 3'!F26,'Intervenant 4'!F26,'Intervenant 5'!F26,'Intervenant 6'!F26,'Intervenant 7'!F26,'Intervenant 8'!F26,'Intervenant 9'!F26,'Intervenant 10'!F26,'Intervenant 11'!F26,'Intervenant 12'!F26,'Intervenant 13'!F26,'Intervenant 14'!F26,'Intervenant 15'!F26,'Intervenant 16'!F26,'Intervenant 17'!F26,'Intervenant 18'!F26,'Intervenant 19'!F26,'Intervenant 20'!F26)","v":0}]
[null,null,{"$f":"IF(VLOOKUP(QA_CONC[[#This Row],[Cas d''usage]],CAS_USAGES[[Cas d’usages]:[Cas d''usage mis en place ?]],3,FALSE)=\"OUI\",\"X\",\"\")","v":""},"C-07","Concertation externe avec les intervenants (usagers notamment)",{"$f":"SUM('Intervenant 1'!F27,'Intervenant 2'!F27,'Intervenant 3'!F27,'Intervenant 4'!F27,'Intervenant 5'!F27,'Intervenant 6'!F27,'Intervenant 7'!F27,'Intervenant 8'!F27,'Intervenant 9'!F27,'Intervenant 10'!F27,'Intervenant 11'!F27,'Intervenant 12'!F27,'Intervenant 13'!F27,'Intervenant 14'!F27,'Intervenant 15'!F27,'Intervenant 16'!F27,'Intervenant 17'!F27,'Intervenant 18'!F27,'Intervenant 19'!F27,'Intervenant 20'!F27)","v":0}]
[null,null,{"$f":"IF(VLOOKUP(QA_CONC[[#This Row],[Cas d''usage]],CAS_USAGES[[Cas d’usages]:[Cas d''usage mis en place ?]],3,FALSE)=\"OUI\",\"X\",\"\")","v":""},"C-08","Revues de projet",{"$f":"SUM('Intervenant 1'!F28,'Intervenant 2'!F28,'Intervenant 3'!F28,'Intervenant 4'!F28,'Intervenant 5'!F28,'Intervenant 6'!F28,'Intervenant 7'!F28,'Intervenant 8'!F28,'Intervenant 9'!F28,'Intervenant 10'!F28,'Intervenant 11'!F28,'Intervenant 12'!F28,'Intervenant 13'!F28,'Intervenant 14'!F28,'Intervenant 15'!F28,'Intervenant 16'!F28,'Intervenant 17'!F28,'Intervenant 18'!F28,'Intervenant 19'!F28,'Intervenant 20'!F28)","v":0}]
[null,null,{"$f":"IF(VLOOKUP(QA_CONC[[#This Row],[Cas d''usage]],CAS_USAGES[[Cas d’usages]:[Cas d''usage mis en place ?]],3,FALSE)=\"OUI\",\"X\",\"\")","v":""},"C-09","Production de livrables",{"$f":"SUM('Intervenant 1'!F29,'Intervenant 2'!F29,'Intervenant 3'!F29,'Intervenant 4'!F29,'Intervenant 5'!F29,'Intervenant 6'!F29,'Intervenant 7'!F29,'Intervenant 8'!F29,'Intervenant 9'!F29,'Intervenant 10'!F29,'Intervenant 11'!F29,'Intervenant 12'!F29,'Intervenant 13'!F29,'Intervenant 14'!F29,'Intervenant 15'!F29,'Intervenant 16'!F29,'Intervenant 17'!F29,'Intervenant 18'!F29,'Intervenant 19'!F29,'Intervenant 20'!F29)","v":0}]
[null,null,{"$f":"IF(VLOOKUP(QA_CONC[[#This Row],[Cas d''usage]],CAS_USAGES[[Cas d’usages]:[Cas d''usage mis en place ?]],3,FALSE)=\"OUI\",\"X\",\"\")","v":""},"C-10","Evaluation de performances du projet",{"$f":"SUM('Intervenant 1'!F30,'Intervenant 2'!F30,'Intervenant 3'!F30,'Intervenant 4'!F30,'Intervenant 5'!F30,'Intervenant 6'!F30,'Intervenant 7'!F30,'Intervenant 8'!F30,'Intervenant 9'!F30,'Intervenant 10'!F30,'Intervenant 11'!F30,'Intervenant 12'!F30,'Intervenant 13'!F30,'Intervenant 14'!F30,'Intervenant 15'!F30,'Intervenant 16'!F30,'Intervenant 17'!F30,'Intervenant 18'!F30,'Intervenant 19'!F30,'Intervenant 20'!F30)","v":0}]
[null,null,{"$f":"IF(VLOOKUP(QA_CONC[[#This Row],[Cas d''usage]],CAS_USAGES[[Cas d’usages]:[Cas d''usage mis en place ?]],3,FALSE)=\"OUI\",\"X\",\"\")","v":""},"C-11","Etudes des clash (conception et chantier)",{"$f":"SUM('Intervenant 1'!F31,'Intervenant 2'!F31,'Intervenant 3'!F31,'Intervenant 4'!F31,'Intervenant 5'!F31,'Intervenant 6'!F31,'Intervenant 7'!F31,'Intervenant 8'!F31,'Intervenant 9'!F31,'Intervenant 10'!F31,'Intervenant 11'!F31,'Intervenant 12'!F31,'Intervenant 13'!F31,'Intervenant 14'!F31,'Intervenant 15'!F31,'Intervenant 16'!F31,'Intervenant 17'!F31,'Intervenant 18'!F31,'Intervenant 19'!F31,'Intervenant 20'!F31)","v":0}]
[null,null,{"$f":"IF(VLOOKUP(QA_CONC[[#This Row],[Cas d''usage]],CAS_USAGES[[Cas d’usages]:[Cas d''usage mis en place ?]],3,FALSE)=\"OUI\",\"X\",\"\")","v":""},"C-12","Contrôle du modèle et de la donnée",{"$f":"SUM('Intervenant 1'!F32,'Intervenant 2'!F32,'Intervenant 3'!F32,'Intervenant 4'!F32,'Intervenant 5'!F32,'Intervenant 6'!F32,'Intervenant 7'!F32,'Intervenant 8'!F32,'Intervenant 9'!F32,'Intervenant 10'!F32,'Intervenant 11'!F32,'Intervenant 12'!F32,'Intervenant 13'!F32,'Intervenant 14'!F32,'Intervenant 15'!F32,'Intervenant 16'!F32,'Intervenant 17'!F32,'Intervenant 18'!F32,'Intervenant 19'!F32,'Intervenant 20'!F32)","v":0}]
[null,null,{"$f":"IF(VLOOKUP(QA_CONC[[#This Row],[Cas d''usage]],CAS_USAGES[[Cas d’usages]:[Cas d''usage mis en place ?]],3,FALSE)=\"OUI\",\"X\",\"\")","v":""},"C-13","Réalisation de quantitatifs",{"$f":"SUM('Intervenant 1'!F33,'Intervenant 2'!F33,'Intervenant 3'!F33,'Intervenant 4'!F33,'Intervenant 5'!F33,'Intervenant 6'!F33,'Intervenant 7'!F33,'Intervenant 8'!F33,'Intervenant 9'!F33,'Intervenant 10'!F33,'Intervenant 11'!F33,'Intervenant 12'!F33,'Intervenant 13'!F33,'Intervenant 14'!F33,'Intervenant 15'!F33,'Intervenant 16'!F33,'Intervenant 17'!F33,'Intervenant 18'!F33,'Intervenant 19'!F33,'Intervenant 20'!F33)","v":0}]
[null,null,{"$f":"IF(VLOOKUP(QA_CONC[[#This Row],[Cas d''usage]],CAS_USAGES[[Cas d’usages]:[Cas d''usage mis en place ?]],3,FALSE)=\"OUI\",\"X\",\"\")","v":""},"C-14","Conception de systèmes constructifs",{"$f":"SUM('Intervenant 1'!F34,'Intervenant 2'!F34,'Intervenant 3'!F34,'Intervenant 4'!F34,'Intervenant 5'!F34,'Intervenant 6'!F34,'Intervenant 7'!F34,'Intervenant 8'!F34,'Intervenant 9'!F34,'Intervenant 10'!F34,'Intervenant 11'!F34,'Intervenant 12'!F34,'Intervenant 13'!F34,'Intervenant 14'!F34,'Intervenant 15'!F34,'Intervenant 16'!F34,'Intervenant 17'!F34,'Intervenant 18'!F34,'Intervenant 19'!F34,'Intervenant 20'!F34)","v":0}]
[null,null,{"$f":"IF(VLOOKUP(QA_CONC[[#This Row],[Cas d''usage]],CAS_USAGES[[Cas d’usages]:[Cas d''usage mis en place ?]],3,FALSE)=\"OUI\",\"X\",\"\")","v":""},"C-15","Phasage du chantier / Planification / aménagement",{"$f":"SUM('Intervenant 1'!F35,'Intervenant 2'!F35,'Intervenant 3'!F35,'Intervenant 4'!F35,'Intervenant 5'!F35,'Intervenant 6'!F35,'Intervenant 7'!F35,'Intervenant 8'!F35,'Intervenant 9'!F35,'Intervenant 10'!F35,'Intervenant 11'!F35,'Intervenant 12'!F35,'Intervenant 13'!F35,'Intervenant 14'!F35,'Intervenant 15'!F35,'Intervenant 16'!F35,'Intervenant 17'!F35,'Intervenant 18'!F35,'Intervenant 19'!F35,'Intervenant 20'!F35)","v":0}]
[null,null,{"$f":"IF(VLOOKUP(QA_CONC[[#This Row],[Cas d''usage]],CAS_USAGES[[Cas d’usages]:[Cas d''usage mis en place ?]],3,FALSE)=\"OUI\",\"X\",\"\")","v":""},"C-16","Permis de construire, Permis d'aménager",{"$f":"SUM('Intervenant 1'!F36,'Intervenant 2'!F36,'Intervenant 3'!F36,'Intervenant 4'!F36,'Intervenant 5'!F36,'Intervenant 6'!F36,'Intervenant 7'!F36,'Intervenant 8'!F36,'Intervenant 9'!F36,'Intervenant 10'!F36,'Intervenant 11'!F36,'Intervenant 12'!F36,'Intervenant 13'!F36,'Intervenant 14'!F36,'Intervenant 15'!F36,'Intervenant 16'!F36,'Intervenant 17'!F36,'Intervenant 18'!F36,'Intervenant 19'!F36,'Intervenant 20'!F36)","v":0}]
[null,null,{"$f":"IF(VLOOKUP(QA_CONC[[#This Row],[Cas d''usage]],CAS_USAGES[[Cas d’usages]:[Cas d''usage mis en place ?]],3,FALSE)=\"OUI\",\"X\",\"\")","v":""},"C-17","Préparation de chantier (ouvrages provisoires, logistique…)",{"$f":"SUM('Intervenant 1'!F37,'Intervenant 2'!F37,'Intervenant 3'!F37,'Intervenant 4'!F37,'Intervenant 5'!F37,'Intervenant 6'!F37,'Intervenant 7'!F37,'Intervenant 8'!F37,'Intervenant 9'!F37,'Intervenant 10'!F37,'Intervenant 11'!F37,'Intervenant 12'!F37,'Intervenant 13'!F37,'Intervenant 14'!F37,'Intervenant 15'!F37,'Intervenant 16'!F37,'Intervenant 17'!F37,'Intervenant 18'!F37,'Intervenant 19'!F37,'Intervenant 20'!F37)","v":0}]
[null,null,{"$f":"IF(VLOOKUP(QA_CONC[[#This Row],[Cas d''usage]],CAS_USAGES[[Cas d’usages]:[Cas d''usage mis en place ?]],3,FALSE)=\"OUI\",\"X\",\"\")","v":""},"C-16","Permis de construire, Permis d'aménager",{"$f":"SUM('Intervenant 1'!F38,'Intervenant 2'!F38,'Intervenant 3'!F38,'Intervenant 4'!F38,'Intervenant 5'!F38,'Intervenant 6'!F38,'Intervenant 7'!F38,'Intervenant 8'!F38,'Intervenant 9'!F38,'Intervenant 10'!F38,'Intervenant 11'!F38,'Intervenant 12'!F38,'Intervenant 13'!F38,'Intervenant 14'!F38,'Intervenant 15'!F38,'Intervenant 16'!F38,'Intervenant 17'!F38,'Intervenant 18'!F38,'Intervenant 19'!F38,'Intervenant 20'!F38)","v":0}]
[null,null,{"$f":"IF(VLOOKUP(QA_CONC[[#This Row],[Cas d''usage]],CAS_USAGES[[Cas d’usages]:[Cas d''usage mis en place ?]],3,FALSE)=\"OUI\",\"X\",\"\")","v":""},"C-19","Réception des ouvrages et Consolidation des dossiers des ouvrages exécutés numériques",{"$f":"SUM('Intervenant 1'!F39,'Intervenant 2'!F39,'Intervenant 3'!F39,'Intervenant 4'!F39,'Intervenant 5'!F39,'Intervenant 6'!F39,'Intervenant 7'!F39,'Intervenant 8'!F39,'Intervenant 9'!F39,'Intervenant 10'!F39,'Intervenant 11'!F39,'Intervenant 12'!F39,'Intervenant 13'!F39,'Intervenant 14'!F39,'Intervenant 15'!F39,'Intervenant 16'!F39,'Intervenant 17'!F39,'Intervenant 18'!F39,'Intervenant 19'!F39,'Intervenant 20'!F39)","v":0}]
[null,null,{"$f":"IF(VLOOKUP(QA_CONC[[#This Row],[Cas d''usage]],CAS_USAGES[[Cas d’usages]:[Cas d''usage mis en place ?]],3,FALSE)=\"OUI\",\"X\",\"\")","v":""},"C-21","Plan prévisionnel de maintenance",{"$f":"SUM('Intervenant 1'!F40,'Intervenant 2'!F40,'Intervenant 3'!F40,'Intervenant 4'!F40,'Intervenant 5'!F40,'Intervenant 6'!F40,'Intervenant 7'!F40,'Intervenant 8'!F40,'Intervenant 9'!F40,'Intervenant 10'!F40,'Intervenant 11'!F40,'Intervenant 12'!F40,'Intervenant 13'!F40,'Intervenant 14'!F40,'Intervenant 15'!F40,'Intervenant 16'!F40,'Intervenant 17'!F40,'Intervenant 18'!F40,'Intervenant 19'!F40,'Intervenant 20'!F40)","v":0}]
[null,null,{"$f":"IF(VLOOKUP(QA_CONC[[#This Row],[Cas d''usage]],CAS_USAGES[[Cas d’usages]:[Cas d''usage mis en place ?]],3,FALSE)=\"OUI\",\"X\",\"\")","v":""},"C-23","Rétribution de données dans une base de données publique",{"$f":"SUM('Intervenant 1'!F41,'Intervenant 2'!F41,'Intervenant 3'!F41,'Intervenant 4'!F41,'Intervenant 5'!F41,'Intervenant 6'!F41,'Intervenant 7'!F41,'Intervenant 8'!F41,'Intervenant 9'!F41,'Intervenant 10'!F41,'Intervenant 11'!F41,'Intervenant 12'!F41,'Intervenant 13'!F41,'Intervenant 14'!F41,'Intervenant 15'!F41,'Intervenant 16'!F41,'Intervenant 17'!F41,'Intervenant 18'!F41,'Intervenant 19'!F41,'Intervenant 20'!F41)","v":0}]
[null,null,{"$f":"IF(VLOOKUP(QA_CONC[[#This Row],[Cas d''usage]],CAS_USAGES[[Cas d’usages]:[Cas d''usage mis en place ?]],3,FALSE)=\"OUI\",\"X\",\"\")","v":""},"C-24","Communication de projet",{"$f":"SUM('Intervenant 1'!F42,'Intervenant 2'!F42,'Intervenant 3'!F42,'Intervenant 4'!F42,'Intervenant 5'!F42,'Intervenant 6'!F42,'Intervenant 7'!F42,'Intervenant 8'!F42,'Intervenant 9'!F42,'Intervenant 10'!F42,'Intervenant 11'!F42,'Intervenant 12'!F42,'Intervenant 13'!F42,'Intervenant 14'!F42,'Intervenant 15'!F42,'Intervenant 16'!F42,'Intervenant 17'!F42,'Intervenant 18'!F42,'Intervenant 19'!F42,'Intervenant 20'!F42)","v":0}]
[]
[null,"EXECUTER","Utilisé ?","Code","Cas d'usage","TOTAL GAIN/PERTE"]
[null,null,{"$f":"IF(VLOOKUP(QA_EXEC[[#This Row],[Cas d''usage]],CAS_USAGES[[Cas d’usages]:[Cas d''usage mis en place ?]],3,FALSE)=\"OUI\",\"X\",\"\")","v":""},"E-06","Modélisation du projet",{"$f":"SUM('Intervenant 1'!F43,'Intervenant 2'!F43,'Intervenant 3'!F43,'Intervenant 4'!F43,'Intervenant 5'!F43,'Intervenant 6'!F43,'Intervenant 7'!F43,'Intervenant 8'!F43,'Intervenant 9'!F43,'Intervenant 10'!F43,'Intervenant 11'!F43,'Intervenant 12'!F43,'Intervenant 13'!F43,'Intervenant 14'!F43,'Intervenant 15'!F43,'Intervenant 16'!F43,'Intervenant 17'!F43,'Intervenant 18'!F43,'Intervenant 19'!F43,'Intervenant 20'!F43)","v":0}]
[null,null,{"$f":"IF(VLOOKUP(QA_EXEC[[#This Row],[Cas d''usage]],CAS_USAGES[[Cas d’usages]:[Cas d''usage mis en place ?]],3,FALSE)=\"OUI\",\"X\",\"\")","v":""},"E-08","Revues de projet",{"$f":"SUM('Intervenant 1'!F44,'Intervenant 2'!F44,'Intervenant 3'!F44,'Intervenant 4'!F44,'Intervenant 5'!F44,'Intervenant 6'!F44,'Intervenant 7'!F44,'Intervenant 8'!F44,'Intervenant 9'!F44,'Intervenant 10'!F44,'Intervenant 11'!F44,'Intervenant 12'!F44,'Intervenant 13'!F44,'Intervenant 14'!F44,'Intervenant 15'!F44,'Intervenant 16'!F44,'Intervenant 17'!F44,'Intervenant 18'!F44,'Intervenant 19'!F44,'Intervenant 20'!F44)","v":0}]
[null,null,{"$f":"IF(VLOOKUP(QA_EXEC[[#This Row],[Cas d''usage]],CAS_USAGES[[Cas d’usages]:[Cas d''usage mis en place ?]],3,FALSE)=\"OUI\",\"X\",\"\")","v":""},"E-09","Production de livrables",{"$f":"SUM('Intervenant 1'!F45,'Intervenant 2'!F45,'Intervenant 3'!F45,'Intervenant 4'!F45,'Intervenant 5'!F45,'Intervenant 6'!F45,'Intervenant 7'!F45,'Intervenant 8'!F45,'Intervenant 9'!F45,'Intervenant 10'!F45,'Intervenant 11'!F45,'Intervenant 12'!F45,'Intervenant 13'!F45,'Intervenant 14'!F45,'Intervenant 15'!F45,'Intervenant 16'!F45,'Intervenant 17'!F45,'Intervenant 18'!F45,'Intervenant 19'!F45,'Intervenant 20'!F45)","v":0}]
[null,null,{"$f":"IF(VLOOKUP(QA_EXEC[[#This Row],[Cas d''usage]],CAS_USAGES[[Cas d’usages]:[Cas d''usage mis en place ?]],3,FALSE)=\"OUI\",\"X\",\"\")","v":""},"E-10","Evaluation de performances du projet",{"$f":"SUM('Intervenant 1'!F46,'Intervenant 2'!F46,'Intervenant 3'!F46,'Intervenant 4'!F46,'Intervenant 5'!F46,'Intervenant 6'!F46,'Intervenant 7'!F46,'Intervenant 8'!F46,'Intervenant 9'!F46,'Intervenant 10'!F46,'Intervenant 11'!F46,'Intervenant 12'!F46,'Intervenant 13'!F46,'Intervenant 14'!F46,'Intervenant 15'!F46,'Intervenant 16'!F46,'Intervenant 17'!F46,'Intervenant 18'!F46,'Intervenant 19'!F46,'Intervenant 20'!F46)","v":0}]
[null,null,{"$f":"IF(VLOOKUP(QA_EXEC[[#This Row],[Cas d''usage]],CAS_USAGES[[Cas d’usages]:[Cas d''usage mis en place ?]],3,FALSE)=\"OUI\",\"X\",\"\")","v":""},"E-11","Etudes des clash (conception et chantier)",{"$f":"SUM('Intervenant 1'!F47,'Intervenant 2'!F47,'Intervenant 3'!F47,'Intervenant 4'!F47,'Intervenant 5'!F47,'Intervenant 6'!F47,'Intervenant 7'!F47,'Intervenant 8'!F47,'Intervenant 9'!F47,'Intervenant 10'!F47,'Intervenant 11'!F47,'Intervenant 12'!F47,'Intervenant 13'!F47,'Intervenant 14'!F47,'Intervenant 15'!F47,'Intervenant 16'!F47,'Intervenant 17'!F47,'Intervenant 18'!F47,'Intervenant 19'!F47,'Intervenant 20'!F47)","v":0}]
[null,null,{"$f":"IF(VLOOKUP(QA_EXEC[[#This Row],[Cas d''usage]],CAS_USAGES[[Cas d’usages]:[Cas d''usage mis en place ?]],3,FALSE)=\"OUI\",\"X\",\"\")","v":""},"E-12","Contrôle du modèle et de la donnée",{"$f":"SUM('Intervenant 1'!F48,'Intervenant 2'!F48,'Intervenant 3'!F48,'Intervenant 4'!F48,'Intervenant 5'!F48,'Intervenant 6'!F48,'Intervenant 7'!F48,'Intervenant 8'!F48,'Intervenant 9'!F48,'Intervenant 10'!F48,'Intervenant 11'!F48,'Intervenant 12'!F48,'Intervenant 13'!F48,'Intervenant 14'!F48,'Intervenant 15'!F48,'Intervenant 16'!F48,'Intervenant 17'!F48,'Intervenant 18'!F48,'Intervenant 19'!F48,'Intervenant 20'!F48)","v":0}]
[null,null,{"$f":"IF(VLOOKUP(QA_EXEC[[#This Row],[Cas d''usage]],CAS_USAGES[[Cas d’usages]:[Cas d''usage mis en place ?]],3,FALSE)=\"OUI\",\"X\",\"\")","v":""},"E-13","Réalisation de quantitatifs",{"$f":"SUM('Intervenant 1'!F49,'Intervenant 2'!F49,'Intervenant 3'!F49,'Intervenant 4'!F49,'Intervenant 5'!F49,'Intervenant 6'!F49,'Intervenant 7'!F49,'Intervenant 8'!F49,'Intervenant 9'!F49,'Intervenant 10'!F49,'Intervenant 11'!F49,'Intervenant 12'!F49,'Intervenant 13'!F49,'Intervenant 14'!F49,'Intervenant 15'!F49,'Intervenant 16'!F49,'Intervenant 17'!F49,'Intervenant 18'!F49,'Intervenant 19'!F49,'Intervenant 20'!F49)","v":0}]
[null,null,{"$f":"IF(VLOOKUP(QA_EXEC[[#This Row],[Cas d''usage]],CAS_USAGES[[Cas d’usages]:[Cas d''usage mis en place ?]],3,FALSE)=\"OUI\",\"X\",\"\")","v":""},"E-14","Conception de systèmes constructifs",{"$f":"SUM('Intervenant 1'!F50,'Intervenant 2'!F50,'Intervenant 3'!F50,'Intervenant 4'!F50,'Intervenant 5'!F50,'Intervenant 6'!F50,'Intervenant 7'!F50,'Intervenant 8'!F50,'Intervenant 9'!F50,'Intervenant 10'!F50,'Intervenant 11'!F50,'Intervenant 12'!F50,'Intervenant 13'!F50,'Intervenant 14'!F50,'Intervenant 15'!F50,'Intervenant 16'!F50,'Intervenant 17'!F50,'Intervenant 18'!F50,'Intervenant 19'!F50,'Intervenant 20'!F50)","v":0}]
[null,null,{"$f":"IF(VLOOKUP(QA_EXEC[[#This Row],[Cas d''usage]],CAS_USAGES[[Cas d’usages]:[Cas d''usage mis en place ?]],3,FALSE)=\"OUI\",\"X\",\"\")","v":""},"E-15","Phasage du chantier / Planification / aménagement",{"$f":"SUM('Intervenant 1'!F51,'Intervenant 2'!F51,'Intervenant 3'!F51,'Intervenant 4'!F51,'Intervenant 5'!F51,'Intervenant 6'!F51,'Intervenant 7'!F51,'Intervenant 8'!F51,'Intervenant 9'!F51,'Intervenant 10'!F51,'Intervenant 11'!F51,'Intervenant 12'!F51,'Intervenant 13'!F51,'Intervenant 14'!F51,'Intervenant 15'!F51,'Intervenant 16'!F51,'Intervenant 17'!F51,'Intervenant 18'!F51,'Intervenant 19'!F51,'Intervenant 20'!F51)","v":0}]
[null,null,{"$f":"IF(VLOOKUP(QA_EXEC[[#This Row],[Cas d''usage]],CAS_USAGES[[Cas d’usages]:[Cas d''usage mis en place ?]],3,FALSE)=\"OUI\",\"X\",\"\")","v":""},"E-17","Préparation de chantier (ouvrages provisoires, logistique…)",{"$f":"SUM('Intervenant 1'!F52,'Intervenant 2'!F52,'Intervenant 3'!F52,'Intervenant 4'!F52,'Intervenant 5'!F52,'Intervenant 6'!F52,'Intervenant 7'!F52,'Intervenant 8'!F52,'Intervenant 9'!F52,'Intervenant 10'!F52,'Intervenant 11'!F52,'Intervenant 12'!F52,'Intervenant 13'!F52,'Intervenant 14'!F52,'Intervenant 15'!F52,'Intervenant 16'!F52,'Intervenant 17'!F52,'Intervenant 18'!F52,'Intervenant 19'!F52,'Intervenant 20'!F52)","v":0}]
[null,null,{"$f":"IF(VLOOKUP(QA_EXEC[[#This Row],[Cas d''usage]],CAS_USAGES[[Cas d’usages]:[Cas d''usage mis en place ?]],3,FALSE)=\"OUI\",\"X\",\"\")","v":""},"E-18","Préfabrication",{"$f":"SUM('Intervenant 1'!F53,'Intervenant 2'!F53,'Intervenant 3'!F53,'Intervenant 4'!F53,'Intervenant 5'!F53,'Intervenant 6'!F53,'Intervenant 7'!F53,'Intervenant 8'!F53,'Intervenant 9'!F53,'Intervenant 10'!F53,'Intervenant 11'!F53,'Intervenant 12'!F53,'Intervenant 13'!F53,'Intervenant 14'!F53,'Intervenant 15'!F53,'Intervenant 16'!F53,'Intervenant 17'!F53,'Intervenant 18'!F53,'Intervenant 19'!F53,'Intervenant 20'!F53)","v":0}]
[null,null,{"$f":"IF(VLOOKUP(QA_EXEC[[#This Row],[Cas d''usage]],CAS_USAGES[[Cas d’usages]:[Cas d''usage mis en place ?]],3,FALSE)=\"OUI\",\"X\",\"\")","v":""},"E-19","Réception des ouvrages et Consolidation des dossiers des ouvrages exécutés numériques",{"$f":"SUM('Intervenant 1'!F54,'Intervenant 2'!F54,'Intervenant 3'!F54,'Intervenant 4'!F54,'Intervenant 5'!F54,'Intervenant 6'!F54,'Intervenant 7'!F54,'Intervenant 8'!F54,'Intervenant 9'!F54,'Intervenant 10'!F54,'Intervenant 11'!F54,'Intervenant 12'!F54,'Intervenant 13'!F54,'Intervenant 14'!F54,'Intervenant 15'!F54,'Intervenant 16'!F54,'Intervenant 17'!F54,'Intervenant 18'!F54,'Intervenant 19'!F54,'Intervenant 20'!F54)","v":0}]
[null,null,{"$f":"IF(VLOOKUP(QA_EXEC[[#This Row],[Cas d''usage]],CAS_USAGES[[Cas d’usages]:[Cas d''usage mis en place ?]],3,FALSE)=\"OUI\",\"X\",\"\")","v":""},"E-21","Plan prévisionnel de maintenance",{"$f":"SUM('Intervenant 1'!F55,'Intervenant 2'!F55,'Intervenant 3'!F55,'Intervenant 4'!F55,'Intervenant 5'!F55,'Intervenant 6'!F55,'Intervenant 7'!F55,'Intervenant 8'!F55,'Intervenant 9'!F55,'Intervenant 10'!F55,'Intervenant 11'!F55,'Intervenant 12'!F55,'Intervenant 13'!F55,'Intervenant 14'!F55,'Intervenant 15'!F55,'Intervenant 16'!F55,'Intervenant 17'!F55,'Intervenant 18'!F55,'Intervenant 19'!F55,'Intervenant 20'!F55)","v":0}]
[null,null,{"$f":"IF(VLOOKUP(QA_EXEC[[#This Row],[Cas d''usage]],CAS_USAGES[[Cas d’usages]:[Cas d''usage mis en place ?]],3,FALSE)=\"OUI\",\"X\",\"\")","v":""},"E-23","Rétribution de données dans une base de données publique",{"$f":"SUM('Intervenant 1'!F56,'Intervenant 2'!F56,'Intervenant 3'!F56,'Intervenant 4'!F56,'Intervenant 5'!F56,'Intervenant 6'!F56,'Intervenant 7'!F56,'Intervenant 8'!F56,'Intervenant 9'!F56,'Intervenant 10'!F56,'Intervenant 11'!F56,'Intervenant 12'!F56,'Intervenant 13'!F56,'Intervenant 14'!F56,'Intervenant 15'!F56,'Intervenant 16'!F56,'Intervenant 17'!F56,'Intervenant 18'!F56,'Intervenant 19'!F56,'Intervenant 20'!F56)","v":0}]
[null,null,{"$f":"IF(VLOOKUP(QA_EXEC[[#This Row],[Cas d''usage]],CAS_USAGES[[Cas d’usages]:[Cas d''usage mis en place ?]],3,FALSE)=\"OUI\",\"X\",\"\")","v":""},"E-24","Communication de projet",{"$f":"SUM('Intervenant 1'!F57,'Intervenant 2'!F57,'Intervenant 3'!F57,'Intervenant 4'!F57,'Intervenant 5'!F57,'Intervenant 6'!F57,'Intervenant 7'!F57,'Intervenant 8'!F57,'Intervenant 9'!F57,'Intervenant 10'!F57,'Intervenant 11'!F57,'Intervenant 12'!F57,'Intervenant 13'!F57,'Intervenant 14'!F57,'Intervenant 15'!F57,'Intervenant 16'!F57,'Intervenant 17'!F57,'Intervenant 18'!F57,'Intervenant 19'!F57,'Intervenant 20'!F57)","v":0}]
[]
[null,"GERER","Utilisé ?","Code","Cas d'usage","TOTAL GAIN/PERTE"]
[null,null,{"$f":"IF(VLOOKUP(QA_GERE[[#This Row],[Cas d''usage]],CAS_USAGES[[Cas d’usages]:[Cas d''usage mis en place ?]],3,FALSE)=\"OUI\",\"X\",\"\")","v":""},"G-09","Production de livrables",{"$f":"SUM('Intervenant 1'!F58,'Intervenant 2'!F58,'Intervenant 3'!F58,'Intervenant 4'!F58,'Intervenant 5'!F58,'Intervenant 6'!F58,'Intervenant 7'!F58,'Intervenant 8'!F58,'Intervenant 9'!F58,'Intervenant 10'!F58,'Intervenant 11'!F58,'Intervenant 12'!F58,'Intervenant 13'!F58,'Intervenant 14'!F58,'Intervenant 15'!F58,'Intervenant 16'!F58,'Intervenant 17'!F58,'Intervenant 18'!F58,'Intervenant 19'!F58,'Intervenant 20'!F58)","v":0}]
[null,null,{"$f":"IF(VLOOKUP(QA_GERE[[#This Row],[Cas d''usage]],CAS_USAGES[[Cas d’usages]:[Cas d''usage mis en place ?]],3,FALSE)=\"OUI\",\"X\",\"\")","v":""},"G-10","Evaluation de performances du projet",{"$f":"SUM('Intervenant 1'!F59,'Intervenant 2'!F59,'Intervenant 3'!F59,'Intervenant 4'!F59,'Intervenant 5'!F59,'Intervenant 6'!F59,'Intervenant 7'!F59,'Intervenant 8'!F59,'Intervenant 9'!F59,'Intervenant 10'!F59,'Intervenant 11'!F59,'Intervenant 12'!F59,'Intervenant 13'!F59,'Intervenant 14'!F59,'Intervenant 15'!F59,'Intervenant 16'!F59,'Intervenant 17'!F59,'Intervenant 18'!F59,'Intervenant 19'!F59,'Intervenant 20'!F59)","v":0}]
[null,null,{"$f":"IF(VLOOKUP(QA_GERE[[#This Row],[Cas d''usage]],CAS_USAGES[[Cas d’usages]:[Cas d''usage mis en place ?]],3,FALSE)=\"OUI\",\"X\",\"\")","v":""},"G-12","Contrôle du modèle et de la donnée",{"$f":"SUM('Intervenant 1'!F60,'Intervenant 2'!F60,'Intervenant 3'!F60,'Intervenant 4'!F60,'Intervenant 5'!F60,'Intervenant 6'!F60,'Intervenant 7'!F60,'Intervenant 8'!F60,'Intervenant 9'!F60,'Intervenant 10'!F60,'Intervenant 11'!F60,'Intervenant 12'!F60,'Intervenant 13'!F60,'Intervenant 14'!F60,'Intervenant 15'!F60,'Intervenant 16'!F60,'Intervenant 17'!F60,'Intervenant 18'!F60,'Intervenant 19'!F60,'Intervenant 20'!F60)","v":0}]
[null,null,{"$f":"IF(VLOOKUP(QA_GERE[[#This Row],[Cas d''usage]],CAS_USAGES[[Cas d’usages]:[Cas d''usage mis en place ?]],3,FALSE)=\"OUI\",\"X\",\"\")","v":""},"G-13","Réalisation de quantitatifs",{"$f":"SUM('Intervenant 1'!F61,'Intervenant 2'!F61,'Intervenant 3'!F61,'Intervenant 4'!F61,'Intervenant 5'!F61,'Intervenant 6'!F61,'Intervenant 7'!F61,'Intervenant 8'!F61,'Intervenant 9'!F61,'Intervenant 10'!F61,'Intervenant 11'!F61,'Intervenant 12'!F61,'Intervenant 13'!F61,'Intervenant 14'!F61,'Intervenant 15'!F61,'Intervenant 16'!F61,'Intervenant 17'!F61,'Intervenant 18'!F61,'Intervenant 19'!F61,'Intervenant 20'!F61)","v":0}]
[null,null,{"$f":"IF(VLOOKUP(QA_GERE[[#This Row],[Cas d''usage]],CAS_USAGES[[Cas d’usages]:[Cas d''usage mis en place ?]],3,FALSE)=\"OUI\",\"X\",\"\")","v":""},"G-21","Plan prévisionnel de maintenance",{"$f":"SUM('Intervenant 1'!F62,'Intervenant 2'!F62,'Intervenant 3'!F62,'Intervenant 4'!F62,'Intervenant 5'!F62,'Intervenant 6'!F62,'Intervenant 7'!F62,'Intervenant 8'!F62,'Intervenant 9'!F62,'Intervenant 10'!F62,'Intervenant 11'!F62,'Intervenant 12'!F62,'Intervenant 13'!F62,'Intervenant 14'!F62,'Intervenant 15'!F62,'Intervenant 16'!F62,'Intervenant 17'!F62,'Intervenant 18'!F62,'Intervenant 19'!F62,'Intervenant 20'!F62)","v":0}]
[null,null,{"$f":"IF(VLOOKUP(QA_GERE[[#This Row],[Cas d''usage]],CAS_USAGES[[Cas d’usages]:[Cas d''usage mis en place ?]],3,FALSE)=\"OUI\",\"X\",\"\")","v":""},"G-22","Gestion des ouvrages et des équipements par gestionnaire",{"$f":"SUM('Intervenant 1'!F63,'Intervenant 2'!F63,'Intervenant 3'!F63,'Intervenant 4'!F63,'Intervenant 5'!F63,'Intervenant 6'!F63,'Intervenant 7'!F63,'Intervenant 8'!F63,'Intervenant 9'!F63,'Intervenant 10'!F63,'Intervenant 11'!F63,'Intervenant 12'!F63,'Intervenant 13'!F63,'Intervenant 14'!F63,'Intervenant 15'!F63,'Intervenant 16'!F63,'Intervenant 17'!F63,'Intervenant 18'!F63,'Intervenant 19'!F63,'Intervenant 20'!F63)","v":0}]
[null,null,{"$f":"IF(VLOOKUP(QA_GERE[[#This Row],[Cas d''usage]],CAS_USAGES[[Cas d’usages]:[Cas d''usage mis en place ?]],3,FALSE)=\"OUI\",\"X\",\"\")","v":""},"G-23","Rétribution de données dans une base de données publique",{"$f":"SUM('Intervenant 1'!F64,'Intervenant 2'!F64,'Intervenant 3'!F64,'Intervenant 4'!F64,'Intervenant 5'!F64,'Intervenant 6'!F64,'Intervenant 7'!F64,'Intervenant 8'!F64,'Intervenant 9'!F64,'Intervenant 10'!F64,'Intervenant 11'!F64,'Intervenant 12'!F64,'Intervenant 13'!F64,'Intervenant 14'!F64,'Intervenant 15'!F64,'Intervenant 16'!F64,'Intervenant 17'!F64,'Intervenant 18'!F64,'Intervenant 19'!F64,'Intervenant 20'!F64)","v":0}]
[null,null,{"$f":"IF(VLOOKUP(QA_GERE[[#This Row],[Cas d''usage]],CAS_USAGES[[Cas d’usages]:[Cas d''usage mis en place ?]],3,FALSE)=\"OUI\",\"X\",\"\")","v":""},"G-24","Communication de projet",{"$f":"SUM('Intervenant 1'!F65,'Intervenant 2'!F65,'Intervenant 3'!F65,'Intervenant 4'!F65,'Intervenant 5'!F65,'Intervenant 6'!F65,'Intervenant 7'!F65,'Intervenant 8'!F65,'Intervenant 9'!F65,'Intervenant 10'!F65,'Intervenant 11'!F65,'Intervenant 12'!F65,'Intervenant 13'!F65,'Intervenant 14'!F65,'Intervenant 15'!F65,'Intervenant 16'!F65,'Intervenant 17'!F65,'Intervenant 18'!F65,'Intervenant 19'!F65,'Intervenant 20'!F65)","v":0}]
[]
[null,"TOTAUX",null,null,null,{"$f":"SUM(SUMIF($C$58:$C$65,\"X\",F58:F65),SUMIF($C$41:$C$55,\"X\",F41:F55),SUMIF($C$20:$C$38,\"X\",F20:F38),SUMIF($C$6:$C$17,\"X\",F6:F17))","v":0}]

{"sheet":"Analyse des gains indirects","index":6,"n_rows":13,"n_cols":8,"rows_kept":13,"cut":false,"hidden":false,"merged":[[1,1,1,8],[1,11,1,14],[69,2,69,8]]}
[]
[null,"Analyse quantitative des gains indirects"]
[]
[]
[null,"Gains indirects liés au gain de temps éventuels pour la réalisation"]
[null,null,"Moyenne de gain de temps estimé par rapport au planning initial selon les intervenants",null,null,null,null,{"$f":"IFERROR(SUM('Intervenant 1'!I16,'Intervenant 2'!I16,'Intervenant 3'!I16,'Intervenant 4'!I16,'Intervenant 5'!I16,'Intervenant 6'!I16,'Intervenant 7'!I16,'Intervenant 8'!I16,'Intervenant 9'!I16,'Intervenant 10'!I16,'Intervenant 11'!I16,'Intervenant 12'!I16,'Intervenant 13'!I16,'Intervenant 14'!I16,'Intervenant 15'!I16,'Intervenant 16'!I16,'Intervenant 17'!I16,'Intervenant 18'!I16,'Intervenant 19'!I16,'Intervenant 20'!I16)/Intro!$E$10,\"\")","v":""}]
[]
[null,"GI-1","Coût journalier de l'entreprise pour le dépassement de temps considéré (conditions générales (Euros/Jours))",null,null,null,null,{"$f":"SUM('Intervenant 1'!I11,'Intervenant 2'!I11,'Intervenant 3'!I11,'Intervenant 4'!I11,'Intervenant 5'!I11,'Intervenant 6'!I11,'Intervenant 7'!I11,'Intervenant 8'!I11,'Intervenant 9'!I11,'Intervenant 10'!I11,'Intervenant 11'!I11,'Intervenant 12'!I11,'Intervenant 13'!I11,'Intervenant 14'!I11,'Intervenant 15'!I11,'Intervenant 16'!I11,'Intervenant 17'!I11,'Intervenant 18'!I11,'Intervenant 19'!I11,'Intervenant 20'!I11)","v":0}]
[null,"GI-2","Coût journalier des 5% d'intérêts relatifs à l'emprunt pour la construction pour le dépassement de temps considéré",null,null,null,null,{"$f":"SUM('Intervenant 1'!I12,'Intervenant 2'!I12,'Intervenant 3'!I12,'Intervenant 4'!I12,'Intervenant 5'!I12,'Intervenant 6'!I12,'Intervenant 7'!I12,'Intervenant 8'!I12,'Intervenant 9'!I12,'Intervenant 10'!I12,'Intervenant 11'!I12,'Intervenant 12'!I12,'Intervenant 13'!I12,'Intervenant 14'!I12,'Intervenant 15'!I12,'Intervenant 16'!I12,'Intervenant 17'!I12,'Intervenant 18'!I12,'Intervenant 19'!I12,'Intervenant 20'!I12)","v":0}]
[null,"GI-3","Coût journalier associé aux frais administratifs du promoteur pour le dépassement de temps considéré",null,null,null,null,{"$f":"SUM('Intervenant 1'!I13,'Intervenant 2'!I13,'Intervenant 3'!I13,'Intervenant 4'!I13,'Intervenant 5'!I13,'Intervenant 6'!I13,'Intervenant 7'!I13,'Intervenant 8'!I13,'Intervenant 9'!I13,'Intervenant 10'!I13,'Intervenant 11'!I13,'Intervenant 12'!I13,'Intervenant 13'!I13,'Intervenant 14'!I13,'Intervenant 15'!I13,'Intervenant 16'!I13,'Intervenant 17'!I13,'Intervenant 18'!I13,'Intervenant 19'!I13,'Intervenant 20'!I13)","v":0}]
[null,"GI-4","Coûts journaliers associés aux frais administratifs du contrat d'architecte pour le dépassement de temps considéré",null,null,null,null,{"$f":"SUM('Intervenant 1'!I14,'Intervenant 2'!I14,'Intervenant 3'!I14,'Intervenant 4'!I14,'Intervenant 5'!I14,'Intervenant 6'!I14,'Intervenant 7'!I14,'Intervenant 8'!I14,'Intervenant 9'!I14,'Intervenant 10'!I14,'Intervenant 11'!I14,'Intervenant 12'!I14,'Intervenant 13'!I14,'Intervenant 14'!I14,'Intervenant 15'!I14,'Intervenant 16'!I14,'Intervenant 17'!I14,'Intervenant 18'!I14,'Intervenant 19'!I14,'Intervenant 20'!I14)","v":0}]
[]
[null,null,null,null,null,null,"TOTAL",{"$f":"SUM(H8:H11)","v":0}]

{"sheet":"COLLABORATION","index":7,"n_rows":41,"n_cols":11,"rows_kept":41,"cut":false,"hidden":false,"merged":[[22,3,24,5],[26,3,28,5],[36,3,38,5],[40,3,42,5]]}
[]
[null,"Collaboration"]
[]
[]
[]
["Modalités de la coordination de la production des modèles"]
[]
[null,null,"Charte ou protocole","Définie ?","Oui",null,null,null,null,"Charte BIM ?","Commentaire"]
[]
[null,null,null,"Auteur (s)"]
[]
[null,null,"Réunions liées au TIM CIM BIM","Type / Description","Participants habituels","Fréquence","Modalités","Comptes-rendus"]
[]
[]
[]
[]
[]
[]
[]
[null,null,"Convention de nommage des modèles","Définie ?","Oui"]
[]
[]
[null,null,"Revue de modèles"]
[]
[]
[]
[null,null,"Intégration des modèles et traitement des conflits"]
[]
[]
[]
["Contractualisation du TIM CIM BIM"]
[]
[null,null,"Acteurs impliqués par contrat","Rôle","Identification","Implication contractuelle"]
[]
[]
[]
[null,null,"Description des supports contractuels"]
[]
[]
[]
[null,null,"Description des liens contractuels"]

{"sheet":"TECHNOLOGIE","index":8,"n_rows":14,"n_cols":10,"rows_kept":14,"cut":false,"hidden":false,"merged":[[15,0,15,1],[15,2,17,9]]}
[]
[null,"Technologie vs. Cas d'usage"]
[]
[]
["Analyse  de la technologie support aux cas d'usage"]
[]
[null,null,"Logiciel de production","Format(s) d'échange utilisé(s)","Plateforme collaborative","Logiciel(s) cible(s)","Logiciel de contrôle de la conformité du (ou des) modèle(s) produit(s)","Classification/nomenclature utilisée dans le cas d'usage","Niveau de développement (LOD)","Niveau technologique des échanges BIM (1-2-3)"]
[null,"Programmer"]
[null,"Concevoir"]
[null,"Executer"]
[null,"Gérer et maintenir"]
[]
[]
["Description de l'environnement technologique de collaboration"]

{"sheet":"Intervenant 1","index":9,"n_rows":65,"n_cols":19,"rows_kept":65,"cut":false,"hidden":false,"merged":[[9,0,9,1],[9,3,9,5],[9,7,9,8],[9,10,9,18],[17,7,17,8],[29,7,29,8]]}
["Intervenant"]
["Rôle"]
["Responsable"]
["Mail de contact"]
[]
[]
[]
[]
[]
["CAS D'USAGES",null,null,"GAINS DIRECTS",null,null,null,"GAINS INDIRECTS",null,null,"ANALYSE QUALITATIVE"]
["CAS D'USAGE","Utilisation","Maturité","Utilisation","CODE-CU","Gain",null,"GI-1",0,null,null,"Accès au marché","Partage d'idée","Communication","Processus de décision","Gestion de l'information","Qualité des résultats produits","Acceptabilité du projet","Image de marque"]
[1,"NON","NC","","P-01",0,null,"GI-2",0,null,"Programmer",0,0,0,0,0,0,0,0]
[2,"NON","NC","","P-02",0,null,"GI-3",0,null,"Concevoir",0,0,0,0,0,0,0,0]
[3,"NON","NC","","P-04",0,null,"GI-4",0,null,"Exécuter",0,0,0,0,0,0,0,0]
[4,"NON","NC","","P-05",0,null,null,null,null,"Gérer et maintenir",0,0,0,0,0,0,0,0]
[5,"NON","NC","","P-06",0,null,"Jour",0]
[6,"NON","NC","","P-07",0]
[7,"NON","NC","","P-08",0,null,"COUTS FIXES"]
[8,"NON","NC","","P-09",0,null,"Matériel",0]
[9,"NON","NC","","P-11",0,null,"Licence",0]
[10,"NON","NC","","P-12",0,null,"Maintenance",0]
[11,"NON","NC","","P-13",0,null,"Formation",0]
[12,"NON","NC","","P-24",0,null,"Espace physique dédié",0]
[13,"NON","NC","","C-04",0,null,"Recrutement spécifique",0]
[14,"NON","NC","","C-05",0,null,"Consultance",0]
[15,"NON","NC","","C-06",0,null,"Données spécifiques",0]
[16,"NON","NC","","C-07",0,null,"Autre",0]
[17,"NON","NC","","C-08",0]
[18,"NON","NC","","C-09",0]
[19,"NON","NC","","C-10",0,null,"QUALITE ARCHI"]
[20,"NON","NC","","C-11",0,null,"Etude urbaine"]
[21,"NON","NC","","C-12",0,null,"Etude historique"]
[22,"NON","NC","","C-13",0,null,"Etude architecturale"]
[23,"NON","NC","","C-14",0,null,"Ensoleillement"]
[24,"NON","NC","","C-15",0,null,"Eolien"]
[null,null,null,"","C-16",0,null,"Acoustique"]
[null,null,null,"","C-17",0,null,"Confort thermique"]
[null,null,null,"","C-16",0,null,"Geosource"]
[null,null,null,"","C-19",0,null,"Mat Nobles"]
[null,null,null,"","C-21",0,null,"Mat locaux"]
[null,null,null,"","C-23",0]
[null,null,null,"","C-24",0]
[null,null,null,"","E-06",0]
[null,null,null,"","E-08",0]
[null,null,null,"","E-09",0]
[null,null,null,"","E-10",0]
[null,null,null,"","E-11",0]
[null,null,null,"","E-12",0]
[null,null,null,"","E-13",0]
[null,null,null,"","E-14",0]
[null,null,null,"","E-15",0]
[null,null,null,"","E-17",0]
[null,null,null,"","E-18",0]
[null,null,null,"","E-19",0]
[null,null,null,"","E-21",0]
[null,null,null,"","E-23",0]
[null,null,null,"","E-24",0]
[null,null,null,"","G-09",0]
[null,null,null,"","G-10",0]
[null,null,null,"","G-12",0]
[null,null,null,"","G-13",0]
[null,null,null,"","G-21",0]
[null,null,null,"","G-22",0]
[null,null,null,"","G-23",0]
[null,null,null,"","G-24",0]

{"sheet":"Intervenant 2","index":10,"n_rows":65,"n_cols":19,"rows_kept":65,"cut":false,"hidden":false,"merged":[[9,0,9,1],[9,3,9,5],[9,7,9,8],[9,10,9,18],[17,7,17,8],[29,7,29,8]]}
["Intervenant"]
["Rôle"]
["Responsable"]
["Mail de contact"]
[]
[]
[]
[]
[]
["CAS D'USAGES",null,null,"GAINS DIRECTS",null,null,null,"GAINS INDIRECTS",null,null,"ANALYSE QUALITATIVE"]
["CAS D'USAGE","Utilisation","Maturité","Utilisation","CODE-CU","Gain",null,"GI-1",0,null,null,"Accès au marché","Partage d'idée","Communication","Processus de décision","Gestion de l'information","Qualité des résultats produits","Acceptabilité du projet","Image de marque"]
[1,"NON","NC","","P-01",0,null,"GI-2",0,null,"Programmer",0,0,0,0,0,0,0,0]
[2,"NON","NC","","P-02",0,null,"GI-3",0,null,"Concevoir",0,0,0,0,0,0,0,0]
[3,"NON","NC","","P-04",0,null,"GI-4",0,null,"Exécuter",0,0,0,0,0,0,0,0]
[4,"NON","NC","","P-05",0,null,null,null,null,"Gérer et maintenir",0,0,0,0,0,0,0,0]
[5,"NON","NC","","P-06",0,null,"Jour",0]
[6,"NON","NC","","P-07",0]
[7,"NON","NC","","P-08",0,null,"COUTS FIXES"]
[8,"NON","NC","","P-09",0,null,"Matériel",0]
[9,"NON","NC","","P-11",0,null,"Licence",0]
[10,"NON","NC","","P-12",0,null,"Maintenance",0]
[11,"NON","NC","","P-13",0,null,"Formation",0]
[12,"NON","NC","","P-24",0,null,"Espace physique dédié",0]
[13,"NON","NC","","C-04",0,null,"Recrutement spécifique",0]
[14,"NON","NC","","C-05",0,null,"Consultance",0]
[15,"NON","NC","","C-06",0,null,"Données spécifiques",0]
[16,"NON","NC","","C-07",0,null,"Autre",0]
[17,"NON","NC","","C-08",0]
[18,"NON","NC","","C-09",0]
[19,"NON","NC","","C-10",0,null,"QUALITE ARCHI"]
[20,"NON","NC","","C-11",0,null,"Etude urbaine",0]
[21,"NON","NC","","C-12",0,null,"Etude historique",0]
[22,"NON","NC","","C-13",0,null,"Etude architecturale",0]
[23,"NON","NC","","C-14",0,null,"Ensoleillement",0]
[24,"NON","NC","","C-15",0,null,"Eolien",0]
[null,null,null,"","C-16",0,null,"Acoustique",0]
[null,null,null,"","C-17",0,null,"Confort thermique",0]
[null,null,null,"","C-16",0,null,"Geosource",0]
[null,null,null,"","C-19",0,null,"Mat Nobles",0]
[null,null,null,"","C-21",0,null,"Mat locaux",0]
[null,null,null,"","C-23",0]
[null,null,null,"","C-24",0]
[null,null,null,"","E-06",0]
[null,null,null,"","E-08",0]
[null,null,null,"","E-09",0]
[null,null,null,"","E-10",0]
[null,null,null,"","E-11",0]
[null,null,null,"","E-12",0]
[null,null,null,"","E-13",0]
[null,null,null,"","E-14",0]
[null,null,null,"","E-15",0]
[null,null,null,"","E-17",0]
[null,null,null,"","E-18",0]
[null,null,null,"","E-19",0]
[null,null,null,"","E-21",0]
[null,null,null,"","E-23",0]
[null,null,null,"","E-24",0]
[null,null,null,"","G-09",0]
[null,null,null,"","G-10",0]
[null,null,null,"","G-12",0]
[null,null,null,"","G-13",0]
[null,null,null,"","G-21",0]
[null,null,null,"","G-22",0]
[null,null,null,"","G-23",0]
[null,null,null,"","G-24",0]

{"sheet":"Intervenant 3","index":11,"n_rows":65,"n_cols":19,"rows_kept":65,"cut":false,"hidden":false,"merged":[[9,0,9,1],[9,3,9,5],[9,7,9,8],[9,10,9,18],[17,7,17,8],[29,7,29,8]]}
["Intervenant"]
["Rôle"]
["Responsable"]
["Mail de contact"]
[]
[]
[]
[]
[]
["CAS D'USAGES",null,null,"GAINS DIRECTS",null,null,null,"GAINS INDIRECTS",null,null,"ANALYSE QUALITATIVE"]
["CAS D'USAGE","Utilisation","Maturité","Utilisation","CODE-CU","Gain",null,"GI-1",0,null,null,"Accès au marché","Partage d'idée","Communication","Processus de décision","Gestion de l'information","Qualité des résultats produits","Acceptabilité du projet","Image de marque"]
[1,"NON","NC","","P-01",0,null,"GI-2",0,null,"Programmer",0,0,0,0,0,0,0,0]
[2,"NON","NC","","P-02",0,null,"GI-3",0,null,"Concevoir",0,0,0,0,0,0,0,0]
[3,"NON","NC","","P-04",0,null,"GI-4",0,null,"Exécuter",0,0,0,0,0,0,0,0]
[4,"NON","NC","","P-05",0,null,null,null,null,"Gérer et maintenir",0,0,0,0,0,0,0,0]
[5,"NON","NC","","P-06",0,null,"Jour",0]
[6,"NON","NC","","P-07",0]
[7,"NON","NC","","P-08",0,null,"COUTS FIXES"]
[8,"NON","NC","","P-09",0,null,"Matériel",0]
[9,"NON","NC","","P-11",0,null,"Licence",0]
[10,"NON","NC","","P-12",0,null,"Maintenance",0]
[11,"NON","NC","","P-13",0,null,"Formation",0]
[12,"NON","NC","","P-24",0,null,"Espace physique dédié",0]
[13,"NON","NC","","C-04",0,null,"Recrutement spécifique",0]
[14,"NON","NC","","C-05",0,null,"Consultance",0]
[15,"NON","NC","","C-06",0,null,"Données spécifiques",0]
[16,"NON","NC","","C-07",0,null,"Autre",0]
[17,"NON","NC","","C-08",0]
[18,"NON","NC","","C-09",0]
[19,"NON","NC","","C-10",0,null,"QUALITE ARCHI"]
[20,"NON","NC","","C-11",0,null,"Etude urbaine",0]
[21,"NON","NC","","C-12",0,null,"Etude historique",0]
[22,"NON","NC","","C-13",0,null,"Etude architecturale",0]
[23,"NON","NC","","C-14",0,null,"Ensoleillement",0]
[24,"NON","NC","","C-15",0,null,"Eolien",0]
[null,null,null,"","C-16",0,null,"Acoustique",0]
[null,null,null,"","C-17",0,null,"Confort thermique",0]
[null,null,null,"","C-16",0,null,"Geosource",0]
[null,null,null,"","C-19",0,null,"Mat Nobles",0]
[null,null,null,"","C-21",0,null,"Mat locaux",0]
[null,null,null,"","C-23",0]
[null,null,null,"","C-24",0]
[null,null,null,"","E-06",0]
[null,null,null,"","E-08",0]
[null,null,null,"","E-09",0]
[null,null,null,"","E-10",0]
[null,null,null,"","E-11",0]
[null,null,null,"","E-12",0]
[null,null,null,"","E-13",0]
[null,null,null,"","E-14",0]
[null,null,null,"","E-15",0]
[null,null,null,"","E-17",0]
[null,null,null,"","E-18",0]
[null,null,null,"","E-19",0]
[null,null,null,"","E-21",0]
[null,null,null,"","E-23",0]
[null,null,null,"","E-24",0]
[null,null,null,"","G-09",0]
[null,null,null,"","G-10",0]
[null,null,null,"","G-12",0]
[null,null,null,"","G-13",0]
[null,null,null,"","G-21",0]
[null,null,null,"","G-22",0]
[null,null,null,"","G-23",0]
[null,null,null,"","G-24",0]

{"sheet":"Intervenant 4","index":12,"n_rows":65,"n_cols":19,"rows_kept":65,"cut":false,"hidden":false,"merged":[[9,0,9,1],[9,3,9,5],[9,7,9,8],[9,10,9,18],[17,7,17,8],[29,7,29,8]]}
["Intervenant"]
["Rôle"]
["Responsable"]
["Mail de contact"]
[]
[]
[]
[]
[]
["CAS D'USAGES",null,null,"GAINS DIRECTS",null,null,null,"GAINS INDIRECTS",null,null,"ANALYSE QUALITATIVE"]
["CAS D'USAGE","Utilisation","Maturité","Utilisation","CODE-CU","Gain",null,"GI-1",0,null,null,"Accès au marché","Partage d'idée","Communication","Processus de décision","Gestion de l'information","Qualité des résultats produits","Acceptabilité du projet","Image de marque"]
[1,"NON","NC","","P-01",0,null,"GI-2",0,null,"Programmer",0,0,0,0,0,0,0,0]
[2,"NON","NC","","P-02",0,null,"GI-3",0,null,"Concevoir",0,0,0,0,0,0,0,0]
[3,"NON","NC","","P-04",0,null,"GI-4",0,null,"Exécuter",0,0,0,0,0,0,0,0]
[4,"NON","NC","","P-05",0,null,null,null,null,"Gérer et maintenir",0,0,0,0,0,0,0,0]
[5,"NON","NC","","P-06",0,null,"Jour",0]
[6,"NON","NC","","P-07",0]
[7,"NON","NC","","P-08",0,null,"COUTS FIXES"]
[8,"NON","NC","","P-09",0,null,"Matériel",0]
[9,"NON","NC","","P-11",0,null,"Licence",0]
[10,"NON","NC","","P-12",0,null,"Maintenance",0]
[11,"NON","NC","","P-13",0,null,"Formation",0]
[12,"NON","NC","","P-24",0,null,"Espace physique dédié",0]
[13,"NON","NC","","C-04",0,null,"Recrutement spécifique",0]
[14,"NON","NC","","C-05",0,null,"Consultance",0]
[15,"NON","NC","","C-06",0,null,"Données spécifiques",0]
[16,"NON","NC","","C-07",0,null,"Autre",0]
[17,"NON","NC","","C-08",0]
[18,"NON","NC","","C-09",0]
[19,"NON","NC","","C-10",0,null,"QUALITE ARCHI"]
[20,"NON","NC","","C-11",0,null,"Etude urbaine",0]
[21,"NON","NC","","C-12",0,null,"Etude historique",0]
[22,"NON","NC","","C-13",0,null,"Etude architecturale",0]
[23,"NON","NC","","C-14",0,null,"Ensoleillement",0]
[24,"NON","NC","","C-15",0,null,"Eolien",0]
[null,null,null,"","C-16",0,null,"Acoustique",0]
[null,null,null,"","C-17",0,null,"Confort thermique",0]
[null,null,null,"","C-16",0,null,"Geosource",0]
[null,null,null,"","C-19",0,null,"Mat Nobles",0]
[null,null,null,"","C-21",0,null,"Mat locaux",0]
[null,null,null,"","C-23",0]
[null,null,null,"","C-24",0]
[null,null,null,"","E-06",0]
[null,null,null,"","E-08",0]
[null,null,null,"","E-09",0]
[null,null,null,"","E-10",0]
[null,null,null,"","E-11",0]
[null,null,null,"","E-12",0]
[null,null,null,"","E-13",0]
[null,null,null,"","E-14",0]
[null,null,null,"","E-15",0]
[null,null,null,"","E-17",0]
[null,null,null,"","E-18",0]
[null,null,null,"","E-19",0]
[null,null,null,"","E-21",0]
[null,null,null,"","E-23",0]
[null,null,null,"","E-24",0]
[null,null,null,"","G-09",0]
[null,null,null,"","G-10",0]
[null,null,null,"","G-12",0]
[null,null,null,"","G-13",0]
[null,null,null,"","G-21",0]
[null,null,null,"","G-22",0]
[null,null,null,"","G-23",0]
[null,null,null,"","G-24",0]

{"sheet":"Intervenant 5","index":13,"n_rows":65,"n_cols":19,"rows_kept":65,"cut":false,"hidden":false,"merged":[[9,0,9,1],[9,3,9,5],[9,7,9,8],[9,10,9,18],[17,7,17,8],[29,7,29,8]]}
["Intervenant"]
["Rôle"]
["Responsable"]
["Mail de contact"]
[]
[]
[]
[]
[]
["CAS D'USAGES",null,null,"GAINS DIRECTS",null,null,null,"GAINS INDIRECTS",null,null,"ANALYSE QUALITATIVE"]
["CAS D'USAGE","Utilisation","Maturité","Utilisation","CODE-CU","Gain",null,"GI-1",0,null,null,"Accès au marché","Partage d'idée","Communication","Processus de décision","Gestion de l'information","Qualité des résultats produits","Acceptabilité du projet","Image de marque"]
[1,"NON","NC","","P-01",0,null,"GI-2",0,null,"Programmer",0,0,0,0,0,0,0,0]
[2,"NON","NC","","P-02",0,null,"GI-3",0,null,"Concevoir",0,0,0,0,0,0,0,0]
[3,"NON","NC","","P-04",0,null,"GI-4",0,null,"Exécuter",0,0,0,0,0,0,0,0]
[4,"NON","NC","","P-05",0,null,null,null,null,"Gérer et maintenir",0,0,0,0,0,0,0,0]
[5,"NON","NC","","P-06",0,null,"Jour",0]
[6,"NON","NC","","P-07",0]
[7,"NON","NC","","P-08",0,null,"COUTS FIXES"]
[8,"NON","NC","","P-09",0,null,"Matériel",0]
[9,"NON","NC","","P-11",0,null,"Licence",0]
[10,"NON","NC","","P-12",0,null,"Maintenance",0]
[11,"NON","NC","","P-13",0,null,"Formation",0]
[12,"NON","NC","","P-24",0,null,"Espace physique dédié",0]
[13,"NON","NC","","C-04",0,null,"Recrutement spécifique",0]
[14,"NON","NC","","C-05",0,null,"Consultance",0]
[15,"NON","NC","","C-06",0,null,"Données spécifiques",0]
[16,"NON","NC","","C-07",0,null,"Autre",0]
[17,"NON","NC","","C-08",0]
[18,"NON","NC","","C-09",0]
[19,"NON","NC","","C-10",0,null,"QUALITE ARCHI"]
[20,"NON","NC","","C-11",0,null,"Etude urbaine",0]
[21,"NON","NC","","C-12",0,null,"Etude historique",0]
[22,"NON","NC","","C-13",0,null,"Etude architecturale",0]
[23,"NON","NC","","C-14",0,null,"Ensoleillement",0]
[24,"NON","NC","","C-15",0,null,"Eolien",0]
[null,null,null,"","C-16",0,null,"Acoustique",0]
[null,null,null,"","C-17",0,null,"Confort thermique",0]
[null,null,null,"","C-16",0,null,"Geosource",0]
[null,null,null,"","C-19",0,null,"Mat Nobles",0]
[null,null,null,"","C-21",0,null,"Mat locaux",0]
[null,null,null,"","C-23",0]
[null,null,null,"","C-24",0]
[null,null,null,"","E-06",0]
[null,null,null,"","E-08",0]
[null,null,null,"","E-09",0]
[null,null,null,"","E-10",0]
[null,null,null,"","E-11",0]
[null,null,null,"","E-12",0]
[null,null,null,"","E-13",0]
[null,null,null,"","E-14",0]
[null,null,null,"","E-15",0]
[null,null,null,"","E-17",0]
[null,null,null,"","E-18",0]
[null,null,null,"","E-19",0]
[null,null,null,"","E-21",0]
[null,null,null,"","E-23",0]
[null,null,null,"","E-24",0]
[null,null,null,"","G-09",0]
[null,null,null,"","G-10",0]
[null,null,null,"","G-12",0]
[null,null,null,"","G-13",0]
[null,null,null,"","G-21",0]
[null,null,null,"","G-22",0]
[null,null,null,"","G-23",0]
[null,null,null,"","G-24",0]

{"sheet":"Intervenant 6","index":14,"n_rows":65,"n_cols":19,"rows_kept":65,"cut":false,"hidden":false,"merged":[[9,0,9,1],[9,3,9,5],[9,7,9,8],[9,10,9,18],[17,7,17,8],[29,7,29,8]]}
["Intervenant"]
["Rôle"]
["Responsable"]
["Mail de contact"]
[]
[]
[]
[]
[]
["CAS D'USAGES",null,null,"GAINS DIRECTS",null,null,null,"GAINS INDIRECTS",null,null,"ANALYSE QUALITATIVE"]
["CAS D'USAGE","Utilisation","Maturité","Utilisation","CODE-CU","Gain",null,"GI-1",0,null,null,"Accès au marché","Partage d'idée","Communication","Processus de décision","Gestion de l'information","Qualité des résultats produits","Acceptabilité du projet","Image de marque"]
[1,"NON","NC","","P-01",0,null,"GI-2",0,null,"Programmer",0,0,0,0,0,0,0,0]
[2,"NON","NC","","P-02",0,null,"GI-3",0,null,"Concevoir",0,0,0,0,0,0,0,0]
[3,"NON","NC","","P-04",0,null,"GI-4",0,null,"Exécuter",0,0,0,0,0,0,0,0]
[4,"NON","NC","","P-05",0,null,null,null,null,"Gérer et maintenir",0,0,0,0,0,0,0,0]
[5,"NON","NC","","P-06",0,null,"Jour",0]
[6,"NON","NC","","P-07",0]
[7,"NON","NC","","P-08",0,null,"COUTS FIXES"]
[8,"NON","NC","","P-09",0,null,"Matériel",0]
[9,"NON","NC","","P-11",0,null,"Licence",0]
[10,"NON","NC","","P-12",0,null,"Maintenance",0]
[11,"NON","NC","","P-13",0,null,"Formation",0]
[12,"NON","NC","","P-24",0,null,"Espace physique dédié",0]
[13,"NON","NC","","C-04",0,null,"Recrutement spécifique",0]
[14,"NON","NC","","C-05",0,null,"Consultance",0]
[15,"NON","NC","","C-06",0,null,"Données spécifiques",0]
[16,"NON","NC","","C-07",0,null,"Autre",0]
[17,"NON","NC","","C-08",0]
[18,"NON","NC","","C-09",0]
[19,"NON","NC","","C-10",0,null,"QUALITE ARCHI"]
[20,"NON","NC","","C-11",0,null,"Etude urbaine",0]
[21,"NON","NC","","C-12",0,null,"Etude historique",0]
[22,"NON","NC","","C-13",0,null,"Etude architecturale",0]
[23,"NON","NC","","C-14",0,null,"Ensoleillement",0]
[24,"NON","NC","","C-15",0,null,"Eolien",0]
[null,null,null,"","C-16",0,null,"Acoustique",0]
[null,null,null,"","C-17",0,null,"Confort thermique",0]
[null,null,null,"","C-16",0,null,"Geosource",0]
[null,null,null,"","C-19",0,null,"Mat Nobles",0]
[null,null,null,"","C-21",0,null,"Mat locaux",0]
[null,null,null,"","C-23",0]
[null,null,null,"","C-24",0]
[null,null,null,"","E-06",0]
[null,null,null,"","E-08",0]
[null,null,null,"","E-09",0]
[null,null,null,"","E-10",0]
[null,null,null,"","E-11",0]
[null,null,null,"","E-12",0]
[null,null,null,"","E-13",0]
[null,null,null,"","E-14",0]
[null,null,null,"","E-15",0]
[null,null,null,"","E-17",0]
[null,null,null,"","E-18",0]
[null,null,null,"","E-19",0]
[null,null,null,"","E-21",0]
[null,null,null,"","E-23",0]
[null,null,null,"","E-24",0]
[null,null,null,"","G-09",0]
[null,null,null,"","G-10",0]
[null,null,null,"","G-12",0]
[null,null,null,"","G-13",0]
[null,null,null,"","G-21",0]
[null,null,null,"","G-22",0]
[null,null,null,"","G-23",0]
[null,null,null,"","G-24",0]

{"sheet":"Intervenant 7","index":15,"n_rows":65,"n_cols":19,"rows_kept":65,"cut":false,"hidden":false,"merged":[[9,0,9,1],[9,3,9,5],[9,7,9,8],[9,10,9,18],[17,7,17,8],[29,7,29,8]]}
["Intervenant"]
["Rôle"]
["Responsable"]
["Mail de contact"]
[]
[]
[]
[]
[]
["CAS D'USAGES",null,null,"GAINS DIRECTS",null,null,null,"GAINS INDIRECTS",null,null,"ANALYSE QUALITATIVE"]
["CAS D'USAGE","Utilisation","Maturité","Utilisation","CODE-CU","Gain",null,"GI-1",0,null,null,"Accès au marché","Partage d'idée","Communication","Processus de décision","Gestion de l'information","Qualité des résultats produits","Acceptabilité du projet","Image de marque"]
[1,"NON","NC","","P-01",0,null,"GI-2",0,null,"Programmer",0,0,0,0,0,0,0,0]
[2,"NON","NC","","P-02",0,null,"GI-3",0,null,"Concevoir",0,0,0,0,0,0,0,0]
[3,"NON","NC","","P-04",0,null,"GI-4",0,null,"Exécuter",0,0,0,0,0,0,0,0]
[4,"NON","NC","","P-05",0,null,null,null,null,"Gérer et maintenir",0,0,0,0,0,0,0,0]
[5,"NON","NC","","P-06",0,null,"Jour",0]
[6,"NON","NC","","P-07",0]
[7,"NON","NC","","P-08",0,null,"COUTS FIXES"]
[8,"NON","NC","","P-09",0,null,"Matériel",0]
[9,"NON","NC","","P-11",0,null,"Licence",0]
[10,"NON","NC","","P-12",0,null,"Maintenance",0]
[11,"NON","NC","","P-13",0,null,"Formation",0]
[12,"NON","NC","","P-24",0,null,"Espace physique dédié",0]
[13,"NON","NC","","C-04",0,null,"Recrutement spécifique",0]
[14,"NON","NC","","C-05",0,null,"Consultance",0]
[15,"NON","NC","","C-06",0,null,"Données spécifiques",0]
[16,"NON","NC","","C-07",0,null,"Autre",0]
[17,"NON","NC","","C-08",0]
[18,"NON","NC","","C-09",0]
[19,"NON","NC","","C-10",0,null,"QUALITE ARCHI"]
[20,"NON","NC","","C-11",0,null,"Etude urbaine",0]
[21,"NON","NC","","C-12",0,null,"Etude historique",0]
[22,"NON","NC","","C-13",0,null,"Etude architecturale",0]
[23,"NON","NC","","C-14",0,null,"Ensoleillement",0]
[24,"NON","NC","","C-15",0,null,"Eolien",0]
[null,null,null,"","C-16",0,null,"Acoustique",0]
[null,null,null,"","C-17",0,null,"Confort thermique",0]
[null,null,null,"","C-16",0,null,"Geosource",0]
[null,null,null,"","C-19",0,null,"Mat Nobles",0]
[null,null,null,"","C-21",0,null,"Mat locaux",0]
[null,null,null,"","C-23",0]
[null,null,null,"","C-24",0]
[null,null,null,"","E-06",0]
[null,null,null,"","E-08",0]
[null,null,null,"","E-09",0]
[null,null,null,"","E-10",0]
[null,null,null,"","E-11",0]
[null,null,null,"","E-12",0]
[null,null,null,"","E-13",0]
[null,null,null,"","E-14",0]
[null,null,null,"","E-15",0]
[null,null,null,"","E-17",0]
[null,null,null,"","E-18",0]
[null,null,null,"","E-19",0]
[null,null,null,"","E-21",0]
[null,null,null,"","E-23",0]
[null,null,null,"","E-24",0]
[null,null,null,"","G-09",0]
[null,null,null,"","G-10",0]
[null,null,null,"","G-12",0]
[null,null,null,"","G-13",0]
[null,null,null,"","G-21",0]
[null,null,null,"","G-22",0]
[null,null,null,"","G-23",0]
[null,null,null,"","G-24",0]

{"sheet":"Intervenant 8","index":16,"n_rows":65,"n_cols":19,"rows_kept":65,"cut":false,"hidden":false,"merged":[[9,0,9,1],[9,3,9,5],[9,7,9,8],[9,10,9,18],[17,7,17,8],[29,7,29,8]]}
["Intervenant"]
["Rôle"]
["Responsable"]
["Mail de contact"]
[]
[]
[]
[]
[]
["CAS D'USAGES",null,null,"GAINS DIRECTS",null,null,null,"GAINS INDIRECTS",null,null,"ANALYSE QUALITATIVE"]
["CAS D'USAGE","Utilisation","Maturité","Utilisation","CODE-CU","Gain",null,"GI-1",0,null,null,"Accès au marché","Partage d'idée","Communication","Processus de décision","Gestion de l'information","Qualité des résultats produits","Acceptabilité du projet","Image de marque"]
[1,"NON","NC","","P-01",0,null,"GI-2",0,null,"Programmer",0,0,0,0,0,0,0,0]
[2,"NON","NC","","P-02",0,null,"GI-3",0,null,"Concevoir",0,0,0,0,0,0,0,0]
[3,"NON","NC","","P-04",0,null,"GI-4",0,null,"Exécuter",0,0,0,0,0,0,0,0]
[4,"NON","NC","","P-05",0,null,null,null,null,"Gérer et maintenir",0,0,0,0,0,0,0,0]
[5,"NON","NC","","P-06",0,null,"Jour",0]
[6,"NON","NC","","P-07",0]
[7,"NON","NC","","P-08",0,null,"COUTS FIXES"]
[8,"NON","NC","","P-09",0,null,"Matériel",0]
[9,"NON","NC","","P-11",0,null,"Licence",0]
[10,"NON","NC","","P-12",0,null,"Maintenance",0]
[11,"NON","NC","","P-13",0,null,"Formation",0]
[12,"NON","NC","","P-24",0,null,"Espace physique dédié",0]
[13,"NON","NC","","C-04",0,null,"Recrutement spécifique",0]
[14,"NON","NC","","C-05",0,null,"Consultance",0]
[15,"NON","NC","","C-06",0,null,"Données spécifiques",0]
[16,"NON","NC","","C-07",0,null,"Autre",0]
[17,"NON","NC","","C-08",0]
[18,"NON","NC","","C-09",0]
[19,"NON","NC","","C-10",0,null,"QUALITE ARCHI"]
[20,"NON","NC","","C-11",0,null,"Etude urbaine",0]
[21,"NON","NC","","C-12",0,null,"Etude historique",0]
[22,"NON","NC","","C-13",0,null,"Etude architecturale",0]
[23,"NON","NC","","C-14",0,null,"Ensoleillement",0]
[24,"NON","NC","","C-15",0,null,"Eolien",0]
[null,null,null,"","C-16",0,null,"Acoustique",0]
[null,null,null,"","C-17",0,null,"Confort thermique",0]
[null,null,null,"","C-16",0,null,"Geosource",0]
[null,null,null,"","C-19",0,null,"Mat Nobles",0]
[null,null,null,"","C-21",0,null,"Mat locaux",0]
[null,null,null,"","C-23",0]
[null,null,null,"","C-24",0]
[null,null,null,"","E-06",0]
[null,null,null,"","E-08",0]
[null,null,null,"","E-09",0]
[null,null,null,"","E-10",0]
[null,null,null,"","E-11",0]
[null,null,null,"","E-12",0]
[null,null,null,"","E-13",0]
[null,null,null,"","E-14",0]
[null,null,null,"","E-15",0]
[null,null,null,"","E-17",0]
[null,null,null,"","E-18",0]
[null,null,null,"","E-19",0]
[null,null,null,"","E-21",0]
[null,null,null,"","E-23",0]
[null,null,null,"","E-24",0]
[null,null,null,"","G-09",0]
[null,null,null,"","G-10",0]
[null,null,null,"","G-12",0]
[null,null,null,"","G-13",0]
[null,null,null,"","G-21",0]
[null,null,null,"","G-22",0]
[null,null,null,"","G-23",0]
[null,null,null,"","G-24",0]

{"sheet":"Intervenant 9","index":17,"n_rows":65,"n_cols":19,"rows_kept":65,"cut":false,"hidden":false,"merged":[[9,0,9,1],[9,3,9,5],[9,7,9,8],[9,10,9,18],[17,7,17,8],[29,7,29,8]]}
["Intervenant"]
["Rôle"]
["Responsable"]
["Mail de contact"]
[]
[]
[]
[]
[]
["CAS D'USAGES",null,null,"GAINS DIRECTS",null,null,null,"GAINS INDIRECTS",null,null,"ANALYSE QUALITATIVE"]
["CAS D'USAGE","Utilisation","Maturité","Utilisation","CODE-CU","Gain",null,"GI-1",0,null,null,"Accès au marché","Partage d'idée","Communication","Processus de décision","Gestion de l'information","Qualité des résultats produits","Acceptabilité du projet","Image de marque"]
[1,"NON","NC","","P-01",0,null,"GI-2",0,null,"Programmer",0,0,0,0,0,0,0,0]
[2,"NON","NC","","P-02",0,null,"GI-3",0,null,"Concevoir",0,0,0,0,0,0,0,0]
[3,"NON","NC","","P-04",0,null,"GI-4",0,null,"Exécuter",0,0,0,0,0,0,0,0]
[4,"NON","NC","","P-05",0,null,null,null,null,"Gérer et maintenir",0,0,0,0,0,0,0,0]
[5,"NON","NC","","P-06",0,null,"Jour",0]
[6,"NON","NC","","P-07",0]
[7,"NON","NC","","P-08",0,null,"COUTS FIXES"]
[8,"NON","NC","","P-09",0,null,"Matériel",0]
[9,"NON","NC","","P-11",0,null,"Licence",0]
[10,"NON","NC","","P-12",0,null,"Maintenance",0]
[11,"NON","NC","","P-13",0,null,"Formation",0]
[12,"NON","NC","","P-24",0,null,"Espace physique dédié",0]
[13,"NON","NC","","C-04",0,null,"Recrutement spécifique",0]
[14,"NON","NC","","C-05",0,null,"Consultance",0]
[15,"NON","NC","","C-06",0,null,"Données spécifiques",0]
[16,"NON","NC","","C-07",0,null,"Autre",0]
[17,"NON","NC","","C-08",0]
[18,"NON","NC","","C-09",0]
[19,"NON","NC","","C-10",0,null,"QUALITE ARCHI"]
[20,"NON","NC","","C-11",0,null,"Etude urbaine",0]
[21,"NON","NC","","C-12",0,null,"Etude historique",0]
[22,"NON","NC","","C-13",0,null,"Etude architecturale",0]
[23,"NON","NC","","C-14",0,null,"Ensoleillement",0]
[24,"NON","NC","","C-15",0,null,"Eolien",0]
[null,null,null,"","C-16",0,null,"Acoustique",0]
[null,null,null,"","C-17",0,null,"Confort thermique",0]
[null,null,null,"","C-16",0,null,"Geosource",0]
[null,null,null,"","C-19",0,null,"Mat Nobles",0]
[null,null,null,"","C-21",0,null,"Mat locaux",0]
[null,null,null,"","C-23",0]
[null,null,null,"","C-24",0]
[null,null,null,"","E-06",0]
[null,null,null,"","E-08",0]
[null,null,null,"","E-09",0]
[null,null,null,"","E-10",0]
[null,null,null,"","E-11",0]
[null,null,null,"","E-12",0]
[null,null,null,"","E-13",0]
[null,null,null,"","E-14",0]
[null,null,null,"","E-15",0]
[null,null,null,"","E-17",0]
[null,null,null,"","E-18",0]
[null,null,null,"","E-19",0]
[null,null,null,"","E-21",0]
[null,null,null,"","E-23",0]
[null,null,null,"","E-24",0]
[null,null,null,"","G-09",0]
[null,null,null,"","G-10",0]
[null,null,null,"","G-12",0]
[null,null,null,"","G-13",0]
[null,null,null,"","G-21",0]
[null,null,null,"","G-22",0]
[null,null,null,"","G-23",0]
[null,null,null,"","G-24",0]

{"sheet":"Intervenant 10","index":18,"n_rows":65,"n_cols":19,"rows_kept":65,"cut":false,"hidden":false,"merged":[[9,0,9,1],[9,3,9,5],[9,7,9,8],[9,10,9,18],[17,7,17,8],[29,7,29,8]]}
["Intervenant"]
["Rôle"]
["Responsable"]
["Mail de contact"]
[]
[]
[]
[]
[]
["CAS D'USAGES",null,null,"GAINS DIRECTS",null,null,null,"GAINS INDIRECTS",null,null,"ANALYSE QUALITATIVE"]
["CAS D'USAGE","Utilisation","Maturité","Utilisation","CODE-CU","Gain",null,"GI-1",0,null,null,"Accès au marché","Partage d'idée","Communication","Processus de décision","Gestion de l'information","Qualité des résultats produits","Acceptabilité du projet","Image de marque"]
[1,"NON","NC","","P-01",0,null,"GI-2",0,null,"Programmer",0,0,0,0,0,0,0,0]
[2,"NON","NC","","P-02",0,null,"GI-3",0,null,"Concevoir",0,0,0,0,0,0,0,0]
[3,"NON","NC","","P-04",0,null,"GI-4",0,null,"Exécuter",0,0,0,0,0,0,0,0]
[4,"NON","NC","","P-05",0,null,null,null,null,"Gérer et maintenir",0,0,0,0,0,0,0,0]
[5,"NON","NC","","P-06",0,null,"Jour",0]
[6,"NON","NC","","P-07",0]
[7,"NON","NC","","P-08",0,null,"COUTS FIXES"]
[8,"NON","NC","","P-09",0,null,"Matériel",0]
[9,"NON","NC","","P-11",0,null,"Licence",0]
[10,"NON","NC","","P-12",0,null,"Maintenance",0]
[11,"NON","NC","","P-13",0,null,"Formation",0]
[12,"NON","NC","","P-24",0,null,"Espace physique dédié",0]
[13,"NON","NC","","C-04",0,null,"Recrutement spécifique",0]
[14,"NON","NC","","C-05",0,null,"Consultance",0]
[15,"NON","NC","","C-06",0,null,"Données spécifiques",0]
[16,"NON","NC","","C-07",0,null,"Autre",0]
[17,"NON","NC","","C-08",0]
[18,"NON","NC","","C-09",0]
[19,"NON","NC","","C-10",0,null,"QUALITE ARCHI"]
[20,"NON","NC","","C-11",0,null,"Etude urbaine",0]
[21,"NON","NC","","C-12",0,null,"Etude historique",0]
[22,"NON","NC","","C-13",0,null,"Etude architecturale",0]
[23,"NON","NC","","C-14",0,null,"Ensoleillement",0]
[24,"NON","NC","","C-15",0,null,"Eolien",0]
[null,null,null,"","C-16",0,null,"Acoustique",0]
[null,null,null,"","C-17",0,null,"Confort thermique",0]
[null,null,null,"","C-16",0,null,"Geosource",0]
[null,null,null,"","C-19",0,null,"Mat Nobles",0]
[null,null,null,"","C-21",0,null,"Mat locaux",0]
[null,null,null,"","C-23",0]
[null,null,null,"","C-24",0]
[null,null,null,"","E-06",0]
[null,null,null,"","E-08",0]
[null,null,null,"","E-09",0]
[null,null,null,"","E-10",0]
[null,null,null,"","E-11",0]
[null,null,null,"","E-12",0]
[null,null,null,"","E-13",0]
[null,null,null,"","E-14",0]
[null,null,null,"","E-15",0]
[null,null,null,"","E-17",0]
[null,null,null,"","E-18",0]
[null,null,null,"","E-19",0]
[null,null,null,"","E-21",0]
[null,null,null,"","E-23",0]
[null,null,null,"","E-24",0]
[null,null,null,"","G-09",0]
[null,null,null,"","G-10",0]
[null,null,null,"","G-12",0]
[null,null,null,"","G-13",0]
[null,null,null,"","G-21",0]
[null,null,null,"","G-22",0]
[null,null,null,"","G-23",0]
[null,null,null,"","G-24",0]

{"sheet":"Intervenant 11","index":19,"n_rows":65,"n_cols":19,"rows_kept":65,"cut":false,"hidden":false,"merged":[[9,0,9,1],[9,3,9,5],[9,7,9,8],[9,10,9,18],[17,7,17,8],[29,7,29,8]]}
["Intervenant"]
["Rôle"]
["Responsable"]
["Mail de contact"]
[]
[]
[]
[]
[]
["CAS D'USAGES",null,null,"GAINS DIRECTS",null,null,null,"GAINS INDIRECTS",null,null,"ANALYSE QUALITATIVE"]
["CAS D'USAGE","Utilisation","Maturité","Utilisation","CODE-CU","Gain",null,"GI-1",0,null,null,"Accès au marché","Partage d'idée","Communication","Processus de décision","Gestion de l'information","Qualité des résultats produits","Acceptabilité du projet","Image de marque"]
[1,"NON","NC","","P-01",0,null,"GI-2",0,null,"Programmer",0,0,0,0,0,0,0,0]
[2,"NON","NC","","P-02",0,null,"GI-3",0,null,"Concevoir",0,0,0,0,0,0,0,0]
[3,"NON","NC","","P-04",0,null,"GI-4",0,null,"Exécuter",0,0,0,0,0,0,0,0]
[4,"NON","NC","","P-05",0,null,null,null,null,"Gérer et maintenir",0,0,0,0,0,0,0,0]
[5,"NON","NC","","P-06",0,null,"Jour",0]
[6,"NON","NC","","P-07",0]
[7,"NON","NC","","P-08",0,null,"COUTS FIXES"]
[8,"NON","NC","","P-09",0,null,"Matériel",0]
[9,"NON","NC","","P-11",0,null,"Licence",0]
[10,"NON","NC","","P-12",0,null,"Maintenance",0]
[11,"NON","NC","","P-13",0,null,"Formation",0]
[12,"NON","NC","","P-24",0,null,"Espace physique dédié",0]
[13,"NON","NC","","C-04",0,null,"Recrutement spécifique",0]
[14,"NON","NC","","C-05",0,null,"Consultance",0]
[15,"NON","NC","","C-06",0,null,"Données spécifiques",0]
[16,"NON","NC","","C-07",0,null,"Autre",0]
[17,"NON","NC","","C-08",0]
[18,"NON","NC","","C-09",0]
[19,"NON","NC","","C-10",0,null,"QUALITE ARCHI"]
[20,"NON","NC","","C-11",0,null,"Etude urbaine",0]
[21,"NON","NC","","C-12",0,null,"Etude historique",0]
[22,"NON","NC","","C-13",0,null,"Etude architecturale",0]
[23,"NON","NC","","C-14",0,null,"Ensoleillement",0]
[24,"NON","NC","","C-15",0,null,"Eolien",0]
[null,null,null,"","C-16",0,null,"Acoustique",0]
[null,null,null,"","C-17",0,null,"Confort thermique",0]
[null,null,null,"","C-16",0,null,"Geosource",0]
[null,null,null,"","C-19",0,null,"Mat Nobles",0]
[null,null,null,"","C-21",0,null,"Mat locaux",0]
[null,null,null,"","C-23",0]
[null,null,null,"","C-24",0]
[null,null,null,"","E-06",0]
[null,null,null,"","E-08",0]
[null,null,null,"","E-09",0]
[null,null,null,"","E-10",0]
[null,null,null,"","E-11",0]
[null,null,null,"","E-12",0]
[null,null,null,"","E-13",0]
[null,null,null,"","E-14",0]
[null,null,null,"","E-15",0]
[null,null,null,"","E-17",0]
[null,null,null,"","E-18",0]
[null,null,null,"","E-19",0]
[null,null,null,"","E-21",0]
[null,null,null,"","E-23",0]
[null,null,null,"","E-24",0]
[null,null,null,"","G-09",0]
[null,null,null,"","G-10",0]
[null,null,null,"","G-12",0]
[null,null,null,"","G-13",0]
[null,null,null,"","G-21",0]
[null,null,null,"","G-22",0]
[null,null,null,"","G-23",0]
[null,null,null,"","G-24",0]

{"sheet":"Intervenant 12","index":20,"n_rows":65,"n_cols":19,"rows_kept":65,"cut":false,"hidden":false,"merged":[[9,0,9,1],[9,3,9,5],[9,7,9,8],[9,10,9,18],[17,7,17,8],[29,7,29,8]]}
["Intervenant"]
["Rôle"]
["Responsable"]
["Mail de contact"]
[]
[]
[]
[]
[]
["CAS D'USAGES",null,null,"GAINS DIRECTS",null,null,null,"GAINS INDIRECTS",null,null,"ANALYSE QUALITATIVE"]
["CAS D'USAGE","Utilisation","Maturité","Utilisation","CODE-CU","Gain",null,"GI-1",0,null,null,"Accès au marché","Partage d'idée","Communication","Processus de décision","Gestion de l'information","Qualité des résultats produits","Acceptabilité du projet","Image de marque"]
[1,"NON","NC","","P-01",0,null,"GI-2",0,null,"Programmer",0,0,0,0,0,0,0,0]
[2,"NON","NC","","P-02",0,null,"GI-3",0,null,"Concevoir",0,0,0,0,0,0,0,0]
[3,"NON","NC","","P-04",0,null,"GI-4",0,null,"Exécuter",0,0,0,0,0,0,0,0]
[4,"NON","NC","","P-05",0,null,null,null,null,"Gérer et maintenir",0,0,0,0,0,0,0,0]
[5,"NON","NC","","P-06",0,null,"Jour",0]
[6,"NON","NC","","P-07",0]
[7,"NON","NC","","P-08",0,null,"COUTS FIXES"]
[8,"NON","NC","","P-09",0,null,"Matériel",0]
[9,"NON","NC","","P-11",0,null,"Licence",0]
[10,"NON","NC","","P-12",0,null,"Maintenance",0]
[11,"NON","NC","","P-13",0,null,"Formation",0]
[12,"NON","NC","","P-24",0,null,"Espace physique dédié",0]
[13,"NON","NC","","C-04",0,null,"Recrutement spécifique",0]
[14,"NON","NC","","C-05",0,null,"Consultance",0]
[15,"NON","NC","","C-06",0,null,"Données spécifiques",0]
[16,"NON","NC","","C-07",0,null,"Autre",0]
[17,"NON","NC","","C-08",0]
[18,"NON","NC","","C-09",0]
[19,"NON","NC","","C-10",0,null,"QUALITE ARCHI"]
[20,"NON","NC","","C-11",0,null,"Etude urbaine",0]
[21,"NON","NC","","C-12",0,null,"Etude historique",0]
[22,"NON","NC","","C-13",0,null,"Etude architecturale",0]
[23,"NON","NC","","C-14",0,null,"Ensoleillement",0]
[24,"NON","NC","","C-15",0,null,"Eolien",0]
[null,null,null,"","C-16",0,null,"Acoustique",0]
[null,null,null,"","C-17",0,null,"Confort thermique",0]
[null,null,null,"","C-16",0,null,"Geosource",0]
[null,null,null,"","C-19",0,null,"Mat Nobles",0]
[null,null,null,"","C-21",0,null,"Mat locaux",0]
[null,null,null,"","C-23",0]
[null,null,null,"","C-24",0]
[null,null,null,"","E-06",0]
[null,null,null,"","E-08",0]
[null,null,null,"","E-09",0]
[null,null,null,"","E-10",0]
[null,null,null,"","E-11",0]
[null,null,null,"","E-12",0]
[null,null,null,"","E-13",0]
[null,null,null,"","E-14",0]
[null,null,null,"","E-15",0]
[null,null,null,"","E-17",0]
[null,null,null,"","E-18",0]
[null,null,null,"","E-19",0]
[null,null,null,"","E-21",0]
[null,null,null,"","E-23",0]
[null,null,null,"","E-24",0]
[null,null,null,"","G-09",0]
[null,null,null,"","G-10",0]
[null,null,null,"","G-12",0]
[null,null,null,"","G-13",0]
[null,null,null,"","G-21",0]
[null,null,null,"","G-22",0]
[null,null,null,"","G-23",0]
[null,null,null,"","G-24",0]

{"sheet":"Intervenant 13","index":21,"n_rows":65,"n_cols":19,"rows_kept":65,"cut":false,"hidden":false,"merged":[[9,0,9,1],[9,3,9,5],[9,7,9,8],[9,10,9,18],[17,7,17,8],[29,7,29,8]]}
["Intervenant"]
["Rôle"]
["Responsable"]
["Mail de contact"]
[]
[]
[]
[]
[]
["CAS D'USAGES",null,null,"GAINS DIRECTS",null,null,null,"GAINS INDIRECTS",null,null,"ANALYSE QUALITATIVE"]
["CAS D'USAGE","Utilisation","Maturité","Utilisation","CODE-CU","Gain",null,"GI-1",0,null,null,"Accès au marché","Partage d'idée","Communication","Processus de décision","Gestion de l'information","Qualité des résultats produits","Acceptabilité du projet","Image de marque"]
[1,"NON","NC","","P-01",0,null,"GI-2",0,null,"Programmer",0,0,0,0,0,0,0,0]
[2,"NON","NC","","P-02",0,null,"GI-3",0,null,"Concevoir",0,0,0,0,0,0,0,0]
[3,"NON","NC","","P-04",0,null,"GI-4",0,null,"Exécuter",0,0,0,0,0,0,0,0]
[4,"NON","NC","","P-05",0,null,null,null,null,"Gérer et maintenir",0,0,0,0,0,0,0,0]
[5,"NON","NC","","P-06",0,null,"Jour",0]
[6,"NON","NC","","P-07",0]
[7,"NON","NC","","P-08",0,null,"COUTS FIXES"]
[8,"NON","NC","","P-09",0,null,"Matériel",0]
[9,"NON","NC","","P-11",0,null,"Licence",0]
[10,"NON","NC","","P-12",0,null,"Maintenance",0]
[11,"NON","NC","","P-13",0,null,"Formation",0]
[12,"NON","NC","","P-24",0,null,"Espace physique dédié",0]
[13,"NON","NC","","C-04",0,null,"Recrutement spécifique",0]
[14,"NON","NC","","C-05",0,null,"Consultance",0]
[15,"NON","NC","","C-06",0,null,"Données spécifiques",0]
[16,"NON","NC","","C-07",0,null,"Autre",0]
[17,"NON","NC","","C-08",0]
[18,"NON","NC","","C-09",0]
[19,"NON","NC","","C-10",0,null,"QUALITE ARCHI"]
[20,"NON","NC","","C-11",0,null,"Etude urbaine",0]
[21,"NON","NC","","C-12",0,null,"Etude historique",0]
[22,"NON","NC","","C-13",0,null,"Etude architecturale",0]
[23,"NON","NC","","C-14",0,null,"Ensoleillement",0]
[24,"NON","NC","","C-15",0,null,"Eolien",0]
[null,null,null,"","C-16",0,null,"Acoustique",0]
[null,null,null,"","C-17",0,null,"Confort thermique",0]
[null,null,null,"","C-16",0,null,"Geosource",0]
[null,null,null,"","C-19",0,null,"Mat Nobles",0]
[null,null,null,"","C-21",0,null,"Mat locaux",0]
[null,null,null,"","C-23",0]
[null,null,null,"","C-24",0]
[null,null,null,"","E-06",0]
[null,null,null,"","E-08",0]
[null,null,null,"","E-09",0]
[null,null,null,"","E-10",0]
[null,null,null,"","E-11",0]
[null,null,null,"","E-12",0]
[null,null,null,"","E-13",0]
[null,null,null,"","E-14",0]
[null,null,null,"","E-15",0]
[null,null,null,"","E-17",0]
[null,null,null,"","E-18",0]
[null,null,null,"","E-19",0]
[null,null,null,"","E-21",0]
[null,null,null,"","E-23",0]
[null,null,null,"","E-24",0]
[null,null,null,"","G-09",0]
[null,null,null,"","G-10",0]
[null,null,null,"","G-12",0]
[null,null,null,"","G-13",0]
[null,null,null,"","G-21",0]
[null,null,null,"","G-22",0]
[null,null,null,"","G-23",0]
[null,null,null,"","G-24",0]

{"sheet":"Intervenant 14","index":22,"n_rows":65,"n_cols":19,"rows_kept":65,"cut":false,"hidden":false,"merged":[[9,0,9,1],[9,3,9,5],[9,7,9,8],[9,10,9,18],[17,7,17,8],[29,7,29,8]]}
["Intervenant"]
["Rôle"]
["Responsable"]
["Mail de contact"]
[]
[]
[]
[]
[]
["CAS D'USAGES",null,null,"GAINS DIRECTS",null,null,null,"GAINS INDIRECTS",null,null,"ANALYSE QUALITATIVE"]
["CAS D'USAGE","Utilisation","Maturité","Utilisation","CODE-CU","Gain",null,"GI-1",0,null,null,"Accès au marché","Partage d'idée","Communication","Processus de décision","Gestion de l'information","Qualité des résultats produits","Acceptabilité du projet","Image de marque"]
[1,"NON","NC","","P-01",0,null,"GI-2",0,null,"Programmer",0,0,0,0,0,0,0,0]
[2,"NON","NC","","P-02",0,null,"GI-3",0,null,"Concevoir",0,0,0,0,0,0,0,0]
[3,"NON","NC","","P-04",0,null,"GI-4",0,null,"Exécuter",0,0,0,0,0,0,0,0]
[4,"NON","NC","","P-05",0,null,null,null,null,"Gérer et maintenir",0,0,0,0,0,0,0,0]
[5,"NON","NC","","P-06",0,null,"Jour",0]
[6,"NON","NC","","P-07",0]
[7,"NON","NC","","P-08",0,null,"COUTS FIXES"]
[8,"NON","NC","","P-09",0,null,"Matériel",0]
[9,"NON","NC","","P-11",0,null,"Licence",0]
[10,"NON","NC","","P-12",0,null,"Maintenance",0]
[11,"NON","NC","","P-13",0,null,"Formation",0]
[12,"NON","NC","","P-24",0,null,"Espace physique dédié",0]
[13,"NON","NC","","C-04",0,null,"Recrutement spécifique",0]
[14,"NON","NC","","C-05",0,null,"Consultance",0]
[15,"NON","NC","","C-06",0,null,"Données spécifiques",0]
[16,"NON","NC","","C-07",0,null,"Autre",0]
[17,"NON","NC","","C-08",0]
[18,"NON","NC","","C-09",0]
[19,"NON","NC","","C-10",0,null,"QUALITE ARCHI"]
[20,"NON","NC","","C-11",0,null,"Etude urbaine",0]
[21,"NON","NC","","C-12",0,null,"Etude historique",0]
[22,"NON","NC","","C-13",0,null,"Etude architecturale",0]
[23,"NON","NC","","C-14",0,null,"Ensoleillement",0]
[24,"NON","NC","","C-15",0,null,"Eolien",0]
[null,null,null,"","C-16",0,null,"Acoustique",0]
[null,null,null,"","C-17",0,null,"Confort thermique",0]
[null,null,null,"","C-16",0,null,"Geosource",0]
[null,null,null,"","C-19",0,null,"Mat Nobles",0]
[null,null,null,"","C-21",0,null,"Mat locaux",0]
[null,null,null,"","C-23",0]
[null,null,null,"","C-24",0]
[null,null,null,"","E-06",0]
[null,null,null,"","E-08",0]
[null,null,null,"","E-09",0]
[null,null,null,"","E-10",0]
[null,null,null,"","E-11",0]
[null,null,null,"","E-12",0]
[null,null,null,"","E-13",0]
[null,null,null,"","E-14",0]
[null,null,null,"","E-15",0]
[null,null,null,"","E-17",0]
[null,null,null,"","E-18",0]
[null,null,null,"","E-19",0]
[null,null,null,"","E-21",0]
[null,null,null,"","E-23",0]
[null,null,null,"","E-24",0]
[null,null,null,"","G-09",0]
[null,null,null,"","G-10",0]
[null,null,null,"","G-12",0]
[null,null,null,"","G-13",0]
[null,null,null,"","G-21",0]
[null,null,null,"","G-22",0]
[null,null,null,"","G-23",0]
[null,null,null,"","G-24",0]

{"sheet":"Intervenant 15","index":23,"n_rows":65,"n_cols":19,"rows_kept":65,"cut":false,"hidden":false,"merged":[[9,0,9,1],[9,3,9,5],[9,7,9,8],[9,10,9,18],[17,7,17,8],[29,7,29,8]]}
["Intervenant"]
["Rôle"]
["Responsable"]
["Mail de contact"]
[]
[]
[]
[]
[]
["CAS D'USAGES",null,null,"GAINS DIRECTS",null,null,null,"GAINS INDIRECTS",null,null,"ANALYSE QUALITATIVE"]
["CAS D'USAGE","Utilisation","Maturité","Utilisation","CODE-CU","Gain",null,"GI-1",0,null,null,"Accès au marché","Partage d'idée","Communication","Processus de décision","Gestion de l'information","Qualité des résultats produits","Acceptabilité du projet","Image de marque"]
[1,"NON","NC","","P-01",0,null,"GI-2",0,null,"Programmer",0,0,0,0,0,0,0,0]
[2,"NON","NC","","P-02",0,null,"GI-3",0,null,"Concevoir",0,0,0,0,0,0,0,0]
[3,"NON","NC","","P-04",0,null,"GI-4",0,null,"Exécuter",0,0,0,0,0,0,0,0]
[4,"NON","NC","","P-05",0,null,null,null,null,"Gérer et maintenir",0,0,0,0,0,0,0,0]
[5,"NON","NC","","P-06",0,null,"Jour",0]
[6,"NON","NC","","P-07",0]
[7,"NON","NC","","P-08",0,null,"COUTS FIXES"]
[8,"NON","NC","","P-09",0,null,"Matériel",0]
[9,"NON","NC","","P-11",0,null,"Licence",0]
[10,"NON","NC","","P-12",0,null,"Maintenance",0]
[11,"NON","NC","","P-13",0,null,"Formation",0]
[12,"NON","NC","","P-24",0,null,"Espace physique dédié",0]
[13,"NON","NC","","C-04",0,null,"Recrutement spécifique",0]
[14,"NON","NC","","C-05",0,null,"Consultance",0]
[15,"NON","NC","","C-06",0,null,"Données spécifiques",0]
[16,"NON","NC","","C-07",0,null,"Autre",0]
[17,"NON","NC","","C-08",0]
[18,"NON","NC","","C-09",0]
[19,"NON","NC","","C-10",0,null,"QUALITE ARCHI"]
[20,"NON","NC","","C-11",0,null,"Etude urbaine",0]
[21,"NON","NC","","C-12",0,null,"Etude historique",0]
[22,"NON","NC","","C-13",0,null,"Etude architecturale",0]
[23,"NON","NC","","C-14",0,null,"Ensoleillement",0]
[24,"NON","NC","","C-15",0,null,"Eolien",0]
[null,null,null,"","C-16",0,null,"Acoustique",0]
[null,null,null,"","C-17",0,null,"Confort thermique",0]
[null,null,null,"","C-16",0,null,"Geosource",0]
[null,null,null,"","C-19",0,null,"Mat Nobles",0]
[null,null,null,"","C-21",0,null,"Mat locaux",0]
[null,null,null,"","C-23",0]
[null,null,null,"","C-24",0]
[null,null,null,"","E-06",0]
[null,null,null,"","E-08",0]
[null,null,null,"","E-09",0]
[null,null,null,"","E-10",0]
[null,null,null,"","E-11",0]
[null,null,null,"","E-12",0]
[null,null,null,"","E-13",0]
[null,null,null,"","E-14",0]
[null,null,null,"","E-15",0]
[null,null,null,"","E-17",0]
[null,null,null,"","E-18",0]
[null,null,null,"","E-19",0]
[null,null,null,"","E-21",0]
[null,null,null,"","E-23",0]
[null,null,null,"","E-24",0]
[null,null,null,"","G-09",0]
[null,null,null,"","G-10",0]
[null,null,null,"","G-12",0]
[null,null,null,"","G-13",0]
[null,null,null,"","G-21",0]
[null,null,null,"","G-22",0]
[null,null,null,"","G-23",0]
[null,null,null,"","G-24",0]

{"sheet":"Intervenant 16","index":24,"n_rows":65,"n_cols":19,"rows_kept":65,"cut":false,"hidden":false,"merged":[[9,0,9,1],[9,3,9,5],[9,7,9,8],[9,10,9,18],[17,7,17,8],[29,7,29,8]]}
["Intervenant"]
["Rôle"]
["Responsable"]
["Mail de contact"]
[]
[]
[]
[]
[]
["CAS D'USAGES",null,null,"GAINS DIRECTS",null,null,null,"GAINS INDIRECTS",null,null,"ANALYSE QUALITATIVE"]
["CAS D'USAGE","Utilisation","Maturité","Utilisation","CODE-CU","Gain",null,"GI-1",0,null,null,"Accès au marché","Partage d'idée","Communication","Processus de décision","Gestion de l'information","Qualité des résultats produits","Acceptabilité du projet","Image de marque"]
[1,"NON","NC","","P-01",0,null,"GI-2",0,null,"Programmer",0,0,0,0,0,0,0,0]
[2,"NON","NC","","P-02",0,null,"GI-3",0,null,"Concevoir",0,0,0,0,0,0,0,0]
[3,"NON","NC","","P-04",0,null,"GI-4",0,null,"Exécuter",0,0,0,0,0,0,0,0]
[4,"NON","NC","","P-05",0,null,null,null,null,"Gérer et maintenir",0,0,0,0,0,0,0,0]
[5,"NON","NC","","P-06",0,null,"Jour",0]
[6,"NON","NC","","P-07",0]
[7,"NON","NC","","P-08",0,null,"COUTS FIXES"]
[8,"NON","NC","","P-09",0,null,"Matériel",0]
[9,"NON","NC","","P-11",0,null,"Licence",0]
[10,"NON","NC","","P-12",0,null,"Maintenance",0]
[11,"NON","NC","","P-13",0,null,"Formation",0]
[12,"NON","NC","","P-24",0,null,"Espace physique dédié",0]
[13,"NON","NC","","C-04",0,null,"Recrutement spécifique",0]
[14,"NON","NC","","C-05",0,null,"Consultance",0]
[15,"NON","NC","","C-06",0,null,"Données spécifiques",0]
[16,"NON","NC","","C-07",0,null,"Autre",0]
[17,"NON","NC","","C-08",0]
[18,"NON","NC","","C-09",0]
[19,"NON","NC","","C-10",0,null,"QUALITE ARCHI"]
[20,"NON","NC","","C-11",0,null,"Etude urbaine",0]
[21,"NON","NC","","C-12",0,null,"Etude historique",0]
[22,"NON","NC","","C-13",0,null,"Etude architecturale",0]
[23,"NON","NC","","C-14",0,null,"Ensoleillement",0]
[24,"NON","NC","","C-15",0,null,"Eolien",0]
[null,null,null,"","C-16",0,null,"Acoustique",0]
[null,null,null,"","C-17",0,null,"Confort thermique",0]
[null,null,null,"","C-16",0,null,"Geosource",0]
[null,null,null,"","C-19",0,null,"Mat Nobles",0]
[null,null,null,"","C-21",0,null,"Mat locaux",0]
[null,null,null,"","C-23",0]
[null,null,null,"","C-24",0]
[null,null,null,"","E-06",0]
[null,null,null,"","E-08",0]
[null,null,null,"","E-09",0]
[null,null,null,"","E-10",0]
[null,null,null,"","E-11",0]
[null,null,null,"","E-12",0]
[null,null,null,"","E-13",0]
[null,null,null,"","E-14",0]
[null,null,null,"","E-15",0]
[null,null,null,"","E-17",0]
[null,null,null,"","E-18",0]
[null,null,null,"","E-19",0]
[null,null,null,"","E-21",0]
[null,null,null,"","E-23",0]
[null,null,null,"","E-24",0]
[null,null,null,"","G-09",0]
[null,null,null,"","G-10",0]
[null,null,null,"","G-12",0]
[null,null,null,"","G-13",0]
[null,null,null,"","G-21",0]
[null,null,null,"","G-22",0]
[null,null,null,"","G-23",0]
[null,null,null,"","G-24",0]

{"sheet":"Intervenant 17","index":25,"n_rows":65,"n_cols":19,"rows_kept":65,"cut":false,"hidden":false,"merged":[[9,0,9,1],[9,3,9,5],[9,7,9,8],[9,10,9,18],[17,7,17,8],[29,7,29,8]]}
["Intervenant"]
["Rôle"]
["Responsable"]
["Mail de contact"]
[]
[]
[]
[]
[]
["CAS D'USAGES",null,null,"GAINS DIRECTS",null,null,null,"GAINS INDIRECTS",null,null,"ANALYSE QUALITATIVE"]
["CAS D'USAGE","Utilisation","Maturité","Utilisation","CODE-CU","Gain",null,"GI-1",0,null,null,"Accès au marché","Partage d'idée","Communication","Processus de décision","Gestion de l'information","Qualité des résultats produits","Acceptabilité du projet","Image de marque"]
[1,"NON","NC","","P-01",0,null,"GI-2",0,null,"Programmer",0,0,0,0,0,0,0,0]
[2,"NON","NC","","P-02",0,null,"GI-3",0,null,"Concevoir",0,0,0,0,0,0,0,0]
[3,"NON","NC","","P-04",0,null,"GI-4",0,null,"Exécuter",0,0,0,0,0,0,0,0]
[4,"NON","NC","","P-05",0,null,null,null,null,"Gérer et maintenir",0,0,0,0,0,0,0,0]
[5,"NON","NC","","P-06",0,null,"Jour",0]
[6,"NON","NC","","P-07",0]
[7,"NON","NC","","P-08",0,null,"COUTS FIXES"]
[8,"NON","NC","","P-09",0,null,"Matériel",0]
[9,"NON","NC","","P-11",0,null,"Licence",0]
[10,"NON","NC","","P-12",0,null,"Maintenance",0]
[11,"NON","NC","","P-13",0,null,"Formation",0]
[12,"NON","NC","","P-24",0,null,"Espace physique dédié",0]
[13,"NON","NC","","C-04",0,null,"Recrutement spécifique",0]
[14,"NON","NC","","C-05",0,null,"Consultance",0]
[15,"NON","NC","","C-06",0,null,"Données spécifiques",0]
[16,"NON","NC","","C-07",0,null,"Autre",0]
[17,"NON","NC","","C-08",0]
[18,"NON","NC","","C-09",0]
[19,"NON","NC","","C-10",0,null,"QUALITE ARCHI"]
[20,"NON","NC","","C-11",0,null,"Etude urbaine",0]
[21,"NON","NC","","C-12",0,null,"Etude historique",0]
[22,"NON","NC","","C-13",0,null,"Etude architecturale",0]
[23,"NON","NC","","C-14",0,null,"Ensoleillement",0]
[24,"NON","NC","","C-15",0,null,"Eolien",0]
[null,null,null,"","C-16",0,null,"Acoustique",0]
[null,null,null,"","C-17",0,null,"Confort thermique",0]
[null,null,null,"","C-16",0,null,"Geosource",0]
[null,null,null,"","C-19",0,null,"Mat Nobles",0]
[null,null,null,"","C-21",0,null,"Mat locaux",0]
[null,null,null,"","C-23",0]
[null,null,null,"","C-24",0]
[null,null,null,"","E-06",0]
[null,null,null,"","E-08",0]
[null,null,null,"","E-09",0]
[null,null,null,"","E-10",0]
[null,null,null,"","E-11",0]
[null,null,null,"","E-12",0]
[null,null,null,"","E-13",0]
[null,null,null,"","E-14",0]
[null,null,null,"","E-15",0]
[null,null,null,"","E-17",0]
[null,null,null,"","E-18",0]
[null,null,null,"","E-19",0]
[null,null,null,"","E-21",0]
[null,null,null,"","E-23",0]
[null,null,null,"","E-24",0]
[null,null,null,"","G-09",0]
[null,null,null,"","G-10",0]
[null,null,null,"","G-12",0]
[null,null,null,"","G-13",0]
[null,null,null,"","G-21",0]
[null,null,null,"","G-22",0]
[null,null,null,"","G-23",0]
[null,null,null,"","G-24",0]

{"sheet":"Intervenant 18","index":26,"n_rows":65,"n_cols":19,"rows_kept":65,"cut":false,"hidden":false,"merged":[[9,0,9,1],[9,3,9,5],[9,7,9,8],[9,10,9,18],[17,7,17,8],[29,7,29,8]]}
["Intervenant"]
["Rôle"]
["Responsable"]
["Mail de contact"]
[]
[]
[]
[]
[]
["CAS D'USAGES",null,null,"GAINS DIRECTS",null,null,null,"GAINS INDIRECTS",null,null,"ANALYSE QUALITATIVE"]
["CAS D'USAGE","Utilisation","Maturité","Utilisation","CODE-CU","Gain",null,"GI-1",0,null,null,"Accès au marché","Partage d'idée","Communication","Processus de décision","Gestion de l'information","Qualité des résultats produits","Acceptabilité du projet","Image de marque"]
[1,"NON","NC","","P-01",0,null,"GI-2",0,null,"Programmer",0,0,0,0,0,0,0,0]
[2,"NON","NC","","P-02",0,null,"GI-3",0,null,"Concevoir",0,0,0,0,0,0,0,0]
[3,"NON","NC","","P-04",0,null,"GI-4",0,null,"Exécuter",0,0,0,0,0,0,0,0]
[4,"NON","NC","","P-05",0,null,null,null,null,"Gérer et maintenir",0,0,0,0,0,0,0,0]
[5,"NON","NC","","P-06",0,null,"Jour",0]
[6,"NON","NC","","P-07",0]
[7,"NON","NC","","P-08",0,null,"COUTS FIXES"]
[8,"NON","NC","","P-09",0,null,"Matériel",0]
[9,"NON","NC","","P-11",0,null,"Licence",0]
[10,"NON","NC","","P-12",0,null,"Maintenance",0]
[11,"NON","NC","","P-13",0,null,"Formation",0]
[12,"NON","NC","","P-24",0,null,"Espace physique dédié",0]
[13,"NON","NC","","C-04",0,null,"Recrutement spécifique",0]
[14,"NON","NC","","C-05",0,null,"Consultance",0]
[15,"NON","NC","","C-06",0,null,"Données spécifiques",0]
[16,"NON","NC","","C-07",0,null,"Autre",0]
[17,"NON","NC","","C-08",0]
[18,"NON","NC","","C-09",0]
[19,"NON","NC","","C-10",0,null,"QUALITE ARCHI"]
[20,"NON","NC","","C-11",0,null,"Etude urbaine",0]
[21,"NON","NC","","C-12",0,null,"Etude historique",0]
[22,"NON","NC","","C-13",0,null,"Etude architecturale",0]
[23,"NON","NC","","C-14",0,null,"Ensoleillement",0]
[24,"NON","NC","","C-15",0,null,"Eolien",0]
[null,null,null,"","C-16",0,null,"Acoustique",0]
[null,null,null,"","C-17",0,null,"Confort thermique",0]
[null,null,null,"","C-16",0,null,"Geosource",0]
[null,null,null,"","C-19",0,null,"Mat Nobles",0]
[null,null,null,"","C-21",0,null,"Mat locaux",0]
[null,null,null,"","C-23",0]
[null,null,null,"","C-24",0]
[null,null,null,"","E-06",0]
[null,null,null,"","E-08",0]
[null,null,null,"","E-09",0]
[null,null,null,"","E-10",0]
[null,null,null,"","E-11",0]
[null,null,null,"","E-12",0]
[null,null,null,"","E-13",0]
[null,null,null,"","E-14",0]
[null,null,null,"","E-15",0]
[null,null,null,"","E-17",0]
[null,null,null,"","E-18",0]
[null,null,null,"","E-19",0]
[null,null,null,"","E-21",0]
[null,null,null,"","E-23",0]
[null,null,null,"","E-24",0]
[null,null,null,"","G-09",0]
[null,null,null,"","G-10",0]
[null,null,null,"","G-12",0]
[null,null,null,"","G-13",0]
[null,null,null,"","G-21",0]
[null,null,null,"","G-22",0]
[null,null,null,"","G-23",0]
[null,null,null,"","G-24",0]

{"sheet":"Intervenant 19","index":27,"n_rows":65,"n_cols":19,"rows_kept":65,"cut":false,"hidden":false,"merged":[[9,0,9,1],[9,3,9,5],[9,7,9,8],[9,10,9,18],[17,7,17,8],[29,7,29,8]]}
["Intervenant"]
["Rôle"]
["Responsable"]
["Mail de contact"]
[]
[]
[]
[]
[]
["CAS D'USAGES",null,null,"GAINS DIRECTS",null,null,null,"GAINS INDIRECTS",null,null,"ANALYSE QUALITATIVE"]
["CAS D'USAGE","Utilisation","Maturité","Utilisation","CODE-CU","Gain",null,"GI-1",0,null,null,"Accès au marché","Partage d'idée","Communication","Processus de décision","Gestion de l'information","Qualité des résultats produits","Acceptabilité du projet","Image de marque"]
[1,"NON","NC","","P-01",0,null,"GI-2",0,null,"Programmer",0,0,0,0,0,0,0,0]
[2,"NON","NC","","P-02",0,null,"GI-3",0,null,"Concevoir",0,0,0,0,0,0,0,0]
[3,"NON","NC","","P-04",0,null,"GI-4",0,null,"Exécuter",0,0,0,0,0,0,0,0]
[4,"NON","NC","","P-05",0,null,null,null,null,"Gérer et maintenir",0,0,0,0,0,0,0,0]
[5,"NON","NC","","P-06",0,null,"Jour",0]
[6,"NON","NC","","P-07",0]
[7,"NON","NC","","P-08",0,null,"COUTS FIXES"]
[8,"NON","NC","","P-09",0,null,"Matériel",0]
[9,"NON","NC","","P-11",0,null,"Licence",0]
[10,"NON","NC","","P-12",0,null,"Maintenance",0]
[11,"NON","NC","","P-13",0,null,"Formation",0]
[12,"NON","NC","","P-24",0,null,"Espace physique dédié",0]
[13,"NON","NC","","C-04",0,null,"Recrutement spécifique",0]
[14,"NON","NC","","C-05",0,null,"Consultance",0]
[15,"NON","NC","","C-06",0,null,"Données spécifiques",0]
[16,"NON","NC","","C-07",0,null,"Autre",0]
[17,"NON","NC","","C-08",0]
[18,"NON","NC","","C-09",0]
[19,"NON","NC","","C-10",0,null,"QUALITE ARCHI"]
[20,"NON","NC","","C-11",0,null,"Etude urbaine",0]
[21,"NON","NC","","C-12",0,null,"Etude historique",0]
[22,"NON","NC","","C-13",0,null,"Etude architecturale",0]
[23,"NON","NC","","C-14",0,null,"Ensoleillement",0]
[24,"NON","NC","","C-15",0,null,"Eolien",0]
[null,null,null,"","C-16",0,null,"Acoustique",0]
[null,null,null,"","C-17",0,null,"Confort thermique",0]
[null,null,null,"","C-16",0,null,"Geosource",0]
[null,null,null,"","C-19",0,null,"Mat Nobles",0]
[null,null,null,"","C-21",0,null,"Mat locaux",0]
[null,null,null,"","C-23",0]
[null,null,null,"","C-24",0]
[null,null,null,"","E-06",0]
[null,null,null,"","E-08",0]
[null,null,null,"","E-09",0]
[null,null,null,"","E-10",0]
[null,null,null,"","E-11",0]
[null,null,null,"","E-12",0]
[null,null,null,"","E-13",0]
[null,null,null,"","E-14",0]
[null,null,null,"","E-15",0]
[null,null,null,"","E-17",0]
[null,null,null,"","E-18",0]
[null,null,null,"","E-19",0]
[null,null,null,"","E-21",0]
[null,null,null,"","E-23",0]
[null,null,null,"","E-24",0]
[null,null,null,"","G-09",0]
[null,null,null,"","G-10",0]
[null,null,null,"","G-12",0]
[null,null,null,"","G-13",0]
[null,null,null,"","G-21",0]
[null,null,null,"","G-22",0]
[null,null,null,"","G-23",0]
[null,null,null,"","G-24",0]

{"sheet":"Intervenant 20","index":28,"n_rows":65,"n_cols":19,"rows_kept":65,"cut":false,"hidden":false,"merged":[[9,0,9,1],[9,3,9,5],[9,7,9,8],[9,10,9,18],[17,7,17,8],[29,7,29,8]]}
["Intervenant"]
["Rôle"]
["Responsable"]
["Mail de contact"]
[]
[]
[]
[]
[]
["CAS D'USAGES",null,null,"GAINS DIRECTS",null,null,null,"GAINS INDIRECTS",null,null,"ANALYSE QUALITATIVE"]
["CAS D'USAGE","Utilisation","Maturité","Utilisation","CODE-CU","Gain",null,"GI-1",0,null,null,"Accès au marché","Partage d'idée","Communication","Processus de décision","Gestion de l'information","Qualité des résultats produits","Acceptabilité du projet","Image de marque"]
[1,"NON","NC","","P-01",0,null,"GI-2",0,null,"Programmer",0,0,0,0,0,0,0,0]
[2,"NON","NC","","P-02",0,null,"GI-3",0,null,"Concevoir",0,0,0,0,0,0,0,0]
[3,"NON","NC","","P-04",0,null,"GI-4",0,null,"Exécuter",0,0,0,0,0,0,0,0]
[4,"NON","NC","","P-05",0,null,null,null,null,"Gérer et maintenir",0,0,0,0,0,0,0,0]
[5,"NON","NC","","P-06",0,null,"Jour",0]
[6,"NON","NC","","P-07",0]
[7,"NON","NC","","P-08",0,null,"COUTS FIXES"]
[8,"NON","NC","","P-09",0,null,"Matériel",0]
[9,"NON","NC","","P-11",0,null,"Licence",0]
[10,"NON","NC","","P-12",0,null,"Maintenance",0]
[11,"NON","NC","","P-13",0,null,"Formation",0]
[12,"NON","NC","","P-24",0,null,"Espace physique dédié",0]
[13,"NON","NC","","C-04",0,null,"Recrutement spécifique",0]
[14,"NON","NC","","C-05",0,null,"Consultance",0]
[15,"NON","NC","","C-06",0,null,"Données spécifiques",0]
[16,"NON","NC","","C-07",0,null,"Autre",0]
[17,"NON","NC","","C-08",0]
[18,"NON","NC","","C-09",0]
[19,"NON","NC","","C-10",0,null,"QUALITE ARCHI"]
[20,"NON","NC","","C-11",0,null,"Etude urbaine",0]
[21,"NON","NC","","C-12",0,null,"Etude historique",0]
[22,"NON","NC","","C-13",0,null,"Etude architecturale",0]
[23,"NON","NC","","C-14",0,null,"Ensoleillement",0]
[24,"NON","NC","","C-15",0,null,"Eolien",0]
[null,null,null,"","C-16",0,null,"Acoustique",0]
[null,null,null,"","C-17",0,null,"Confort thermique",0]
[null,null,null,"","C-16",0,null,"Geosource",0]
[null,null,null,"","C-19",0,null,"Mat Nobles",0]
[null,null,null,"","C-21",0,null,"Mat locaux",0]
[null,null,null,"","C-23",0]
[null,null,null,"","C-24",0]
[null,null,null,"","E-06",0]
[null,null,null,"","E-08",0]
[null,null,null,"","E-09",0]
[null,null,null,"","E-10",0]
[null,null,null,"","E-11",0]
[null,null,null,"","E-12",0]
[null,null,null,"","E-13",0]
[null,null,null,"","E-14",0]
[null,null,null,"","E-15",0]
[null,null,null,"","E-17",0]
[null,null,null,"","E-18",0]
[null,null,null,"","E-19",0]
[null,null,null,"","E-21",0]
[null,null,null,"","E-23",0]
[null,null,null,"","E-24",0]
[null,null,null,"","G-09",0]
[null,null,null,"","G-10",0]
[null,null,null,"","G-12",0]
[null,null,null,"","G-13",0]
[null,null,null,"","G-21",0]
[null,null,null,"","G-22",0]
[null,null,null,"","G-23",0]
[null,null,null,"","G-24",0]